Workbook

Sheet Worksheet
E1: Change from one unit to the other unit specified
A2: Variables | E2: 1 | F2: 1098 | G2: 83 000 | H2: ml | I2: = | J2: 83 | K2: litres | M2: 21 | N2: 1195 | O2: 40 | P2: cm | Q2: = | R2: 400 | S2: mm | U2: 41 | V2: 134 | W2: 2 800 | X2: cm | Y2: = | Z2: 28 | AA2: m
A3: SHOW ANSWERS | D3: FALSE | E3: 2 | F3: 299 | G3: 13 | H3: tonnes | I3: = | J3: 13 000 | K3: kg | M3: 22 | N3: 588 | O3: 17 | P3: litres | Q3: = | R3: 17 000 | S3: ml | U3: 42 | V3: 540 | W3: 58 | X3: litres | Y3: = | Z3: 58 000 | AA3: ml
A4: Number of questions (minimum 30, maximum 60) | D4: 60 | E4: 3 | F4: 498 | G4: 60 000 | H4: ml | I4: = | J4: 60 | K4: litres | M4: 23 | N4: 963 | O4: 36 000 | P4: m | Q4: = | R4: 36 | S4: km | U4: 43 | V4: 784 | W4: 29 000 | X4: g | Y4: = | Z4: 29 | AA4: kg
A5: Level of difficulty | E5: 4 | F5: 1370 | G5: 1 400 | H5: cm | I5: = | J5: 14 | K5: m | M5: 24 | N5: 929 | O5: 35 000 | P5: kg | Q5: = | R5: 35 | S5: tonnes | U5: 44 | V5: 1436 | W5: 31 | X5: m | Y5: = | Z5: 3 100 | AA5: cm
A6: Whole numbers only | D6: 1 | E6: 5 | F6: 430 | G6: 17 | H6: kg | I6: = | J6: 17 000 | K6: g | M6: 25 | N6: 211 | O6: 32 | P6: cm | Q6: = | R6: 320 | S6: mm | U6: 45 | V6: 893 | W6: 64 000 | X6: kg | Y6: = | Z6: 64 | AA6: tonnes
A7: May include decimals up to 1dp | E7: 6 | F7: 1362 | G7: 80 000 | H7: ml | I7: = | J7: 80 | K7: litres | M7: 26 | N7: 1181 | O7: 24 000 | P7: kg | Q7: = | R7: 24 | S7: tonnes | U7: 46 | V7: 301 | W7: 750 | X7: mm | Y7: = | Z7: 75 | AA7: cm
A8: May include decimals up to 3dp | E8: 7 | F8: 1269 | G8: 24 | H8: km | I8: = | J8: 24 000 | K8: m | M8: 27 | N8: 428 | O8: 57 | P8: m | Q8: = | R8: 5 700 | S8: cm | U8: 47 | V8: 1435 | W8: 85 | X8: cm | Y8: = | Z8: 850 | AA8: mm
A9: Order in which units appear | E9: 8 | F9: 598 | G9: 55 | H9: kg | I9: = | J9: 55 000 | K9: g | M9: 28 | N9: 925 | O9: 860 | P9: mm | Q9: = | R9: 86 | S9: cm | U9: 48 | V9: 1369 | W9: 160 | X9: mm | Y9: = | Z9: 16 | AA9: cm
D10: 1 | E10: 9 | F10: 1487 | G10: 70 | H10: tonnes | I10: = | J10: 70 000 | K10: kg | M10: 29 | N10: 1238 | O10: 1 000 | P10: cm | Q10: = | R10: 10 | S10: m | U10: 49 | V10: 1432 | W10: 51 000 | X10: g | Y10: = | Z10: 51 | AA10: kg
E11: 10 | F11: 510 | G11: 72 000 | H11: ml | I11: = | J11: 72 | K11: litres | M11: 30 | N11: 1433 | O11: 10 000 | P11: kg | Q11: = | R11: 10 | S11: tonnes | U11: 50 | V11: 1012 | W11: 10 000 | X11: g | Y11: = | Z11: 10 | AA11: kg
E12: 11 | F12: 541 | G12: 90 | H12: mm | I12: = | J12: 9 | K12: cm | M12: 31 | N12: 249 | O12: 67 | P12: km | Q12: = | R12: 67 000 | S12: m | U12: 51 | V12: 1246 | W12: 77 | X12: kg | Y12: = | Z12: 77 000 | AA12: g
A13: Which unit conversions to include: (once you have selected the units you want, click on "generate new sheet" above) | E13: 12 | F13: 523 | G13: 32 | H13: cm | I13: = | J13: 320 | K13: mm | M13: 32 | N13: 1410 | O13: 35 000 | P13: ml | Q13: = | R13: 35 | S13: litres | U13: 52 | V13: 362 | W13: 2 800 | X13: cm | Y13: = | Z13: 28 | AA13: m
A14: Length: mm/cm | B14: TRUE | C14: Weight: g/kg | D14: TRUE | E14: 13 | F14: 1467 | G14: 13 000 | H14: m | I14: = | J14: 13 | K14: km | M14: 33 | N14: 1051 | O14: 22 | P14: cm | Q14: = | R14: 220 | S14: mm | U14: 53 | V14: 1180 | W14: 5 000 | X14: g | Y14: = | Z14: 5 | AA14: kg
A15: Length: cm/m | B15: TRUE | C15: Weight: kg/tonnes | D15: TRUE | E15: 14 | F15: 563 | G15: 60 | H15: tonnes | I15: = | J15: 60 000 | K15: kg | M15: 34 | N15: 996 | O15: 14 | P15: litres | Q15: = | R15: 14 000 | S15: ml | U15: 54 | V15: 1154 | W15: 2 500 | X15: cm | Y15: = | Z15: 25 | AA15: m
A16: Length: m/km | B16: TRUE | C16: Volume: ml/l | D16: TRUE | E16: 15 | F16: 876 | G16: 10 | H16: litres | I16: = | J16: 10 000 | K16: ml | M16: 35 | N16: 908 | O16: 96 | P16: m | Q16: = | R16: 9 600 | S16: cm | U16: 55 | V16: 1474 | W16: 62 | X16: kg | Y16: = | Z16: 62 000 | AA16: g
A17: Length: mm/m | B17: FALSE | C17: Volume: cm³/l | D17: FALSE | E17: 16 | F17: 1200 | G17: 45 | H17: litres | I17: = | J17: 45 000 | K17: ml | M17: 36 | N17: 483 | O17: 99 000 | P17: m | Q17: = | R17: 99 | S17: km | U17: 56 | V17: 1101 | W17: 40 | X17: km | Y17: = | Z17: 40 000 | AA17: m
A18: Area: cm²/mm² | B18: FALSE | C18: Area: cm²/m² | D18: FALSE | E18: 17 | F18: 1202 | G18: 600 | H18: cm | I18: = | J18: 6 | K18: m | M18: 37 | N18: 143 | O18: 88 | P18: tonnes | Q18: = | R18: 88 000 | S18: kg | U18: 57 | V18: 963 | W18: 36 000 | X18: m | Y18: = | Z18: 36 | AA18: km
E19: 18 | F19: 637 | G19: 260 | H19: mm | I19: = | J19: 26 | K19: cm | M19: 38 | N19: 982 | O19: 1 | P19: kg | Q19: = | R19: 1 000 | S19: g | U19: 58 | V19: 1476 | W19: 24 | X19: litres | Y19: = | Z19: 24 000 | AA19: ml
E20: 19 | F20: 779 | G20: 96 | H20: tonnes | I20: = | J20: 96 000 | K20: kg | M20: 39 | N20: 377 | O20: 22 000 | P20: kg | Q20: = | R20: 22 | S20: tonnes | U20: 59 | V20: 6 | W20: 75 000 | X20: ml | Y20: = | Z20: 75 | AA20: litres
E21: 20 | F21: 165 | G21: 52 | H21: km | I21: = | J21: 52 000 | K21: m | M21: 40 | N21: 810 | O21: 24 000 | P21: ml | Q21: = | R21: 24 | S21: litres | U21: 60 | V21: 852 | W21: 67 | X21: litres | Y21: = | Z21: 67 000 | AA21: ml

Sheet SYSTEM FORMULAE
A1: =COUNTIF($B$1:B1,TRUE) -> 1 | B1: =IF(Worksheet!$D$10=2,FALSE,Worksheet!$B$14) -> TRUE | C1: =10*F1 -> 640 | D1: mm | E1: = | F1: =IF(Worksheet!$D$6=1,RANDBETWEEN(1,99),IF(Worksheet!$D$6=2,CHOOSE(RANDBETWEEN(1,2),RANDBETWEEN(1,99),RANDBETWEEN(1,999)/10),CHOOSE(RANDBETWEEN(1,4),RANDBETWEEN(1,99999)/1000,RANDBETWEEN(1,9999)/100,RANDBETWEEN(1,999)/10,RANDBETWEEN(1,99)))) -> 64 | G1: cm | J1: =IF(ROW()<=Worksheet!$D$4/3,ROW(),"") -> 1 | K1: =RANDBETWEEN(1,MAX('SYSTEM FORMULAE'!$A$1:$A$2560)) -> 844 | L1: =IF(RIGHT(TEXT(VLOOKUP(K1,'SYSTEM FORMULAE'!$A$1:$G$2560,3),"# ##0.###"),1)=".",LEFT(TEXT(VLOOKUP(K1,'SYSTEM FORMULAE'!$A$1:$G$2560,3),"# ##0.###"),LEN(TEXT(VLOOKUP(K1,'SYSTEM FORMULAE'!$A$1:$G$2560,3),"# ##0.###"))-1),TEXT(VLOOKUP(K1,'SYSTEM FORMULAE'!$A$1:$G$2560,3),"# ##0.###")) -> 61 000 | M1: =VLOOKUP(K1,'SYSTEM FORMULAE'!$A$1:$G$2560,4) -> g | N1: = | O1: =IF(RIGHT(TEXT(VLOOKUP(K1,'SYSTEM FORMULAE'!$A$1:$G$2560,6),"# ##0.###"),1)=".",LEFT(TEXT(VLOOKUP(K1,'SYSTEM FORMULAE'!$A$1:$G$2560,6),"# ##0.###"),LEN(TEXT(VLOOKUP(K1,'SYSTEM FORMULAE'!$A$1:$G$2560,6),"# ##0.###"))-1),TEXT(VLOOKUP(K1,'SYSTEM FORMULAE'!$A$1:$G$2560,6),"# ##0.###")) -> 61 | P1: =VLOOKUP(K1,'SYSTEM FORMULAE'!$A$1:$G$2560,7) -> kg | R1: =MAX(J1:J40)+1 -> 21 | S1: =RANDBETWEEN(1,MAX('SYSTEM FORMULAE'!$A$1:$A$2560)) -> 705 | T1: =IF(RIGHT(TEXT(VLOOKUP(S1,'SYSTEM FORMULAE'!$A$1:$G$2560,3),"# ##0.###"),1)=".",LEFT(TEXT(VLOOKUP(S1,'SYSTEM FORMULAE'!$A$1:$G$2560,3),"# ##0.###"),LEN(TEXT(VLOOKUP(S1,'SYSTEM FORMULAE'!$A$1:$G$2560,3),"# ##0.###"))-1),TEXT(VLOOKUP(S1,'SYSTEM FORMULAE'!$A$1:$G$2560,3),"# ##0.###")) -> 81 | U1: =VLOOKUP(S1,'SYSTEM FORMULAE'!$A$1:$G$2560,4) -> km | V1: = | W1: =IF(RIGHT(TEXT(VLOOKUP(S1,'SYSTEM FORMULAE'!$A$1:$G$2560,6),"# ##0.###"),1)=".",LEFT(TEXT(VLOOKUP(S1,'SYSTEM FORMULAE'!$A$1:$G$2560,6),"# ##0.###"),LEN(TEXT(VLOOKUP(S1,'SYSTEM FORMULAE'!$A$1:$G$2560,6),"# ##0.###"))-1),TEXT(VLOOKUP(S1,'SYSTEM FORMULAE'!$A$1:$G$2560,6),"# ##0.###")) -> 81 000 | X1: =VLOOKUP(S1,'SYSTEM FORMULAE'!$A$1:$G$2560,7) -> m | Z1: =MAX(R1:R40)+1 -> 41 | AA1: =RANDBETWEEN(1,MAX('SYSTEM FORMULAE'!$A$1:$A$2560)) -> 1390 | AB1: =IF(RIGHT(TEXT(VLOOKUP(AA1,'SYSTEM FORMULAE'!$A$1:$G$2560,3),"# ##0.###"),1)=".",LEFT(TEXT(VLOOKUP(AA1,'SYSTEM FORMULAE'!$A$1:$G$2560,3),"# ##0.###"),LEN(TEXT(VLOOKUP(AA1,'SYSTEM FORMULAE'!$A$1:$G$2560,3),"# ##0.###"))-1),TEXT(VLOOKUP(AA1,'SYSTEM FORMULAE'!$A$1:$G$2560,3),"# ##0.###")) -> 90 | AC1: =VLOOKUP(AA1,'SYSTEM FORMULAE'!$A$1:$G$2560,4) -> kg | AD1: = | AE1: =IF(RIGHT(TEXT(VLOOKUP(AA1,'SYSTEM FORMULAE'!$A$1:$G$2560,6),"# ##0.###"),1)=".",LEFT(TEXT(VLOOKUP(AA1,'SYSTEM FORMULAE'!$A$1:$G$2560,6),"# ##0.###"),LEN(TEXT(VLOOKUP(AA1,'SYSTEM FORMULAE'!$A$1:$G$2560,6),"# ##0.###"))-1),TEXT(VLOOKUP(AA1,'SYSTEM FORMULAE'!$A$1:$G$2560,6),"# ##0.###")) -> 90 000 | AF1: =VLOOKUP(AA1,'SYSTEM FORMULAE'!$A$1:$G$2560,7) -> g | AI1: Bigger unit may be on left or right
A2: =IF(COUNTIF($B$1:B2,TRUE)=COUNTIF($B$1:B1,TRUE),"",COUNTIF($B$1:B2,TRUE)) -> 2 | B2: =IF(Worksheet!$D$10=2,FALSE,Worksheet!$B$15) -> TRUE | C2: =100*F2 -> 400 | D2: cm | E2: = | F2: =IF(Worksheet!$D$6=1,RANDBETWEEN(1,99),IF(Worksheet!$D$6=2,CHOOSE(RANDBETWEEN(1,2),RANDBETWEEN(1,99),RANDBETWEEN(1,999)/10),CHOOSE(RANDBETWEEN(1,4),RANDBETWEEN(1,99999)/1000,RANDBETWEEN(1,9999)/100,RANDBETWEEN(1,999)/10,RANDBETWEEN(1,99)))) -> 4 | G2: m | J2: =IF(ROW()<=Worksheet!$D$4/3,ROW(),"") -> 2 | K2: =RANDBETWEEN(1,MAX('SYSTEM FORMULAE'!$A$1:$A$2560)) -> 1205 | L2: =IF(RIGHT(TEXT(VLOOKUP(K2,'SYSTEM FORMULAE'!$A$1:$G$2560,3),"# ##0.###"),1)=".",LEFT(TEXT(VLOOKUP(K2,'SYSTEM FORMULAE'!$A$1:$G$2560,3),"# ##0.###"),LEN(TEXT(VLOOKUP(K2,'SYSTEM FORMULAE'!$A$1:$G$2560,3),"# ##0.###"))-1),TEXT(VLOOKUP(K2,'SYSTEM FORMULAE'!$A$1:$G$2560,3),"# ##0.###")) -> 73 000 | M2: =VLOOKUP(K2,'SYSTEM FORMULAE'!$A$1:$G$2560,4) -> kg | N2: = | O2: =IF(RIGHT(TEXT(VLOOKUP(K2,'SYSTEM FORMULAE'!$A$1:$G$2560,6),"# ##0.###"),1)=".",LEFT(TEXT(VLOOKUP(K2,'SYSTEM FORMULAE'!$A$1:$G$2560,6),"# ##0.###"),LEN(TEXT(VLOOKUP(K2,'SYSTEM FORMULAE'!$A$1:$G$2560,6),"# ##0.###"))-1),TEXT(VLOOKUP(K2,'SYSTEM FORMULAE'!$A$1:$G$2560,6),"# ##0.###")) -> 73 | P2: =VLOOKUP(K2,'SYSTEM FORMULAE'!$A$1:$G$2560,7) -> tonnes | R2: =IF(ROW()<=Worksheet!$D$4/3,R1+1,"") -> 22 | S2: =RANDBETWEEN(1,MAX('SYSTEM FORMULAE'!$A$1:$A$2560)) -> 280 | T2: =IF(RIGHT(TEXT(VLOOKUP(S2,'SYSTEM FORMULAE'!$A$1:$G$2560,3),"# ##0.###"),1)=".",LEFT(TEXT(VLOOKUP(S2,'SYSTEM FORMULAE'!$A$1:$G$2560,3),"# ##0.###"),LEN(TEXT(VLOOKUP(S2,'SYSTEM FORMULAE'!$A$1:$G$2560,3),"# ##0.###"))-1),TEXT(VLOOKUP(S2,'SYSTEM FORMULAE'!$A$1:$G$2560,3),"# ##0.###")) -> 23 000 | U2: =VLOOKUP(S2,'SYSTEM FORMULAE'!$A$1:$G$2560,4) -> g | V2: = | W2: =IF(RIGHT(TEXT(VLOOKUP(S2,'SYSTEM FORMULAE'!$A$1:$G$2560,6),"# ##0.###"),1)=".",LEFT(TEXT(VLOOKUP(S2,'SYSTEM FORMULAE'!$A$1:$G$2560,6),"# ##0.###"),LEN(TEXT(VLOOKUP(S2,'SYSTEM FORMULAE'!$A$1:$G$2560,6),"# ##0.###"))-1),TEXT(VLOOKUP(S2,'SYSTEM FORMULAE'!$A$1:$G$2560,6),"# ##0.###")) -> 23 | X2: =VLOOKUP(S2,'SYSTEM FORMULAE'!$A$1:$G$2560,7) -> kg | Z2: =IF(ROW()<=Worksheet!$D$4/3,Z1+1,"") -> 42 | AA2: =RANDBETWEEN(1,MAX('SYSTEM FORMULAE'!$A$1:$A$2560)) -> 851 | AB2: =IF(RIGHT(TEXT(VLOOKUP(AA2,'SYSTEM FORMULAE'!$A$1:$G$2560,3),"# ##0.###"),1)=".",LEFT(TEXT(VLOOKUP(AA2,'SYSTEM FORMULAE'!$A$1:$G$2560,3),"# ##0.###"),LEN(TEXT(VLOOKUP(AA2,'SYSTEM FORMULAE'!$A$1:$G$2560,3),"# ##0.###"))-1),TEXT(VLOOKUP(AA2,'SYSTEM FORMULAE'!$A$1:$G$2560,3),"# ##0.###")) -> 60 | AC2: =VLOOKUP(AA2,'SYSTEM FORMULAE'!$A$1:$G$2560,4) -> tonnes | AD2: = | AE2: =IF(RIGHT(TEXT(VLOOKUP(AA2,'SYSTEM FORMULAE'!$A$1:$G$2560,6),"# ##0.###"),1)=".",LEFT(TEXT(VLOOKUP(AA2,'SYSTEM FORMULAE'!$A$1:$G$2560,6),"# ##0.###"),LEN(TEXT(VLOOKUP(AA2,'SYSTEM FORMULAE'!$A$1:$G$2560,6),"# ##0.###"))-1),TEXT(VLOOKUP(AA2,'SYSTEM FORMULAE'!$A$1:$G$2560,6),"# ##0.###")) -> 60 000 | AF2: =VLOOKUP(AA2,'SYSTEM FORMULAE'!$A$1:$G$2560,7) -> kg | AI2: Bigger unit is always on left
A3: =IF(COUNTIF($B$1:B3,TRUE)=COUNTIF($B$1:B2,TRUE),"",COUNTIF($B$1:B3,TRUE)) -> 3 | B3: =IF(Worksheet!$D$10=2,FALSE,Worksheet!$B$16) -> TRUE | C3: =1000*F3 -> 52000 | D3: m | E3: = | F3: =IF(Worksheet!$D$6=1,RANDBETWEEN(1,99),IF(Worksheet!$D$6=2,CHOOSE(RANDBETWEEN(1,2),RANDBETWEEN(1,99),RANDBETWEEN(1,999)/10),CHOOSE(RANDBETWEEN(1,4),RANDBETWEEN(1,99999)/1000,RANDBETWEEN(1,9999)/100,RANDBETWEEN(1,999)/10,RANDBETWEEN(1,99)))) -> 52 | G3: km | J3: =IF(ROW()<=Worksheet!$D$4/3,ROW(),"") -> 3 | K3: =RANDBETWEEN(1,MAX('SYSTEM FORMULAE'!$A$1:$A$2560)) -> 1026 | L3: =IF(RIGHT(TEXT(VLOOKUP(K3,'SYSTEM FORMULAE'!$A$1:$G$2560,3),"# ##0.###"),1)=".",LEFT(TEXT(VLOOKUP(K3,'SYSTEM FORMULAE'!$A$1:$G$2560,3),"# ##0.###"),LEN(TEXT(VLOOKUP(K3,'SYSTEM FORMULAE'!$A$1:$G$2560,3),"# ##0.###"))-1),TEXT(VLOOKUP(K3,'SYSTEM FORMULAE'!$A$1:$G$2560,3),"# ##0.###")) -> 9 000 | M3: =VLOOKUP(K3,'SYSTEM FORMULAE'!$A$1:$G$2560,4) -> ml | N3: = | O3: =IF(RIGHT(TEXT(VLOOKUP(K3,'SYSTEM FORMULAE'!$A$1:$G$2560,6),"# ##0.###"),1)=".",LEFT(TEXT(VLOOKUP(K3,'SYSTEM FORMULAE'!$A$1:$G$2560,6),"# ##0.###"),LEN(TEXT(VLOOKUP(K3,'SYSTEM FORMULAE'!$A$1:$G$2560,6),"# ##0.###"))-1),TEXT(VLOOKUP(K3,'SYSTEM FORMULAE'!$A$1:$G$2560,6),"# ##0.###")) -> 9 | P3: =VLOOKUP(K3,'SYSTEM FORMULAE'!$A$1:$G$2560,7) -> litres | R3: =IF(ROW()<=Worksheet!$D$4/3,R2+1,"") -> 23 | S3: =RANDBETWEEN(1,MAX('SYSTEM FORMULAE'!$A$1:$A$2560)) -> 1301 | T3: =IF(RIGHT(TEXT(VLOOKUP(S3,'SYSTEM FORMULAE'!$A$1:$G$2560,3),"# ##0.###"),1)=".",LEFT(TEXT(VLOOKUP(S3,'SYSTEM FORMULAE'!$A$1:$G$2560,3),"# ##0.###"),LEN(TEXT(VLOOKUP(S3,'SYSTEM FORMULAE'!$A$1:$G$2560,3),"# ##0.###"))-1),TEXT(VLOOKUP(S3,'SYSTEM FORMULAE'!$A$1:$G$2560,3),"# ##0.###")) -> 57 000 | U3: =VLOOKUP(S3,'SYSTEM FORMULAE'!$A$1:$G$2560,4) -> kg | V3: = | W3: =IF(RIGHT(TEXT(VLOOKUP(S3,'SYSTEM FORMULAE'!$A$1:$G$2560,6),"# ##0.###"),1)=".",LEFT(TEXT(VLOOKUP(S3,'SYSTEM FORMULAE'!$A$1:$G$2560,6),"# ##0.###"),LEN(TEXT(VLOOKUP(S3,'SYSTEM FORMULAE'!$A$1:$G$2560,6),"# ##0.###"))-1),TEXT(VLOOKUP(S3,'SYSTEM FORMULAE'!$A$1:$G$2560,6),"# ##0.###")) -> 57 | X3: =VLOOKUP(S3,'SYSTEM FORMULAE'!$A$1:$G$2560,7) -> tonnes | Z3: =IF(ROW()<=Worksheet!$D$4/3,Z2+1,"") -> 43 | AA3: =RANDBETWEEN(1,MAX('SYSTEM FORMULAE'!$A$1:$A$2560)) -> 755 | AB3: =IF(RIGHT(TEXT(VLOOKUP(AA3,'SYSTEM FORMULAE'!$A$1:$G$2560,3),"# ##0.###"),1)=".",LEFT(TEXT(VLOOKUP(AA3,'SYSTEM FORMULAE'!$A$1:$G$2560,3),"# ##0.###"),LEN(TEXT(VLOOKUP(AA3,'SYSTEM FORMULAE'!$A$1:$G$2560,3),"# ##0.###"))-1),TEXT(VLOOKUP(AA3,'SYSTEM FORMULAE'!$A$1:$G$2560,3),"# ##0.###")) -> 88 | AC3: =VLOOKUP(AA3,'SYSTEM FORMULAE'!$A$1:$G$2560,4) -> tonnes | AD3: = | AE3: =IF(RIGHT(TEXT(VLOOKUP(AA3,'SYSTEM FORMULAE'!$A$1:$G$2560,6),"# ##0.###"),1)=".",LEFT(TEXT(VLOOKUP(AA3,'SYSTEM FORMULAE'!$A$1:$G$2560,6),"# ##0.###"),LEN(TEXT(VLOOKUP(AA3,'SYSTEM FORMULAE'!$A$1:$G$2560,6),"# ##0.###"))-1),TEXT(VLOOKUP(AA3,'SYSTEM FORMULAE'!$A$1:$G$2560,6),"# ##0.###")) -> 88 000 | AF3: =VLOOKUP(AA3,'SYSTEM FORMULAE'!$A$1:$G$2560,7) -> kg | AI3: Bigger unit is always on right
A4: =IF(COUNTIF($B$1:B4,TRUE)=COUNTIF($B$1:B3,TRUE),"",COUNTIF($B$1:B4,TRUE)) ->  | B4: =IF(Worksheet!$D$10=2,FALSE,Worksheet!$B$17) -> FALSE | C4: =1000*F4 -> 53000 | D4: mm | E4: = | F4: =IF(Worksheet!$D$6=1,RANDBETWEEN(1,99),IF(Worksheet!$D$6=2,CHOOSE(RANDBETWEEN(1,2),RANDBETWEEN(1,99),RANDBETWEEN(1,999)/10),CHOOSE(RANDBETWEEN(1,4),RANDBETWEEN(1,99999)/1000,RANDBETWEEN(1,9999)/100,RANDBETWEEN(1,999)/10,RANDBETWEEN(1,99)))) -> 53 | G4: m | J4: =IF(ROW()<=Worksheet!$D$4/3,ROW(),"") -> 4 | K4: =RANDBETWEEN(1,MAX('SYSTEM FORMULAE'!$A$1:$A$2560)) -> 470 | L4: =IF(RIGHT(TEXT(VLOOKUP(K4,'SYSTEM FORMULAE'!$A$1:$G$2560,3),"# ##0.###"),1)=".",LEFT(TEXT(VLOOKUP(K4,'SYSTEM FORMULAE'!$A$1:$G$2560,3),"# ##0.###"),LEN(TEXT(VLOOKUP(K4,'SYSTEM FORMULAE'!$A$1:$G$2560,3),"# ##0.###"))-1),TEXT(VLOOKUP(K4,'SYSTEM FORMULAE'!$A$1:$G$2560,3),"# ##0.###")) -> 2 600 | M4: =VLOOKUP(K4,'SYSTEM FORMULAE'!$A$1:$G$2560,4) -> cm | N4: = | O4: =IF(RIGHT(TEXT(VLOOKUP(K4,'SYSTEM FORMULAE'!$A$1:$G$2560,6),"# ##0.###"),1)=".",LEFT(TEXT(VLOOKUP(K4,'SYSTEM FORMULAE'!$A$1:$G$2560,6),"# ##0.###"),LEN(TEXT(VLOOKUP(K4,'SYSTEM FORMULAE'!$A$1:$G$2560,6),"# ##0.###"))-1),TEXT(VLOOKUP(K4,'SYSTEM FORMULAE'!$A$1:$G$2560,6),"# ##0.###")) -> 26 | P4: =VLOOKUP(K4,'SYSTEM FORMULAE'!$A$1:$G$2560,7) -> m | R4: =IF(ROW()<=Worksheet!$D$4/3,R3+1,"") -> 24 | S4: =RANDBETWEEN(1,MAX('SYSTEM FORMULAE'!$A$1:$A$2560)) -> 1315 | T4: =IF(RIGHT(TEXT(VLOOKUP(S4,'SYSTEM FORMULAE'!$A$1:$G$2560,3),"# ##0.###"),1)=".",LEFT(TEXT(VLOOKUP(S4,'SYSTEM FORMULAE'!$A$1:$G$2560,3),"# ##0.###"),LEN(TEXT(VLOOKUP(S4,'SYSTEM FORMULAE'!$A$1:$G$2560,3),"# ##0.###"))-1),TEXT(VLOOKUP(S4,'SYSTEM FORMULAE'!$A$1:$G$2560,3),"# ##0.###")) -> 94 | U4: =VLOOKUP(S4,'SYSTEM FORMULAE'!$A$1:$G$2560,4) -> cm | V4: = | W4: =IF(RIGHT(TEXT(VLOOKUP(S4,'SYSTEM FORMULAE'!$A$1:$G$2560,6),"# ##0.###"),1)=".",LEFT(TEXT(VLOOKUP(S4,'SYSTEM FORMULAE'!$A$1:$G$2560,6),"# ##0.###"),LEN(TEXT(VLOOKUP(S4,'SYSTEM FORMULAE'!$A$1:$G$2560,6),"# ##0.###"))-1),TEXT(VLOOKUP(S4,'SYSTEM FORMULAE'!$A$1:$G$2560,6),"# ##0.###")) -> 940 | X4: =VLOOKUP(S4,'SYSTEM FORMULAE'!$A$1:$G$2560,7) -> mm | Z4: =IF(ROW()<=Worksheet!$D$4/3,Z3+1,"") -> 44 | AA4: =RANDBETWEEN(1,MAX('SYSTEM FORMULAE'!$A$1:$A$2560)) -> 1360 | AB4: =IF(RIGHT(TEXT(VLOOKUP(AA4,'SYSTEM FORMULAE'!$A$1:$G$2560,3),"# ##0.###"),1)=".",LEFT(TEXT(VLOOKUP(AA4,'SYSTEM FORMULAE'!$A$1:$G$2560,3),"# ##0.###"),LEN(TEXT(VLOOKUP(AA4,'SYSTEM FORMULAE'!$A$1:$G$2560,3),"# ##0.###"))-1),TEXT(VLOOKUP(AA4,'SYSTEM FORMULAE'!$A$1:$G$2560,3),"# ##0.###")) -> 5 000 | AC4: =VLOOKUP(AA4,'SYSTEM FORMULAE'!$A$1:$G$2560,4) -> g | AD4: = | AE4: =IF(RIGHT(TEXT(VLOOKUP(AA4,'SYSTEM FORMULAE'!$A$1:$G$2560,6),"# ##0.###"),1)=".",LEFT(TEXT(VLOOKUP(AA4,'SYSTEM FORMULAE'!$A$1:$G$2560,6),"# ##0.###"),LEN(TEXT(VLOOKUP(AA4,'SYSTEM FORMULAE'!$A$1:$G$2560,6),"# ##0.###"))-1),TEXT(VLOOKUP(AA4,'SYSTEM FORMULAE'!$A$1:$G$2560,6),"# ##0.###")) -> 5 | AF4: =VLOOKUP(AA4,'SYSTEM FORMULAE'!$A$1:$G$2560,7) -> kg
A5: =IF(COUNTIF($B$1:B5,TRUE)=COUNTIF($B$1:B4,TRUE),"",COUNTIF($B$1:B5,TRUE)) ->  | B5: =IF(Worksheet!$D$10=2,FALSE,Worksheet!$B$18) -> FALSE | C5: =100*F5 -> 400 | D5: mm² | E5: = | F5: =IF(Worksheet!$D$6=1,RANDBETWEEN(1,99),IF(Worksheet!$D$6=2,CHOOSE(RANDBETWEEN(1,2),RANDBETWEEN(1,99),RANDBETWEEN(1,999)/10),CHOOSE(RANDBETWEEN(1,4),RANDBETWEEN(1,99999)/1000,RANDBETWEEN(1,9999)/100,RANDBETWEEN(1,999)/10,RANDBETWEEN(1,99)))) -> 4 | G5: cm² | J5: =IF(ROW()<=Worksheet!$D$4/3,ROW(),"") -> 5 | K5: =RANDBETWEEN(1,MAX('SYSTEM FORMULAE'!$A$1:$A$2560)) -> 1399 | L5: =IF(RIGHT(TEXT(VLOOKUP(K5,'SYSTEM FORMULAE'!$A$1:$G$2560,3),"# ##0.###"),1)=".",LEFT(TEXT(VLOOKUP(K5,'SYSTEM FORMULAE'!$A$1:$G$2560,3),"# ##0.###"),LEN(TEXT(VLOOKUP(K5,'SYSTEM FORMULAE'!$A$1:$G$2560,3),"# ##0.###"))-1),TEXT(VLOOKUP(K5,'SYSTEM FORMULAE'!$A$1:$G$2560,3),"# ##0.###")) -> 91 | M5: =VLOOKUP(K5,'SYSTEM FORMULAE'!$A$1:$G$2560,4) -> cm | N5: = | O5: =IF(RIGHT(TEXT(VLOOKUP(K5,'SYSTEM FORMULAE'!$A$1:$G$2560,6),"# ##0.###"),1)=".",LEFT(TEXT(VLOOKUP(K5,'SYSTEM FORMULAE'!$A$1:$G$2560,6),"# ##0.###"),LEN(TEXT(VLOOKUP(K5,'SYSTEM FORMULAE'!$A$1:$G$2560,6),"# ##0.###"))-1),TEXT(VLOOKUP(K5,'SYSTEM FORMULAE'!$A$1:$G$2560,6),"# ##0.###")) -> 910 | P5: =VLOOKUP(K5,'SYSTEM FORMULAE'!$A$1:$G$2560,7) -> mm | R5: =IF(ROW()<=Worksheet!$D$4/3,R4+1,"") -> 25 | S5: =RANDBETWEEN(1,MAX('SYSTEM FORMULAE'!$A$1:$A$2560)) -> 320 | T5: =IF(RIGHT(TEXT(VLOOKUP(S5,'SYSTEM FORMULAE'!$A$1:$G$2560,3),"# ##0.###"),1)=".",LEFT(TEXT(VLOOKUP(S5,'SYSTEM FORMULAE'!$A$1:$G$2560,3),"# ##0.###"),LEN(TEXT(VLOOKUP(S5,'SYSTEM FORMULAE'!$A$1:$G$2560,3),"# ##0.###"))-1),TEXT(VLOOKUP(S5,'SYSTEM FORMULAE'!$A$1:$G$2560,3),"# ##0.###")) -> 99 | U5: =VLOOKUP(S5,'SYSTEM FORMULAE'!$A$1:$G$2560,4) -> m | V5: = | W5: =IF(RIGHT(TEXT(VLOOKUP(S5,'SYSTEM FORMULAE'!$A$1:$G$2560,6),"# ##0.###"),1)=".",LEFT(TEXT(VLOOKUP(S5,'SYSTEM FORMULAE'!$A$1:$G$2560,6),"# ##0.###"),LEN(TEXT(VLOOKUP(S5,'SYSTEM FORMULAE'!$A$1:$G$2560,6),"# ##0.###"))-1),TEXT(VLOOKUP(S5,'SYSTEM FORMULAE'!$A$1:$G$2560,6),"# ##0.###")) -> 9 900 | X5: =VLOOKUP(S5,'SYSTEM FORMULAE'!$A$1:$G$2560,7) -> cm | Z5: =IF(ROW()<=Worksheet!$D$4/3,Z4+1,"") -> 45 | AA5: =RANDBETWEEN(1,MAX('SYSTEM FORMULAE'!$A$1:$A$2560)) -> 812 | AB5: =IF(RIGHT(TEXT(VLOOKUP(AA5,'SYSTEM FORMULAE'!$A$1:$G$2560,3),"# ##0.###"),1)=".",LEFT(TEXT(VLOOKUP(AA5,'SYSTEM FORMULAE'!$A$1:$G$2560,3),"# ##0.###"),LEN(TEXT(VLOOKUP(AA5,'SYSTEM FORMULAE'!$A$1:$G$2560,3),"# ##0.###"))-1),TEXT(VLOOKUP(AA5,'SYSTEM FORMULAE'!$A$1:$G$2560,3),"# ##0.###")) -> 50 | AC5: =VLOOKUP(AA5,'SYSTEM FORMULAE'!$A$1:$G$2560,4) -> m | AD5: = | AE5: =IF(RIGHT(TEXT(VLOOKUP(AA5,'SYSTEM FORMULAE'!$A$1:$G$2560,6),"# ##0.###"),1)=".",LEFT(TEXT(VLOOKUP(AA5,'SYSTEM FORMULAE'!$A$1:$G$2560,6),"# ##0.###"),LEN(TEXT(VLOOKUP(AA5,'SYSTEM FORMULAE'!$A$1:$G$2560,6),"# ##0.###"))-1),TEXT(VLOOKUP(AA5,'SYSTEM FORMULAE'!$A$1:$G$2560,6),"# ##0.###")) -> 5 000 | AF5: =VLOOKUP(AA5,'SYSTEM FORMULAE'!$A$1:$G$2560,7) -> cm
A6: =IF(COUNTIF($B$1:B6,TRUE)=COUNTIF($B$1:B5,TRUE),"",COUNTIF($B$1:B6,TRUE)) -> 4 | B6: =IF(Worksheet!$D$10=2,FALSE,Worksheet!$D$14) -> TRUE | C6: =F6*1000 -> 38000 | D6: g | E6: = | F6: =IF(Worksheet!$D$6=1,RANDBETWEEN(1,99),IF(Worksheet!$D$6=2,CHOOSE(RANDBETWEEN(1,2),RANDBETWEEN(1,99),RANDBETWEEN(1,999)/10),CHOOSE(RANDBETWEEN(1,4),RANDBETWEEN(1,99999)/1000,RANDBETWEEN(1,9999)/100,RANDBETWEEN(1,999)/10,RANDBETWEEN(1,99)))) -> 38 | G6: kg | J6: =IF(ROW()<=Worksheet!$D$4/3,ROW(),"") -> 6 | K6: =RANDBETWEEN(1,MAX('SYSTEM FORMULAE'!$A$1:$A$2560)) -> 1206 | L6: =IF(RIGHT(TEXT(VLOOKUP(K6,'SYSTEM FORMULAE'!$A$1:$G$2560,3),"# ##0.###"),1)=".",LEFT(TEXT(VLOOKUP(K6,'SYSTEM FORMULAE'!$A$1:$G$2560,3),"# ##0.###"),LEN(TEXT(VLOOKUP(K6,'SYSTEM FORMULAE'!$A$1:$G$2560,3),"# ##0.###"))-1),TEXT(VLOOKUP(K6,'SYSTEM FORMULAE'!$A$1:$G$2560,3),"# ##0.###")) -> 36 000 | M6: =VLOOKUP(K6,'SYSTEM FORMULAE'!$A$1:$G$2560,4) -> ml | N6: = | O6: =IF(RIGHT(TEXT(VLOOKUP(K6,'SYSTEM FORMULAE'!$A$1:$G$2560,6),"# ##0.###"),1)=".",LEFT(TEXT(VLOOKUP(K6,'SYSTEM FORMULAE'!$A$1:$G$2560,6),"# ##0.###"),LEN(TEXT(VLOOKUP(K6,'SYSTEM FORMULAE'!$A$1:$G$2560,6),"# ##0.###"))-1),TEXT(VLOOKUP(K6,'SYSTEM FORMULAE'!$A$1:$G$2560,6),"# ##0.###")) -> 36 | P6: =VLOOKUP(K6,'SYSTEM FORMULAE'!$A$1:$G$2560,7) -> litres | R6: =IF(ROW()<=Worksheet!$D$4/3,R5+1,"") -> 26 | S6: =RANDBETWEEN(1,MAX('SYSTEM FORMULAE'!$A$1:$A$2560)) -> 575 | T6: =IF(RIGHT(TEXT(VLOOKUP(S6,'SYSTEM FORMULAE'!$A$1:$G$2560,3),"# ##0.###"),1)=".",LEFT(TEXT(VLOOKUP(S6,'SYSTEM FORMULAE'!$A$1:$G$2560,3),"# ##0.###"),LEN(TEXT(VLOOKUP(S6,'SYSTEM FORMULAE'!$A$1:$G$2560,3),"# ##0.###"))-1),TEXT(VLOOKUP(S6,'SYSTEM FORMULAE'!$A$1:$G$2560,3),"# ##0.###")) -> 94 | U6: =VLOOKUP(S6,'SYSTEM FORMULAE'!$A$1:$G$2560,4) -> tonnes | V6: = | W6: =IF(RIGHT(TEXT(VLOOKUP(S6,'SYSTEM FORMULAE'!$A$1:$G$2560,6),"# ##0.###"),1)=".",LEFT(TEXT(VLOOKUP(S6,'SYSTEM FORMULAE'!$A$1:$G$2560,6),"# ##0.###"),LEN(TEXT(VLOOKUP(S6,'SYSTEM FORMULAE'!$A$1:$G$2560,6),"# ##0.###"))-1),TEXT(VLOOKUP(S6,'SYSTEM FORMULAE'!$A$1:$G$2560,6),"# ##0.###")) -> 94 000 | X6: =VLOOKUP(S6,'SYSTEM FORMULAE'!$A$1:$G$2560,7) -> kg | Z6: =IF(ROW()<=Worksheet!$D$4/3,Z5+1,"") -> 46 | AA6: =RANDBETWEEN(1,MAX('SYSTEM FORMULAE'!$A$1:$A$2560)) -> 426 | AB6: =IF(RIGHT(TEXT(VLOOKUP(AA6,'SYSTEM FORMULAE'!$A$1:$G$2560,3),"# ##0.###"),1)=".",LEFT(TEXT(VLOOKUP(AA6,'SYSTEM FORMULAE'!$A$1:$G$2560,3),"# ##0.###"),LEN(TEXT(VLOOKUP(AA6,'SYSTEM FORMULAE'!$A$1:$G$2560,3),"# ##0.###"))-1),TEXT(VLOOKUP(AA6,'SYSTEM FORMULAE'!$A$1:$G$2560,3),"# ##0.###")) -> 45 000 | AC6: =VLOOKUP(AA6,'SYSTEM FORMULAE'!$A$1:$G$2560,4) -> ml | AD6: = | AE6: =IF(RIGHT(TEXT(VLOOKUP(AA6,'SYSTEM FORMULAE'!$A$1:$G$2560,6),"# ##0.###"),1)=".",LEFT(TEXT(VLOOKUP(AA6,'SYSTEM FORMULAE'!$A$1:$G$2560,6),"# ##0.###"),LEN(TEXT(VLOOKUP(AA6,'SYSTEM FORMULAE'!$A$1:$G$2560,6),"# ##0.###"))-1),TEXT(VLOOKUP(AA6,'SYSTEM FORMULAE'!$A$1:$G$2560,6),"# ##0.###")) -> 45 | AF6: =VLOOKUP(AA6,'SYSTEM FORMULAE'!$A$1:$G$2560,7) -> litres
A7: =IF(COUNTIF($B$1:B7,TRUE)=COUNTIF($B$1:B6,TRUE),"",COUNTIF($B$1:B7,TRUE)) -> 5 | B7: =IF(Worksheet!$D$10=2,FALSE,Worksheet!$D$15) -> TRUE | C7: =F7*1000 -> 33000 | D7: kg | E7: = | F7: =IF(Worksheet!$D$6=1,RANDBETWEEN(1,99),IF(Worksheet!$D$6=2,CHOOSE(RANDBETWEEN(1,2),RANDBETWEEN(1,99),RANDBETWEEN(1,999)/10),CHOOSE(RANDBETWEEN(1,4),RANDBETWEEN(1,99999)/1000,RANDBETWEEN(1,9999)/100,RANDBETWEEN(1,999)/10,RANDBETWEEN(1,99)))) -> 33 | G7: tonnes | J7: =IF(ROW()<=Worksheet!$D$4/3,ROW(),"") -> 7 | K7: =RANDBETWEEN(1,MAX('SYSTEM FORMULAE'!$A$1:$A$2560)) -> 727 | L7: =IF(RIGHT(TEXT(VLOOKUP(K7,'SYSTEM FORMULAE'!$A$1:$G$2560,3),"# ##0.###"),1)=".",LEFT(TEXT(VLOOKUP(K7,'SYSTEM FORMULAE'!$A$1:$G$2560,3),"# ##0.###"),LEN(TEXT(VLOOKUP(K7,'SYSTEM FORMULAE'!$A$1:$G$2560,3),"# ##0.###"))-1),TEXT(VLOOKUP(K7,'SYSTEM FORMULAE'!$A$1:$G$2560,3),"# ##0.###")) -> 44 | M7: =VLOOKUP(K7,'SYSTEM FORMULAE'!$A$1:$G$2560,4) -> cm | N7: = | O7: =IF(RIGHT(TEXT(VLOOKUP(K7,'SYSTEM FORMULAE'!$A$1:$G$2560,6),"# ##0.###"),1)=".",LEFT(TEXT(VLOOKUP(K7,'SYSTEM FORMULAE'!$A$1:$G$2560,6),"# ##0.###"),LEN(TEXT(VLOOKUP(K7,'SYSTEM FORMULAE'!$A$1:$G$2560,6),"# ##0.###"))-1),TEXT(VLOOKUP(K7,'SYSTEM FORMULAE'!$A$1:$G$2560,6),"# ##0.###")) -> 440 | P7: =VLOOKUP(K7,'SYSTEM FORMULAE'!$A$1:$G$2560,7) -> mm | R7: =IF(ROW()<=Worksheet!$D$4/3,R6+1,"") -> 27 | S7: =RANDBETWEEN(1,MAX('SYSTEM FORMULAE'!$A$1:$A$2560)) -> 1203 | T7: =IF(RIGHT(TEXT(VLOOKUP(S7,'SYSTEM FORMULAE'!$A$1:$G$2560,3),"# ##0.###"),1)=".",LEFT(TEXT(VLOOKUP(S7,'SYSTEM FORMULAE'!$A$1:$G$2560,3),"# ##0.###"),LEN(TEXT(VLOOKUP(S7,'SYSTEM FORMULAE'!$A$1:$G$2560,3),"# ##0.###"))-1),TEXT(VLOOKUP(S7,'SYSTEM FORMULAE'!$A$1:$G$2560,3),"# ##0.###")) -> 43 000 | U7: =VLOOKUP(S7,'SYSTEM FORMULAE'!$A$1:$G$2560,4) -> m | V7: = | W7: =IF(RIGHT(TEXT(VLOOKUP(S7,'SYSTEM FORMULAE'!$A$1:$G$2560,6),"# ##0.###"),1)=".",LEFT(TEXT(VLOOKUP(S7,'SYSTEM FORMULAE'!$A$1:$G$2560,6),"# ##0.###"),LEN(TEXT(VLOOKUP(S7,'SYSTEM FORMULAE'!$A$1:$G$2560,6),"# ##0.###"))-1),TEXT(VLOOKUP(S7,'SYSTEM FORMULAE'!$A$1:$G$2560,6),"# ##0.###")) -> 43 | X7: =VLOOKUP(S7,'SYSTEM FORMULAE'!$A$1:$G$2560,7) -> km | Z7: =IF(ROW()<=Worksheet!$D$4/3,Z6+1,"") -> 47 | AA7: =RANDBETWEEN(1,MAX('SYSTEM FORMULAE'!$A$1:$A$2560)) -> 865 | AB7: =IF(RIGHT(TEXT(VLOOKUP(AA7,'SYSTEM FORMULAE'!$A$1:$G$2560,3),"# ##0.###"),1)=".",LEFT(TEXT(VLOOKUP(AA7,'SYSTEM FORMULAE'!$A$1:$G$2560,3),"# ##0.###"),LEN(TEXT(VLOOKUP(AA7,'SYSTEM FORMULAE'!$A$1:$G$2560,3),"# ##0.###"))-1),TEXT(VLOOKUP(AA7,'SYSTEM FORMULAE'!$A$1:$G$2560,3),"# ##0.###")) -> 540 | AC7: =VLOOKUP(AA7,'SYSTEM FORMULAE'!$A$1:$G$2560,4) -> mm | AD7: = | AE7: =IF(RIGHT(TEXT(VLOOKUP(AA7,'SYSTEM FORMULAE'!$A$1:$G$2560,6),"# ##0.###"),1)=".",LEFT(TEXT(VLOOKUP(AA7,'SYSTEM FORMULAE'!$A$1:$G$2560,6),"# ##0.###"),LEN(TEXT(VLOOKUP(AA7,'SYSTEM FORMULAE'!$A$1:$G$2560,6),"# ##0.###"))-1),TEXT(VLOOKUP(AA7,'SYSTEM FORMULAE'!$A$1:$G$2560,6),"# ##0.###")) -> 54 | AF7: =VLOOKUP(AA7,'SYSTEM FORMULAE'!$A$1:$G$2560,7) -> cm
A8: =IF(COUNTIF($B$1:B8,TRUE)=COUNTIF($B$1:B7,TRUE),"",COUNTIF($B$1:B8,TRUE)) -> 6 | B8: =IF(Worksheet!$D$10=2,FALSE,Worksheet!$D$16) -> TRUE | C8: =1000*F8 -> 90000 | D8: ml | E8: = | F8: =IF(Worksheet!$D$6=1,RANDBETWEEN(1,99),IF(Worksheet!$D$6=2,CHOOSE(RANDBETWEEN(1,2),RANDBETWEEN(1,99),RANDBETWEEN(1,999)/10),CHOOSE(RANDBETWEEN(1,4),RANDBETWEEN(1,99999)/1000,RANDBETWEEN(1,9999)/100,RANDBETWEEN(1,999)/10,RANDBETWEEN(1,99)))) -> 90 | G8: litres | J8: =IF(ROW()<=Worksheet!$D$4/3,ROW(),"") -> 8 | K8: =RANDBETWEEN(1,MAX('SYSTEM FORMULAE'!$A$1:$A$2560)) -> 224 | L8: =IF(RIGHT(TEXT(VLOOKUP(K8,'SYSTEM FORMULAE'!$A$1:$G$2560,3),"# ##0.###"),1)=".",LEFT(TEXT(VLOOKUP(K8,'SYSTEM FORMULAE'!$A$1:$G$2560,3),"# ##0.###"),LEN(TEXT(VLOOKUP(K8,'SYSTEM FORMULAE'!$A$1:$G$2560,3),"# ##0.###"))-1),TEXT(VLOOKUP(K8,'SYSTEM FORMULAE'!$A$1:$G$2560,3),"# ##0.###")) -> 68 | M8: =VLOOKUP(K8,'SYSTEM FORMULAE'!$A$1:$G$2560,4) -> m | N8: = | O8: =IF(RIGHT(TEXT(VLOOKUP(K8,'SYSTEM FORMULAE'!$A$1:$G$2560,6),"# ##0.###"),1)=".",LEFT(TEXT(VLOOKUP(K8,'SYSTEM FORMULAE'!$A$1:$G$2560,6),"# ##0.###"),LEN(TEXT(VLOOKUP(K8,'SYSTEM FORMULAE'!$A$1:$G$2560,6),"# ##0.###"))-1),TEXT(VLOOKUP(K8,'SYSTEM FORMULAE'!$A$1:$G$2560,6),"# ##0.###")) -> 6 800 | P8: =VLOOKUP(K8,'SYSTEM FORMULAE'!$A$1:$G$2560,7) -> cm | R8: =IF(ROW()<=Worksheet!$D$4/3,R7+1,"") -> 28 | S8: =RANDBETWEEN(1,MAX('SYSTEM FORMULAE'!$A$1:$A$2560)) -> 980 | T8: =IF(RIGHT(TEXT(VLOOKUP(S8,'SYSTEM FORMULAE'!$A$1:$G$2560,3),"# ##0.###"),1)=".",LEFT(TEXT(VLOOKUP(S8,'SYSTEM FORMULAE'!$A$1:$G$2560,3),"# ##0.###"),LEN(TEXT(VLOOKUP(S8,'SYSTEM FORMULAE'!$A$1:$G$2560,3),"# ##0.###"))-1),TEXT(VLOOKUP(S8,'SYSTEM FORMULAE'!$A$1:$G$2560,3),"# ##0.###")) -> 66 | U8: =VLOOKUP(S8,'SYSTEM FORMULAE'!$A$1:$G$2560,4) -> m | V8: = | W8: =IF(RIGHT(TEXT(VLOOKUP(S8,'SYSTEM FORMULAE'!$A$1:$G$2560,6),"# ##0.###"),1)=".",LEFT(TEXT(VLOOKUP(S8,'SYSTEM FORMULAE'!$A$1:$G$2560,6),"# ##0.###"),LEN(TEXT(VLOOKUP(S8,'SYSTEM FORMULAE'!$A$1:$G$2560,6),"# ##0.###"))-1),TEXT(VLOOKUP(S8,'SYSTEM FORMULAE'!$A$1:$G$2560,6),"# ##0.###")) -> 6 600 | X8: =VLOOKUP(S8,'SYSTEM FORMULAE'!$A$1:$G$2560,7) -> cm | Z8: =IF(ROW()<=Worksheet!$D$4/3,Z7+1,"") -> 48 | AA8: =RANDBETWEEN(1,MAX('SYSTEM FORMULAE'!$A$1:$A$2560)) -> 174 | AB8: =IF(RIGHT(TEXT(VLOOKUP(AA8,'SYSTEM FORMULAE'!$A$1:$G$2560,3),"# ##0.###"),1)=".",LEFT(TEXT(VLOOKUP(AA8,'SYSTEM FORMULAE'!$A$1:$G$2560,3),"# ##0.###"),LEN(TEXT(VLOOKUP(AA8,'SYSTEM FORMULAE'!$A$1:$G$2560,3),"# ##0.###"))-1),TEXT(VLOOKUP(AA8,'SYSTEM FORMULAE'!$A$1:$G$2560,3),"# ##0.###")) -> 49 000 | AC8: =VLOOKUP(AA8,'SYSTEM FORMULAE'!$A$1:$G$2560,4) -> ml | AD8: = | AE8: =IF(RIGHT(TEXT(VLOOKUP(AA8,'SYSTEM FORMULAE'!$A$1:$G$2560,6),"# ##0.###"),1)=".",LEFT(TEXT(VLOOKUP(AA8,'SYSTEM FORMULAE'!$A$1:$G$2560,6),"# ##0.###"),LEN(TEXT(VLOOKUP(AA8,'SYSTEM FORMULAE'!$A$1:$G$2560,6),"# ##0.###"))-1),TEXT(VLOOKUP(AA8,'SYSTEM FORMULAE'!$A$1:$G$2560,6),"# ##0.###")) -> 49 | AF8: =VLOOKUP(AA8,'SYSTEM FORMULAE'!$A$1:$G$2560,7) -> litres
A9: =IF(COUNTIF($B$1:B9,TRUE)=COUNTIF($B$1:B8,TRUE),"",COUNTIF($B$1:B9,TRUE)) ->  | B9: =IF(Worksheet!$D$10=2,FALSE,Worksheet!$D$17) -> FALSE | C9: =1000*F9 -> 34000 | D9: cm³ | E9: = | F9: =IF(Worksheet!$D$6=1,RANDBETWEEN(1,99),IF(Worksheet!$D$6=2,CHOOSE(RANDBETWEEN(1,2),RANDBETWEEN(1,99),RANDBETWEEN(1,999)/10),CHOOSE(RANDBETWEEN(1,4),RANDBETWEEN(1,99999)/1000,RANDBETWEEN(1,9999)/100,RANDBETWEEN(1,999)/10,RANDBETWEEN(1,99)))) -> 34 | G9: litres | J9: =IF(ROW()<=Worksheet!$D$4/3,ROW(),"") -> 9 | K9: =RANDBETWEEN(1,MAX('SYSTEM FORMULAE'!$A$1:$A$2560)) -> 545 | L9: =IF(RIGHT(TEXT(VLOOKUP(K9,'SYSTEM FORMULAE'!$A$1:$G$2560,3),"# ##0.###"),1)=".",LEFT(TEXT(VLOOKUP(K9,'SYSTEM FORMULAE'!$A$1:$G$2560,3),"# ##0.###"),LEN(TEXT(VLOOKUP(K9,'SYSTEM FORMULAE'!$A$1:$G$2560,3),"# ##0.###"))-1),TEXT(VLOOKUP(K9,'SYSTEM FORMULAE'!$A$1:$G$2560,3),"# ##0.###")) -> 38 000 | M9: =VLOOKUP(K9,'SYSTEM FORMULAE'!$A$1:$G$2560,4) -> kg | N9: = | O9: =IF(RIGHT(TEXT(VLOOKUP(K9,'SYSTEM FORMULAE'!$A$1:$G$2560,6),"# ##0.###"),1)=".",LEFT(TEXT(VLOOKUP(K9,'SYSTEM FORMULAE'!$A$1:$G$2560,6),"# ##0.###"),LEN(TEXT(VLOOKUP(K9,'SYSTEM FORMULAE'!$A$1:$G$2560,6),"# ##0.###"))-1),TEXT(VLOOKUP(K9,'SYSTEM FORMULAE'!$A$1:$G$2560,6),"# ##0.###")) -> 38 | P9: =VLOOKUP(K9,'SYSTEM FORMULAE'!$A$1:$G$2560,7) -> tonnes | R9: =IF(ROW()<=Worksheet!$D$4/3,R8+1,"") -> 29 | S9: =RANDBETWEEN(1,MAX('SYSTEM FORMULAE'!$A$1:$A$2560)) -> 31 | T9: =IF(RIGHT(TEXT(VLOOKUP(S9,'SYSTEM FORMULAE'!$A$1:$G$2560,3),"# ##0.###"),1)=".",LEFT(TEXT(VLOOKUP(S9,'SYSTEM FORMULAE'!$A$1:$G$2560,3),"# ##0.###"),LEN(TEXT(VLOOKUP(S9,'SYSTEM FORMULAE'!$A$1:$G$2560,3),"# ##0.###"))-1),TEXT(VLOOKUP(S9,'SYSTEM FORMULAE'!$A$1:$G$2560,3),"# ##0.###")) -> 55 | U9: =VLOOKUP(S9,'SYSTEM FORMULAE'!$A$1:$G$2560,4) -> cm | V9: = | W9: =IF(RIGHT(TEXT(VLOOKUP(S9,'SYSTEM FORMULAE'!$A$1:$G$2560,6),"# ##0.###"),1)=".",LEFT(TEXT(VLOOKUP(S9,'SYSTEM FORMULAE'!$A$1:$G$2560,6),"# ##0.###"),LEN(TEXT(VLOOKUP(S9,'SYSTEM FORMULAE'!$A$1:$G$2560,6),"# ##0.###"))-1),TEXT(VLOOKUP(S9,'SYSTEM FORMULAE'!$A$1:$G$2560,6),"# ##0.###")) -> 550 | X9: =VLOOKUP(S9,'SYSTEM FORMULAE'!$A$1:$G$2560,7) -> mm | Z9: =IF(ROW()<=Worksheet!$D$4/3,Z8+1,"") -> 49 | AA9: =RANDBETWEEN(1,MAX('SYSTEM FORMULAE'!$A$1:$A$2560)) -> 403 | AB9: =IF(RIGHT(TEXT(VLOOKUP(AA9,'SYSTEM FORMULAE'!$A$1:$G$2560,3),"# ##0.###"),1)=".",LEFT(TEXT(VLOOKUP(AA9,'SYSTEM FORMULAE'!$A$1:$G$2560,3),"# ##0.###"),LEN(TEXT(VLOOKUP(AA9,'SYSTEM FORMULAE'!$A$1:$G$2560,3),"# ##0.###"))-1),TEXT(VLOOKUP(AA9,'SYSTEM FORMULAE'!$A$1:$G$2560,3),"# ##0.###")) -> 91 | AC9: =VLOOKUP(AA9,'SYSTEM FORMULAE'!$A$1:$G$2560,4) -> cm | AD9: = | AE9: =IF(RIGHT(TEXT(VLOOKUP(AA9,'SYSTEM FORMULAE'!$A$1:$G$2560,6),"# ##0.###"),1)=".",LEFT(TEXT(VLOOKUP(AA9,'SYSTEM FORMULAE'!$A$1:$G$2560,6),"# ##0.###"),LEN(TEXT(VLOOKUP(AA9,'SYSTEM FORMULAE'!$A$1:$G$2560,6),"# ##0.###"))-1),TEXT(VLOOKUP(AA9,'SYSTEM FORMULAE'!$A$1:$G$2560,6),"# ##0.###")) -> 910 | AF9: =VLOOKUP(AA9,'SYSTEM FORMULAE'!$A$1:$G$2560,7) -> mm
A10: =IF(COUNTIF($B$1:B10,TRUE)=COUNTIF($B$1:B9,TRUE),"",COUNTIF($B$1:B10,TRUE)) ->  | B10: =IF(Worksheet!$D$10=2,FALSE,Worksheet!$D$18) -> FALSE | C10: =10000*F10 -> 680000 | D10: cm² | E10: = | F10: =IF(Worksheet!$D$6=1,RANDBETWEEN(1,99),IF(Worksheet!$D$6=2,CHOOSE(RANDBETWEEN(1,2),RANDBETWEEN(1,99),RANDBETWEEN(1,999)/10),CHOOSE(RANDBETWEEN(1,4),RANDBETWEEN(1,99999)/1000,RANDBETWEEN(1,9999)/100,RANDBETWEEN(1,999)/10,RANDBETWEEN(1,99)))) -> 68 | G10: m² | J10: =IF(ROW()<=Worksheet!$D$4/3,ROW(),"") -> 10 | K10: =RANDBETWEEN(1,MAX('SYSTEM FORMULAE'!$A$1:$A$2560)) -> 1368 | L10: =IF(RIGHT(TEXT(VLOOKUP(K10,'SYSTEM FORMULAE'!$A$1:$G$2560,3),"# ##0.###"),1)=".",LEFT(TEXT(VLOOKUP(K10,'SYSTEM FORMULAE'!$A$1:$G$2560,3),"# ##0.###"),LEN(TEXT(VLOOKUP(K10,'SYSTEM FORMULAE'!$A$1:$G$2560,3),"# ##0.###"))-1),TEXT(VLOOKUP(K10,'SYSTEM FORMULAE'!$A$1:$G$2560,3),"# ##0.###")) -> 59 | M10: =VLOOKUP(K10,'SYSTEM FORMULAE'!$A$1:$G$2560,4) -> litres | N10: = | O10: =IF(RIGHT(TEXT(VLOOKUP(K10,'SYSTEM FORMULAE'!$A$1:$G$2560,6),"# ##0.###"),1)=".",LEFT(TEXT(VLOOKUP(K10,'SYSTEM FORMULAE'!$A$1:$G$2560,6),"# ##0.###"),LEN(TEXT(VLOOKUP(K10,'SYSTEM FORMULAE'!$A$1:$G$2560,6),"# ##0.###"))-1),TEXT(VLOOKUP(K10,'SYSTEM FORMULAE'!$A$1:$G$2560,6),"# ##0.###")) -> 59 000 | P10: =VLOOKUP(K10,'SYSTEM FORMULAE'!$A$1:$G$2560,7) -> ml | R10: =IF(ROW()<=Worksheet!$D$4/3,R9+1,"") -> 30 | S10: =RANDBETWEEN(1,MAX('SYSTEM FORMULAE'!$A$1:$A$2560)) -> 223 | T10: =IF(RIGHT(TEXT(VLOOKUP(S10,'SYSTEM FORMULAE'!$A$1:$G$2560,3),"# ##0.###"),1)=".",LEFT(TEXT(VLOOKUP(S10,'SYSTEM FORMULAE'!$A$1:$G$2560,3),"# ##0.###"),LEN(TEXT(VLOOKUP(S10,'SYSTEM FORMULAE'!$A$1:$G$2560,3),"# ##0.###"))-1),TEXT(VLOOKUP(S10,'SYSTEM FORMULAE'!$A$1:$G$2560,3),"# ##0.###")) -> 95 | U10: =VLOOKUP(S10,'SYSTEM FORMULAE'!$A$1:$G$2560,4) -> cm | V10: = | W10: =IF(RIGHT(TEXT(VLOOKUP(S10,'SYSTEM FORMULAE'!$A$1:$G$2560,6),"# ##0.###"),1)=".",LEFT(TEXT(VLOOKUP(S10,'SYSTEM FORMULAE'!$A$1:$G$2560,6),"# ##0.###"),LEN(TEXT(VLOOKUP(S10,'SYSTEM FORMULAE'!$A$1:$G$2560,6),"# ##0.###"))-1),TEXT(VLOOKUP(S10,'SYSTEM FORMULAE'!$A$1:$G$2560,6),"# ##0.###")) -> 950 | X10: =VLOOKUP(S10,'SYSTEM FORMULAE'!$A$1:$G$2560,7) -> mm | Z10: =IF(ROW()<=Worksheet!$D$4/3,Z9+1,"") -> 50 | AA10: =RANDBETWEEN(1,MAX('SYSTEM FORMULAE'!$A$1:$A$2560)) -> 967 | AB10: =IF(RIGHT(TEXT(VLOOKUP(AA10,'SYSTEM FORMULAE'!$A$1:$G$2560,3),"# ##0.###"),1)=".",LEFT(TEXT(VLOOKUP(AA10,'SYSTEM FORMULAE'!$A$1:$G$2560,3),"# ##0.###"),LEN(TEXT(VLOOKUP(AA10,'SYSTEM FORMULAE'!$A$1:$G$2560,3),"# ##0.###"))-1),TEXT(VLOOKUP(AA10,'SYSTEM FORMULAE'!$A$1:$G$2560,3),"# ##0.###")) -> 30 | AC10: =VLOOKUP(AA10,'SYSTEM FORMULAE'!$A$1:$G$2560,4) -> cm | AD10: = | AE10: =IF(RIGHT(TEXT(VLOOKUP(AA10,'SYSTEM FORMULAE'!$A$1:$G$2560,6),"# ##0.###"),1)=".",LEFT(TEXT(VLOOKUP(AA10,'SYSTEM FORMULAE'!$A$1:$G$2560,6),"# ##0.###"),LEN(TEXT(VLOOKUP(AA10,'SYSTEM FORMULAE'!$A$1:$G$2560,6),"# ##0.###"))-1),TEXT(VLOOKUP(AA10,'SYSTEM FORMULAE'!$A$1:$G$2560,6),"# ##0.###")) -> 300 | AF10: =VLOOKUP(AA10,'SYSTEM FORMULAE'!$A$1:$G$2560,7) -> mm
A11: =IF(COUNTIF($B$1:B11,TRUE)=COUNTIF($B$1:B10,TRUE),"",COUNTIF($B$1:B11,TRUE)) -> 7 | B11: =IF(Worksheet!$D$10=3,FALSE,Worksheet!$B$14) -> TRUE | C11: =IF(Worksheet!$D$6=1,RANDBETWEEN(1,99),IF(Worksheet!$D$6=2,CHOOSE(RANDBETWEEN(1,2),RANDBETWEEN(1,99),RANDBETWEEN(1,999)/10),CHOOSE(RANDBETWEEN(1,4),RANDBETWEEN(1,99999)/1000,RANDBETWEEN(1,9999)/100,RANDBETWEEN(1,999)/10,RANDBETWEEN(1,99)))) -> 77 | D11: cm | E11: = | F11: =10*C11 -> 770 | G11: mm | J11: =IF(ROW()<=Worksheet!$D$4/3,ROW(),"") -> 11 | K11: =RANDBETWEEN(1,MAX('SYSTEM FORMULAE'!$A$1:$A$2560)) -> 774 | L11: =IF(RIGHT(TEXT(VLOOKUP(K11,'SYSTEM FORMULAE'!$A$1:$G$2560,3),"# ##0.###"),1)=".",LEFT(TEXT(VLOOKUP(K11,'SYSTEM FORMULAE'!$A$1:$G$2560,3),"# ##0.###"),LEN(TEXT(VLOOKUP(K11,'SYSTEM FORMULAE'!$A$1:$G$2560,3),"# ##0.###"))-1),TEXT(VLOOKUP(K11,'SYSTEM FORMULAE'!$A$1:$G$2560,3),"# ##0.###")) -> 20 000 | M11: =VLOOKUP(K11,'SYSTEM FORMULAE'!$A$1:$G$2560,4) -> ml | N11: = | O11: =IF(RIGHT(TEXT(VLOOKUP(K11,'SYSTEM FORMULAE'!$A$1:$G$2560,6),"# ##0.###"),1)=".",LEFT(TEXT(VLOOKUP(K11,'SYSTEM FORMULAE'!$A$1:$G$2560,6),"# ##0.###"),LEN(TEXT(VLOOKUP(K11,'SYSTEM FORMULAE'!$A$1:$G$2560,6),"# ##0.###"))-1),TEXT(VLOOKUP(K11,'SYSTEM FORMULAE'!$A$1:$G$2560,6),"# ##0.###")) -> 20 | P11: =VLOOKUP(K11,'SYSTEM FORMULAE'!$A$1:$G$2560,7) -> litres | R11: =IF(ROW()<=Worksheet!$D$4/3,R10+1,"") -> 31 | S11: =RANDBETWEEN(1,MAX('SYSTEM FORMULAE'!$A$1:$A$2560)) -> 1350 | T11: =IF(RIGHT(TEXT(VLOOKUP(S11,'SYSTEM FORMULAE'!$A$1:$G$2560,3),"# ##0.###"),1)=".",LEFT(TEXT(VLOOKUP(S11,'SYSTEM FORMULAE'!$A$1:$G$2560,3),"# ##0.###"),LEN(TEXT(VLOOKUP(S11,'SYSTEM FORMULAE'!$A$1:$G$2560,3),"# ##0.###"))-1),TEXT(VLOOKUP(S11,'SYSTEM FORMULAE'!$A$1:$G$2560,3),"# ##0.###")) -> 96 000 | U11: =VLOOKUP(S11,'SYSTEM FORMULAE'!$A$1:$G$2560,4) -> ml | V11: = | W11: =IF(RIGHT(TEXT(VLOOKUP(S11,'SYSTEM FORMULAE'!$A$1:$G$2560,6),"# ##0.###"),1)=".",LEFT(TEXT(VLOOKUP(S11,'SYSTEM FORMULAE'!$A$1:$G$2560,6),"# ##0.###"),LEN(TEXT(VLOOKUP(S11,'SYSTEM FORMULAE'!$A$1:$G$2560,6),"# ##0.###"))-1),TEXT(VLOOKUP(S11,'SYSTEM FORMULAE'!$A$1:$G$2560,6),"# ##0.###")) -> 96 | X11: =VLOOKUP(S11,'SYSTEM FORMULAE'!$A$1:$G$2560,7) -> litres | Z11: =IF(ROW()<=Worksheet!$D$4/3,Z10+1,"") -> 51 | AA11: =RANDBETWEEN(1,MAX('SYSTEM FORMULAE'!$A$1:$A$2560)) -> 1165 | AB11: =IF(RIGHT(TEXT(VLOOKUP(AA11,'SYSTEM FORMULAE'!$A$1:$G$2560,3),"# ##0.###"),1)=".",LEFT(TEXT(VLOOKUP(AA11,'SYSTEM FORMULAE'!$A$1:$G$2560,3),"# ##0.###"),LEN(TEXT(VLOOKUP(AA11,'SYSTEM FORMULAE'!$A$1:$G$2560,3),"# ##0.###"))-1),TEXT(VLOOKUP(AA11,'SYSTEM FORMULAE'!$A$1:$G$2560,3),"# ##0.###")) -> 820 | AC11: =VLOOKUP(AA11,'SYSTEM FORMULAE'!$A$1:$G$2560,4) -> mm | AD11: = | AE11: =IF(RIGHT(TEXT(VLOOKUP(AA11,'SYSTEM FORMULAE'!$A$1:$G$2560,6),"# ##0.###"),1)=".",LEFT(TEXT(VLOOKUP(AA11,'SYSTEM FORMULAE'!$A$1:$G$2560,6),"# ##0.###"),LEN(TEXT(VLOOKUP(AA11,'SYSTEM FORMULAE'!$A$1:$G$2560,6),"# ##0.###"))-1),TEXT(VLOOKUP(AA11,'SYSTEM FORMULAE'!$A$1:$G$2560,6),"# ##0.###")) -> 82 | AF11: =VLOOKUP(AA11,'SYSTEM FORMULAE'!$A$1:$G$2560,7) -> cm
A12: =IF(COUNTIF($B$1:B12,TRUE)=COUNTIF($B$1:B11,TRUE),"",COUNTIF($B$1:B12,TRUE)) -> 8 | B12: =IF(Worksheet!$D$10=3,FALSE,Worksheet!$B$15) -> TRUE | C12: =IF(Worksheet!$D$6=1,RANDBETWEEN(1,99),IF(Worksheet!$D$6=2,CHOOSE(RANDBETWEEN(1,2),RANDBETWEEN(1,99),RANDBETWEEN(1,999)/10),CHOOSE(RANDBETWEEN(1,4),RANDBETWEEN(1,99999)/1000,RANDBETWEEN(1,9999)/100,RANDBETWEEN(1,999)/10,RANDBETWEEN(1,99)))) -> 12 | D12: m | E12: = | F12: =100*C12 -> 1200 | G12: cm | J12: =IF(ROW()<=Worksheet!$D$4/3,ROW(),"") -> 12 | K12: =RANDBETWEEN(1,MAX('SYSTEM FORMULAE'!$A$1:$A$2560)) -> 1365 | L12: =IF(RIGHT(TEXT(VLOOKUP(K12,'SYSTEM FORMULAE'!$A$1:$G$2560,3),"# ##0.###"),1)=".",LEFT(TEXT(VLOOKUP(K12,'SYSTEM FORMULAE'!$A$1:$G$2560,3),"# ##0.###"),LEN(TEXT(VLOOKUP(K12,'SYSTEM FORMULAE'!$A$1:$G$2560,3),"# ##0.###"))-1),TEXT(VLOOKUP(K12,'SYSTEM FORMULAE'!$A$1:$G$2560,3),"# ##0.###")) -> 13 | M12: =VLOOKUP(K12,'SYSTEM FORMULAE'!$A$1:$G$2560,4) -> km | N12: = | O12: =IF(RIGHT(TEXT(VLOOKUP(K12,'SYSTEM FORMULAE'!$A$1:$G$2560,6),"# ##0.###"),1)=".",LEFT(TEXT(VLOOKUP(K12,'SYSTEM FORMULAE'!$A$1:$G$2560,6),"# ##0.###"),LEN(TEXT(VLOOKUP(K12,'SYSTEM FORMULAE'!$A$1:$G$2560,6),"# ##0.###"))-1),TEXT(VLOOKUP(K12,'SYSTEM FORMULAE'!$A$1:$G$2560,6),"# ##0.###")) -> 13 000 | P12: =VLOOKUP(K12,'SYSTEM FORMULAE'!$A$1:$G$2560,7) -> m | R12: =IF(ROW()<=Worksheet!$D$4/3,R11+1,"") -> 32 | S12: =RANDBETWEEN(1,MAX('SYSTEM FORMULAE'!$A$1:$A$2560)) -> 166 | T12: =IF(RIGHT(TEXT(VLOOKUP(S12,'SYSTEM FORMULAE'!$A$1:$G$2560,3),"# ##0.###"),1)=".",LEFT(TEXT(VLOOKUP(S12,'SYSTEM FORMULAE'!$A$1:$G$2560,3),"# ##0.###"),LEN(TEXT(VLOOKUP(S12,'SYSTEM FORMULAE'!$A$1:$G$2560,3),"# ##0.###"))-1),TEXT(VLOOKUP(S12,'SYSTEM FORMULAE'!$A$1:$G$2560,3),"# ##0.###")) -> 23 | U12: =VLOOKUP(S12,'SYSTEM FORMULAE'!$A$1:$G$2560,4) -> kg | V12: = | W12: =IF(RIGHT(TEXT(VLOOKUP(S12,'SYSTEM FORMULAE'!$A$1:$G$2560,6),"# ##0.###"),1)=".",LEFT(TEXT(VLOOKUP(S12,'SYSTEM FORMULAE'!$A$1:$G$2560,6),"# ##0.###"),LEN(TEXT(VLOOKUP(S12,'SYSTEM FORMULAE'!$A$1:$G$2560,6),"# ##0.###"))-1),TEXT(VLOOKUP(S12,'SYSTEM FORMULAE'!$A$1:$G$2560,6),"# ##0.###")) -> 23 000 | X12: =VLOOKUP(S12,'SYSTEM FORMULAE'!$A$1:$G$2560,7) -> g | Z12: =IF(ROW()<=Worksheet!$D$4/3,Z11+1,"") -> 52 | AA12: =RANDBETWEEN(1,MAX('SYSTEM FORMULAE'!$A$1:$A$2560)) -> 463 | AB12: =IF(RIGHT(TEXT(VLOOKUP(AA12,'SYSTEM FORMULAE'!$A$1:$G$2560,3),"# ##0.###"),1)=".",LEFT(TEXT(VLOOKUP(AA12,'SYSTEM FORMULAE'!$A$1:$G$2560,3),"# ##0.###"),LEN(TEXT(VLOOKUP(AA12,'SYSTEM FORMULAE'!$A$1:$G$2560,3),"# ##0.###"))-1),TEXT(VLOOKUP(AA12,'SYSTEM FORMULAE'!$A$1:$G$2560,3),"# ##0.###")) -> 63 | AC12: =VLOOKUP(AA12,'SYSTEM FORMULAE'!$A$1:$G$2560,4) -> cm | AD12: = | AE12: =IF(RIGHT(TEXT(VLOOKUP(AA12,'SYSTEM FORMULAE'!$A$1:$G$2560,6),"# ##0.###"),1)=".",LEFT(TEXT(VLOOKUP(AA12,'SYSTEM FORMULAE'!$A$1:$G$2560,6),"# ##0.###"),LEN(TEXT(VLOOKUP(AA12,'SYSTEM FORMULAE'!$A$1:$G$2560,6),"# ##0.###"))-1),TEXT(VLOOKUP(AA12,'SYSTEM FORMULAE'!$A$1:$G$2560,6),"# ##0.###")) -> 630 | AF12: =VLOOKUP(AA12,'SYSTEM FORMULAE'!$A$1:$G$2560,7) -> mm
A13: =IF(COUNTIF($B$1:B13,TRUE)=COUNTIF($B$1:B12,TRUE),"",COUNTIF($B$1:B13,TRUE)) -> 9 | B13: =IF(Worksheet!$D$10=3,FALSE,Worksheet!$B$16) -> TRUE | C13: =IF(Worksheet!$D$6=1,RANDBETWEEN(1,99),IF(Worksheet!$D$6=2,CHOOSE(RANDBETWEEN(1,2),RANDBETWEEN(1,99),RANDBETWEEN(1,999)/10),CHOOSE(RANDBETWEEN(1,4),RANDBETWEEN(1,99999)/1000,RANDBETWEEN(1,9999)/100,RANDBETWEEN(1,999)/10,RANDBETWEEN(1,99)))) -> 69 | D13: km | E13: = | F13: =1000*C13 -> 69000 | G13: m | J13: =IF(ROW()<=Worksheet!$D$4/3,ROW(),"") -> 13 | K13: =RANDBETWEEN(1,MAX('SYSTEM FORMULAE'!$A$1:$A$2560)) -> 1311 | L13: =IF(RIGHT(TEXT(VLOOKUP(K13,'SYSTEM FORMULAE'!$A$1:$G$2560,3),"# ##0.###"),1)=".",LEFT(TEXT(VLOOKUP(K13,'SYSTEM FORMULAE'!$A$1:$G$2560,3),"# ##0.###"),LEN(TEXT(VLOOKUP(K13,'SYSTEM FORMULAE'!$A$1:$G$2560,3),"# ##0.###"))-1),TEXT(VLOOKUP(K13,'SYSTEM FORMULAE'!$A$1:$G$2560,3),"# ##0.###")) -> 34 000 | M13: =VLOOKUP(K13,'SYSTEM FORMULAE'!$A$1:$G$2560,4) -> m | N13: = | O13: =IF(RIGHT(TEXT(VLOOKUP(K13,'SYSTEM FORMULAE'!$A$1:$G$2560,6),"# ##0.###"),1)=".",LEFT(TEXT(VLOOKUP(K13,'SYSTEM FORMULAE'!$A$1:$G$2560,6),"# ##0.###"),LEN(TEXT(VLOOKUP(K13,'SYSTEM FORMULAE'!$A$1:$G$2560,6),"# ##0.###"))-1),TEXT(VLOOKUP(K13,'SYSTEM FORMULAE'!$A$1:$G$2560,6),"# ##0.###")) -> 34 | P13: =VLOOKUP(K13,'SYSTEM FORMULAE'!$A$1:$G$2560,7) -> km | R13: =IF(ROW()<=Worksheet!$D$4/3,R12+1,"") -> 33 | S13: =RANDBETWEEN(1,MAX('SYSTEM FORMULAE'!$A$1:$A$2560)) -> 1375 | T13: =IF(RIGHT(TEXT(VLOOKUP(S13,'SYSTEM FORMULAE'!$A$1:$G$2560,3),"# ##0.###"),1)=".",LEFT(TEXT(VLOOKUP(S13,'SYSTEM FORMULAE'!$A$1:$G$2560,3),"# ##0.###"),LEN(TEXT(VLOOKUP(S13,'SYSTEM FORMULAE'!$A$1:$G$2560,3),"# ##0.###"))-1),TEXT(VLOOKUP(S13,'SYSTEM FORMULAE'!$A$1:$G$2560,3),"# ##0.###")) -> 98 | U13: =VLOOKUP(S13,'SYSTEM FORMULAE'!$A$1:$G$2560,4) -> cm | V13: = | W13: =IF(RIGHT(TEXT(VLOOKUP(S13,'SYSTEM FORMULAE'!$A$1:$G$2560,6),"# ##0.###"),1)=".",LEFT(TEXT(VLOOKUP(S13,'SYSTEM FORMULAE'!$A$1:$G$2560,6),"# ##0.###"),LEN(TEXT(VLOOKUP(S13,'SYSTEM FORMULAE'!$A$1:$G$2560,6),"# ##0.###"))-1),TEXT(VLOOKUP(S13,'SYSTEM FORMULAE'!$A$1:$G$2560,6),"# ##0.###")) -> 980 | X13: =VLOOKUP(S13,'SYSTEM FORMULAE'!$A$1:$G$2560,7) -> mm | Z13: =IF(ROW()<=Worksheet!$D$4/3,Z12+1,"") -> 53 | AA13: =RANDBETWEEN(1,MAX('SYSTEM FORMULAE'!$A$1:$A$2560)) -> 943 | AB13: =IF(RIGHT(TEXT(VLOOKUP(AA13,'SYSTEM FORMULAE'!$A$1:$G$2560,3),"# ##0.###"),1)=".",LEFT(TEXT(VLOOKUP(AA13,'SYSTEM FORMULAE'!$A$1:$G$2560,3),"# ##0.###"),LEN(TEXT(VLOOKUP(AA13,'SYSTEM FORMULAE'!$A$1:$G$2560,3),"# ##0.###"))-1),TEXT(VLOOKUP(AA13,'SYSTEM FORMULAE'!$A$1:$G$2560,3),"# ##0.###")) -> 35 | AC13: =VLOOKUP(AA13,'SYSTEM FORMULAE'!$A$1:$G$2560,4) -> cm | AD13: = | AE13: =IF(RIGHT(TEXT(VLOOKUP(AA13,'SYSTEM FORMULAE'!$A$1:$G$2560,6),"# ##0.###"),1)=".",LEFT(TEXT(VLOOKUP(AA13,'SYSTEM FORMULAE'!$A$1:$G$2560,6),"# ##0.###"),LEN(TEXT(VLOOKUP(AA13,'SYSTEM FORMULAE'!$A$1:$G$2560,6),"# ##0.###"))-1),TEXT(VLOOKUP(AA13,'SYSTEM FORMULAE'!$A$1:$G$2560,6),"# ##0.###")) -> 350 | AF13: =VLOOKUP(AA13,'SYSTEM FORMULAE'!$A$1:$G$2560,7) -> mm
A14: =IF(COUNTIF($B$1:B14,TRUE)=COUNTIF($B$1:B13,TRUE),"",COUNTIF($B$1:B14,TRUE)) ->  | B14: =IF(Worksheet!$D$10=3,FALSE,Worksheet!$B$17) -> FALSE | C14: =IF(Worksheet!$D$6=1,RANDBETWEEN(1,99),IF(Worksheet!$D$6=2,CHOOSE(RANDBETWEEN(1,2),RANDBETWEEN(1,99),RANDBETWEEN(1,999)/10),CHOOSE(RANDBETWEEN(1,4),RANDBETWEEN(1,99999)/1000,RANDBETWEEN(1,9999)/100,RANDBETWEEN(1,999)/10,RANDBETWEEN(1,99)))) -> 68 | D14: m | E14: =#REF! ->  | F14: =1000*C14 -> 68000 | G14: mm | J14: =IF(ROW()<=Worksheet!$D$4/3,ROW(),"") -> 14 | K14: =RANDBETWEEN(1,MAX('SYSTEM FORMULAE'!$A$1:$A$2560)) -> 85 | L14: =IF(RIGHT(TEXT(VLOOKUP(K14,'SYSTEM FORMULAE'!$A$1:$G$2560,3),"# ##0.###"),1)=".",LEFT(TEXT(VLOOKUP(K14,'SYSTEM FORMULAE'!$A$1:$G$2560,3),"# ##0.###"),LEN(TEXT(VLOOKUP(K14,'SYSTEM FORMULAE'!$A$1:$G$2560,3),"# ##0.###"))-1),TEXT(VLOOKUP(K14,'SYSTEM FORMULAE'!$A$1:$G$2560,3),"# ##0.###")) -> 190 | M14: =VLOOKUP(K14,'SYSTEM FORMULAE'!$A$1:$G$2560,4) -> mm | N14: = | O14: =IF(RIGHT(TEXT(VLOOKUP(K14,'SYSTEM FORMULAE'!$A$1:$G$2560,6),"# ##0.###"),1)=".",LEFT(TEXT(VLOOKUP(K14,'SYSTEM FORMULAE'!$A$1:$G$2560,6),"# ##0.###"),LEN(TEXT(VLOOKUP(K14,'SYSTEM FORMULAE'!$A$1:$G$2560,6),"# ##0.###"))-1),TEXT(VLOOKUP(K14,'SYSTEM FORMULAE'!$A$1:$G$2560,6),"# ##0.###")) -> 19 | P14: =VLOOKUP(K14,'SYSTEM FORMULAE'!$A$1:$G$2560,7) -> cm | R14: =IF(ROW()<=Worksheet!$D$4/3,R13+1,"") -> 34 | S14: =RANDBETWEEN(1,MAX('SYSTEM FORMULAE'!$A$1:$A$2560)) -> 399 | T14: =IF(RIGHT(TEXT(VLOOKUP(S14,'SYSTEM FORMULAE'!$A$1:$G$2560,3),"# ##0.###"),1)=".",LEFT(TEXT(VLOOKUP(S14,'SYSTEM FORMULAE'!$A$1:$G$2560,3),"# ##0.###"),LEN(TEXT(VLOOKUP(S14,'SYSTEM FORMULAE'!$A$1:$G$2560,3),"# ##0.###"))-1),TEXT(VLOOKUP(S14,'SYSTEM FORMULAE'!$A$1:$G$2560,3),"# ##0.###")) -> 50 000 | U14: =VLOOKUP(S14,'SYSTEM FORMULAE'!$A$1:$G$2560,4) -> m | V14: = | W14: =IF(RIGHT(TEXT(VLOOKUP(S14,'SYSTEM FORMULAE'!$A$1:$G$2560,6),"# ##0.###"),1)=".",LEFT(TEXT(VLOOKUP(S14,'SYSTEM FORMULAE'!$A$1:$G$2560,6),"# ##0.###"),LEN(TEXT(VLOOKUP(S14,'SYSTEM FORMULAE'!$A$1:$G$2560,6),"# ##0.###"))-1),TEXT(VLOOKUP(S14,'SYSTEM FORMULAE'!$A$1:$G$2560,6),"# ##0.###")) -> 50 | X14: =VLOOKUP(S14,'SYSTEM FORMULAE'!$A$1:$G$2560,7) -> km | Z14: =IF(ROW()<=Worksheet!$D$4/3,Z13+1,"") -> 54 | AA14: =RANDBETWEEN(1,MAX('SYSTEM FORMULAE'!$A$1:$A$2560)) -> 241 | AB14: =IF(RIGHT(TEXT(VLOOKUP(AA14,'SYSTEM FORMULAE'!$A$1:$G$2560,3),"# ##0.###"),1)=".",LEFT(TEXT(VLOOKUP(AA14,'SYSTEM FORMULAE'!$A$1:$G$2560,3),"# ##0.###"),LEN(TEXT(VLOOKUP(AA14,'SYSTEM FORMULAE'!$A$1:$G$2560,3),"# ##0.###"))-1),TEXT(VLOOKUP(AA14,'SYSTEM FORMULAE'!$A$1:$G$2560,3),"# ##0.###")) -> 30 | AC14: =VLOOKUP(AA14,'SYSTEM FORMULAE'!$A$1:$G$2560,4) -> mm | AD14: = | AE14: =IF(RIGHT(TEXT(VLOOKUP(AA14,'SYSTEM FORMULAE'!$A$1:$G$2560,6),"# ##0.###"),1)=".",LEFT(TEXT(VLOOKUP(AA14,'SYSTEM FORMULAE'!$A$1:$G$2560,6),"# ##0.###"),LEN(TEXT(VLOOKUP(AA14,'SYSTEM FORMULAE'!$A$1:$G$2560,6),"# ##0.###"))-1),TEXT(VLOOKUP(AA14,'SYSTEM FORMULAE'!$A$1:$G$2560,6),"# ##0.###")) -> 3 | AF14: =VLOOKUP(AA14,'SYSTEM FORMULAE'!$A$1:$G$2560,7) -> cm
A15: =IF(COUNTIF($B$1:B15,TRUE)=COUNTIF($B$1:B14,TRUE),"",COUNTIF($B$1:B15,TRUE)) ->  | B15: =IF(Worksheet!$D$10=3,FALSE,Worksheet!$B$18) -> FALSE | C15: =IF(Worksheet!$D$6=1,RANDBETWEEN(1,99),IF(Worksheet!$D$6=2,CHOOSE(RANDBETWEEN(1,2),RANDBETWEEN(1,99),RANDBETWEEN(1,999)/10),CHOOSE(RANDBETWEEN(1,4),RANDBETWEEN(1,99999)/1000,RANDBETWEEN(1,9999)/100,RANDBETWEEN(1,999)/10,RANDBETWEEN(1,99)))) -> 73 | D15: cm² | E15: = | F15: =C15*100 -> 7300 | G15: mm² | J15: =IF(ROW()<=Worksheet!$D$4/3,ROW(),"") -> 15 | K15: =RANDBETWEEN(1,MAX('SYSTEM FORMULAE'!$A$1:$A$2560)) -> 1268 | L15: =IF(RIGHT(TEXT(VLOOKUP(K15,'SYSTEM FORMULAE'!$A$1:$G$2560,3),"# ##0.###"),1)=".",LEFT(TEXT(VLOOKUP(K15,'SYSTEM FORMULAE'!$A$1:$G$2560,3),"# ##0.###"),LEN(TEXT(VLOOKUP(K15,'SYSTEM FORMULAE'!$A$1:$G$2560,3),"# ##0.###"))-1),TEXT(VLOOKUP(K15,'SYSTEM FORMULAE'!$A$1:$G$2560,3),"# ##0.###")) -> 25 | M15: =VLOOKUP(K15,'SYSTEM FORMULAE'!$A$1:$G$2560,4) -> m | N15: = | O15: =IF(RIGHT(TEXT(VLOOKUP(K15,'SYSTEM FORMULAE'!$A$1:$G$2560,6),"# ##0.###"),1)=".",LEFT(TEXT(VLOOKUP(K15,'SYSTEM FORMULAE'!$A$1:$G$2560,6),"# ##0.###"),LEN(TEXT(VLOOKUP(K15,'SYSTEM FORMULAE'!$A$1:$G$2560,6),"# ##0.###"))-1),TEXT(VLOOKUP(K15,'SYSTEM FORMULAE'!$A$1:$G$2560,6),"# ##0.###")) -> 2 500 | P15: =VLOOKUP(K15,'SYSTEM FORMULAE'!$A$1:$G$2560,7) -> cm | R15: =IF(ROW()<=Worksheet!$D$4/3,R14+1,"") -> 35 | S15: =RANDBETWEEN(1,MAX('SYSTEM FORMULAE'!$A$1:$A$2560)) -> 348 | T15: =IF(RIGHT(TEXT(VLOOKUP(S15,'SYSTEM FORMULAE'!$A$1:$G$2560,3),"# ##0.###"),1)=".",LEFT(TEXT(VLOOKUP(S15,'SYSTEM FORMULAE'!$A$1:$G$2560,3),"# ##0.###"),LEN(TEXT(VLOOKUP(S15,'SYSTEM FORMULAE'!$A$1:$G$2560,3),"# ##0.###"))-1),TEXT(VLOOKUP(S15,'SYSTEM FORMULAE'!$A$1:$G$2560,3),"# ##0.###")) -> 74 | U15: =VLOOKUP(S15,'SYSTEM FORMULAE'!$A$1:$G$2560,4) -> litres | V15: = | W15: =IF(RIGHT(TEXT(VLOOKUP(S15,'SYSTEM FORMULAE'!$A$1:$G$2560,6),"# ##0.###"),1)=".",LEFT(TEXT(VLOOKUP(S15,'SYSTEM FORMULAE'!$A$1:$G$2560,6),"# ##0.###"),LEN(TEXT(VLOOKUP(S15,'SYSTEM FORMULAE'!$A$1:$G$2560,6),"# ##0.###"))-1),TEXT(VLOOKUP(S15,'SYSTEM FORMULAE'!$A$1:$G$2560,6),"# ##0.###")) -> 74 000 | X15: =VLOOKUP(S15,'SYSTEM FORMULAE'!$A$1:$G$2560,7) -> ml | Z15: =IF(ROW()<=Worksheet!$D$4/3,Z14+1,"") -> 55 | AA15: =RANDBETWEEN(1,MAX('SYSTEM FORMULAE'!$A$1:$A$2560)) -> 892 | AB15: =IF(RIGHT(TEXT(VLOOKUP(AA15,'SYSTEM FORMULAE'!$A$1:$G$2560,3),"# ##0.###"),1)=".",LEFT(TEXT(VLOOKUP(AA15,'SYSTEM FORMULAE'!$A$1:$G$2560,3),"# ##0.###"),LEN(TEXT(VLOOKUP(AA15,'SYSTEM FORMULAE'!$A$1:$G$2560,3),"# ##0.###"))-1),TEXT(VLOOKUP(AA15,'SYSTEM FORMULAE'!$A$1:$G$2560,3),"# ##0.###")) -> 1 000 | AC15: =VLOOKUP(AA15,'SYSTEM FORMULAE'!$A$1:$G$2560,4) -> g | AD15: = | AE15: =IF(RIGHT(TEXT(VLOOKUP(AA15,'SYSTEM FORMULAE'!$A$1:$G$2560,6),"# ##0.###"),1)=".",LEFT(TEXT(VLOOKUP(AA15,'SYSTEM FORMULAE'!$A$1:$G$2560,6),"# ##0.###"),LEN(TEXT(VLOOKUP(AA15,'SYSTEM FORMULAE'!$A$1:$G$2560,6),"# ##0.###"))-1),TEXT(VLOOKUP(AA15,'SYSTEM FORMULAE'!$A$1:$G$2560,6),"# ##0.###")) -> 1 | AF15: =VLOOKUP(AA15,'SYSTEM FORMULAE'!$A$1:$G$2560,7) -> kg
A16: =IF(COUNTIF($B$1:B16,TRUE)=COUNTIF($B$1:B15,TRUE),"",COUNTIF($B$1:B16,TRUE)) -> 10 | B16: =IF(Worksheet!$D$10=3,FALSE,Worksheet!$D$14) -> TRUE | C16: =IF(Worksheet!$D$6=1,RANDBETWEEN(1,99),IF(Worksheet!$D$6=2,CHOOSE(RANDBETWEEN(1,2),RANDBETWEEN(1,99),RANDBETWEEN(1,999)/10),CHOOSE(RANDBETWEEN(1,4),RANDBETWEEN(1,99999)/1000,RANDBETWEEN(1,9999)/100,RANDBETWEEN(1,999)/10,RANDBETWEEN(1,99)))) -> 87 | D16: kg | E16: = | F16: =1000*C16 -> 87000 | G16: g | J16: =IF(ROW()<=Worksheet!$D$4/3,ROW(),"") -> 16 | K16: =RANDBETWEEN(1,MAX('SYSTEM FORMULAE'!$A$1:$A$2560)) -> 1417 | L16: =IF(RIGHT(TEXT(VLOOKUP(K16,'SYSTEM FORMULAE'!$A$1:$G$2560,3),"# ##0.###"),1)=".",LEFT(TEXT(VLOOKUP(K16,'SYSTEM FORMULAE'!$A$1:$G$2560,3),"# ##0.###"),LEN(TEXT(VLOOKUP(K16,'SYSTEM FORMULAE'!$A$1:$G$2560,3),"# ##0.###"))-1),TEXT(VLOOKUP(K16,'SYSTEM FORMULAE'!$A$1:$G$2560,3),"# ##0.###")) -> 940 | M16: =VLOOKUP(K16,'SYSTEM FORMULAE'!$A$1:$G$2560,4) -> mm | N16: = | O16: =IF(RIGHT(TEXT(VLOOKUP(K16,'SYSTEM FORMULAE'!$A$1:$G$2560,6),"# ##0.###"),1)=".",LEFT(TEXT(VLOOKUP(K16,'SYSTEM FORMULAE'!$A$1:$G$2560,6),"# ##0.###"),LEN(TEXT(VLOOKUP(K16,'SYSTEM FORMULAE'!$A$1:$G$2560,6),"# ##0.###"))-1),TEXT(VLOOKUP(K16,'SYSTEM FORMULAE'!$A$1:$G$2560,6),"# ##0.###")) -> 94 | P16: =VLOOKUP(K16,'SYSTEM FORMULAE'!$A$1:$G$2560,7) -> cm | R16: =IF(ROW()<=Worksheet!$D$4/3,R15+1,"") -> 36 | S16: =RANDBETWEEN(1,MAX('SYSTEM FORMULAE'!$A$1:$A$2560)) -> 1440 | T16: =IF(RIGHT(TEXT(VLOOKUP(S16,'SYSTEM FORMULAE'!$A$1:$G$2560,3),"# ##0.###"),1)=".",LEFT(TEXT(VLOOKUP(S16,'SYSTEM FORMULAE'!$A$1:$G$2560,3),"# ##0.###"),LEN(TEXT(VLOOKUP(S16,'SYSTEM FORMULAE'!$A$1:$G$2560,3),"# ##0.###"))-1),TEXT(VLOOKUP(S16,'SYSTEM FORMULAE'!$A$1:$G$2560,3),"# ##0.###")) -> 55 | U16: =VLOOKUP(S16,'SYSTEM FORMULAE'!$A$1:$G$2560,4) -> litres | V16: = | W16: =IF(RIGHT(TEXT(VLOOKUP(S16,'SYSTEM FORMULAE'!$A$1:$G$2560,6),"# ##0.###"),1)=".",LEFT(TEXT(VLOOKUP(S16,'SYSTEM FORMULAE'!$A$1:$G$2560,6),"# ##0.###"),LEN(TEXT(VLOOKUP(S16,'SYSTEM FORMULAE'!$A$1:$G$2560,6),"# ##0.###"))-1),TEXT(VLOOKUP(S16,'SYSTEM FORMULAE'!$A$1:$G$2560,6),"# ##0.###")) -> 55 000 | X16: =VLOOKUP(S16,'SYSTEM FORMULAE'!$A$1:$G$2560,7) -> ml | Z16: =IF(ROW()<=Worksheet!$D$4/3,Z15+1,"") -> 56 | AA16: =RANDBETWEEN(1,MAX('SYSTEM FORMULAE'!$A$1:$A$2560)) -> 727 | AB16: =IF(RIGHT(TEXT(VLOOKUP(AA16,'SYSTEM FORMULAE'!$A$1:$G$2560,3),"# ##0.###"),1)=".",LEFT(TEXT(VLOOKUP(AA16,'SYSTEM FORMULAE'!$A$1:$G$2560,3),"# ##0.###"),LEN(TEXT(VLOOKUP(AA16,'SYSTEM FORMULAE'!$A$1:$G$2560,3),"# ##0.###"))-1),TEXT(VLOOKUP(AA16,'SYSTEM FORMULAE'!$A$1:$G$2560,3),"# ##0.###")) -> 44 | AC16: =VLOOKUP(AA16,'SYSTEM FORMULAE'!$A$1:$G$2560,4) -> cm | AD16: = | AE16: =IF(RIGHT(TEXT(VLOOKUP(AA16,'SYSTEM FORMULAE'!$A$1:$G$2560,6),"# ##0.###"),1)=".",LEFT(TEXT(VLOOKUP(AA16,'SYSTEM FORMULAE'!$A$1:$G$2560,6),"# ##0.###"),LEN(TEXT(VLOOKUP(AA16,'SYSTEM FORMULAE'!$A$1:$G$2560,6),"# ##0.###"))-1),TEXT(VLOOKUP(AA16,'SYSTEM FORMULAE'!$A$1:$G$2560,6),"# ##0.###")) -> 440 | AF16: =VLOOKUP(AA16,'SYSTEM FORMULAE'!$A$1:$G$2560,7) -> mm
A17: =IF(COUNTIF($B$1:B17,TRUE)=COUNTIF($B$1:B16,TRUE),"",COUNTIF($B$1:B17,TRUE)) -> 11 | B17: =IF(Worksheet!$D$10=3,FALSE,Worksheet!$D$15) -> TRUE | C17: =IF(Worksheet!$D$6=1,RANDBETWEEN(1,99),IF(Worksheet!$D$6=2,CHOOSE(RANDBETWEEN(1,2),RANDBETWEEN(1,99),RANDBETWEEN(1,999)/10),CHOOSE(RANDBETWEEN(1,4),RANDBETWEEN(1,99999)/1000,RANDBETWEEN(1,9999)/100,RANDBETWEEN(1,999)/10,RANDBETWEEN(1,99)))) -> 59 | D17: tonnes | E17: = | F17: =1000*C17 -> 59000 | G17: kg | J17: =IF(ROW()<=Worksheet!$D$4/3,ROW(),"") -> 17 | K17: =RANDBETWEEN(1,MAX('SYSTEM FORMULAE'!$A$1:$A$2560)) -> 81 | L17: =IF(RIGHT(TEXT(VLOOKUP(K17,'SYSTEM FORMULAE'!$A$1:$G$2560,3),"# ##0.###"),1)=".",LEFT(TEXT(VLOOKUP(K17,'SYSTEM FORMULAE'!$A$1:$G$2560,3),"# ##0.###"),LEN(TEXT(VLOOKUP(K17,'SYSTEM FORMULAE'!$A$1:$G$2560,3),"# ##0.###"))-1),TEXT(VLOOKUP(K17,'SYSTEM FORMULAE'!$A$1:$G$2560,3),"# ##0.###")) -> 77 | M17: =VLOOKUP(K17,'SYSTEM FORMULAE'!$A$1:$G$2560,4) -> km | N17: = | O17: =IF(RIGHT(TEXT(VLOOKUP(K17,'SYSTEM FORMULAE'!$A$1:$G$2560,6),"# ##0.###"),1)=".",LEFT(TEXT(VLOOKUP(K17,'SYSTEM FORMULAE'!$A$1:$G$2560,6),"# ##0.###"),LEN(TEXT(VLOOKUP(K17,'SYSTEM FORMULAE'!$A$1:$G$2560,6),"# ##0.###"))-1),TEXT(VLOOKUP(K17,'SYSTEM FORMULAE'!$A$1:$G$2560,6),"# ##0.###")) -> 77 000 | P17: =VLOOKUP(K17,'SYSTEM FORMULAE'!$A$1:$G$2560,7) -> m | R17: =IF(ROW()<=Worksheet!$D$4/3,R16+1,"") -> 37 | S17: =RANDBETWEEN(1,MAX('SYSTEM FORMULAE'!$A$1:$A$2560)) -> 103 | T17: =IF(RIGHT(TEXT(VLOOKUP(S17,'SYSTEM FORMULAE'!$A$1:$G$2560,3),"# ##0.###"),1)=".",LEFT(TEXT(VLOOKUP(S17,'SYSTEM FORMULAE'!$A$1:$G$2560,3),"# ##0.###"),LEN(TEXT(VLOOKUP(S17,'SYSTEM FORMULAE'!$A$1:$G$2560,3),"# ##0.###"))-1),TEXT(VLOOKUP(S17,'SYSTEM FORMULAE'!$A$1:$G$2560,3),"# ##0.###")) -> 67 | U17: =VLOOKUP(S17,'SYSTEM FORMULAE'!$A$1:$G$2560,4) -> cm | V17: = | W17: =IF(RIGHT(TEXT(VLOOKUP(S17,'SYSTEM FORMULAE'!$A$1:$G$2560,6),"# ##0.###"),1)=".",LEFT(TEXT(VLOOKUP(S17,'SYSTEM FORMULAE'!$A$1:$G$2560,6),"# ##0.###"),LEN(TEXT(VLOOKUP(S17,'SYSTEM FORMULAE'!$A$1:$G$2560,6),"# ##0.###"))-1),TEXT(VLOOKUP(S17,'SYSTEM FORMULAE'!$A$1:$G$2560,6),"# ##0.###")) -> 670 | X17: =VLOOKUP(S17,'SYSTEM FORMULAE'!$A$1:$G$2560,7) -> mm | Z17: =IF(ROW()<=Worksheet!$D$4/3,Z16+1,"") -> 57 | AA17: =RANDBETWEEN(1,MAX('SYSTEM FORMULAE'!$A$1:$A$2560)) -> 107 | AB17: =IF(RIGHT(TEXT(VLOOKUP(AA17,'SYSTEM FORMULAE'!$A$1:$G$2560,3),"# ##0.###"),1)=".",LEFT(TEXT(VLOOKUP(AA17,'SYSTEM FORMULAE'!$A$1:$G$2560,3),"# ##0.###"),LEN(TEXT(VLOOKUP(AA17,'SYSTEM FORMULAE'!$A$1:$G$2560,3),"# ##0.###"))-1),TEXT(VLOOKUP(AA17,'SYSTEM FORMULAE'!$A$1:$G$2560,3),"# ##0.###")) -> 42 | AC17: =VLOOKUP(AA17,'SYSTEM FORMULAE'!$A$1:$G$2560,4) -> tonnes | AD17: = | AE17: =IF(RIGHT(TEXT(VLOOKUP(AA17,'SYSTEM FORMULAE'!$A$1:$G$2560,6),"# ##0.###"),1)=".",LEFT(TEXT(VLOOKUP(AA17,'SYSTEM FORMULAE'!$A$1:$G$2560,6),"# ##0.###"),LEN(TEXT(VLOOKUP(AA17,'SYSTEM FORMULAE'!$A$1:$G$2560,6),"# ##0.###"))-1),TEXT(VLOOKUP(AA17,'SYSTEM FORMULAE'!$A$1:$G$2560,6),"# ##0.###")) -> 42 000 | AF17: =VLOOKUP(AA17,'SYSTEM FORMULAE'!$A$1:$G$2560,7) -> kg
A18: =IF(COUNTIF($B$1:B18,TRUE)=COUNTIF($B$1:B17,TRUE),"",COUNTIF($B$1:B18,TRUE)) -> 12 | B18: =IF(Worksheet!$D$10=3,FALSE,Worksheet!$D$16) -> TRUE | C18: =IF(Worksheet!$D$6=1,RANDBETWEEN(1,99),IF(Worksheet!$D$6=2,CHOOSE(RANDBETWEEN(1,2),RANDBETWEEN(1,99),RANDBETWEEN(1,999)/10),CHOOSE(RANDBETWEEN(1,4),RANDBETWEEN(1,99999)/1000,RANDBETWEEN(1,9999)/100,RANDBETWEEN(1,999)/10,RANDBETWEEN(1,99)))) -> 40 | D18: litres | E18: = | F18: =1000*C18 -> 40000 | G18: ml | J18: =IF(ROW()<=Worksheet!$D$4/3,ROW(),"") -> 18 | K18: =RANDBETWEEN(1,MAX('SYSTEM FORMULAE'!$A$1:$A$2560)) -> 519 | L18: =IF(RIGHT(TEXT(VLOOKUP(K18,'SYSTEM FORMULAE'!$A$1:$G$2560,3),"# ##0.###"),1)=".",LEFT(TEXT(VLOOKUP(K18,'SYSTEM FORMULAE'!$A$1:$G$2560,3),"# ##0.###"),LEN(TEXT(VLOOKUP(K18,'SYSTEM FORMULAE'!$A$1:$G$2560,3),"# ##0.###"))-1),TEXT(VLOOKUP(K18,'SYSTEM FORMULAE'!$A$1:$G$2560,3),"# ##0.###")) -> 31 000 | M18: =VLOOKUP(K18,'SYSTEM FORMULAE'!$A$1:$G$2560,4) -> m | N18: = | O18: =IF(RIGHT(TEXT(VLOOKUP(K18,'SYSTEM FORMULAE'!$A$1:$G$2560,6),"# ##0.###"),1)=".",LEFT(TEXT(VLOOKUP(K18,'SYSTEM FORMULAE'!$A$1:$G$2560,6),"# ##0.###"),LEN(TEXT(VLOOKUP(K18,'SYSTEM FORMULAE'!$A$1:$G$2560,6),"# ##0.###"))-1),TEXT(VLOOKUP(K18,'SYSTEM FORMULAE'!$A$1:$G$2560,6),"# ##0.###")) -> 31 | P18: =VLOOKUP(K18,'SYSTEM FORMULAE'!$A$1:$G$2560,7) -> km | R18: =IF(ROW()<=Worksheet!$D$4/3,R17+1,"") -> 38 | S18: =RANDBETWEEN(1,MAX('SYSTEM FORMULAE'!$A$1:$A$2560)) -> 1518 | T18: =IF(RIGHT(TEXT(VLOOKUP(S18,'SYSTEM FORMULAE'!$A$1:$G$2560,3),"# ##0.###"),1)=".",LEFT(TEXT(VLOOKUP(S18,'SYSTEM FORMULAE'!$A$1:$G$2560,3),"# ##0.###"),LEN(TEXT(VLOOKUP(S18,'SYSTEM FORMULAE'!$A$1:$G$2560,3),"# ##0.###"))-1),TEXT(VLOOKUP(S18,'SYSTEM FORMULAE'!$A$1:$G$2560,3),"# ##0.###")) -> 80 000 | U18: =VLOOKUP(S18,'SYSTEM FORMULAE'!$A$1:$G$2560,4) -> ml | V18: = | W18: =IF(RIGHT(TEXT(VLOOKUP(S18,'SYSTEM FORMULAE'!$A$1:$G$2560,6),"# ##0.###"),1)=".",LEFT(TEXT(VLOOKUP(S18,'SYSTEM FORMULAE'!$A$1:$G$2560,6),"# ##0.###"),LEN(TEXT(VLOOKUP(S18,'SYSTEM FORMULAE'!$A$1:$G$2560,6),"# ##0.###"))-1),TEXT(VLOOKUP(S18,'SYSTEM FORMULAE'!$A$1:$G$2560,6),"# ##0.###")) -> 80 | X18: =VLOOKUP(S18,'SYSTEM FORMULAE'!$A$1:$G$2560,7) -> litres | Z18: =IF(ROW()<=Worksheet!$D$4/3,Z17+1,"") -> 58 | AA18: =RANDBETWEEN(1,MAX('SYSTEM FORMULAE'!$A$1:$A$2560)) -> 1241 | AB18: =IF(RIGHT(TEXT(VLOOKUP(AA18,'SYSTEM FORMULAE'!$A$1:$G$2560,3),"# ##0.###"),1)=".",LEFT(TEXT(VLOOKUP(AA18,'SYSTEM FORMULAE'!$A$1:$G$2560,3),"# ##0.###"),LEN(TEXT(VLOOKUP(AA18,'SYSTEM FORMULAE'!$A$1:$G$2560,3),"# ##0.###"))-1),TEXT(VLOOKUP(AA18,'SYSTEM FORMULAE'!$A$1:$G$2560,3),"# ##0.###")) -> 22 000 | AC18: =VLOOKUP(AA18,'SYSTEM FORMULAE'!$A$1:$G$2560,4) -> kg | AD18: = | AE18: =IF(RIGHT(TEXT(VLOOKUP(AA18,'SYSTEM FORMULAE'!$A$1:$G$2560,6),"# ##0.###"),1)=".",LEFT(TEXT(VLOOKUP(AA18,'SYSTEM FORMULAE'!$A$1:$G$2560,6),"# ##0.###"),LEN(TEXT(VLOOKUP(AA18,'SYSTEM FORMULAE'!$A$1:$G$2560,6),"# ##0.###"))-1),TEXT(VLOOKUP(AA18,'SYSTEM FORMULAE'!$A$1:$G$2560,6),"# ##0.###")) -> 22 | AF18: =VLOOKUP(AA18,'SYSTEM FORMULAE'!$A$1:$G$2560,7) -> tonnes
A19: =IF(COUNTIF($B$1:B19,TRUE)=COUNTIF($B$1:B18,TRUE),"",COUNTIF($B$1:B19,TRUE)) ->  | B19: =IF(Worksheet!$D$10=3,FALSE,Worksheet!$D$17) -> FALSE | C19: =IF(Worksheet!$D$6=1,RANDBETWEEN(1,99),IF(Worksheet!$D$6=2,CHOOSE(RANDBETWEEN(1,2),RANDBETWEEN(1,99),RANDBETWEEN(1,999)/10),CHOOSE(RANDBETWEEN(1,4),RANDBETWEEN(1,99999)/1000,RANDBETWEEN(1,9999)/100,RANDBETWEEN(1,999)/10,RANDBETWEEN(1,99)))) -> 39 | D19: litres | E19: = | F19: =1000*C19 -> 39000 | G19: cm³ | J19: =IF(ROW()<=Worksheet!$D$4/3,ROW(),"") -> 19 | K19: =RANDBETWEEN(1,MAX('SYSTEM FORMULAE'!$A$1:$A$2560)) -> 1288 | L19: =IF(RIGHT(TEXT(VLOOKUP(K19,'SYSTEM FORMULAE'!$A$1:$G$2560,3),"# ##0.###"),1)=".",LEFT(TEXT(VLOOKUP(K19,'SYSTEM FORMULAE'!$A$1:$G$2560,3),"# ##0.###"),LEN(TEXT(VLOOKUP(K19,'SYSTEM FORMULAE'!$A$1:$G$2560,3),"# ##0.###"))-1),TEXT(VLOOKUP(K19,'SYSTEM FORMULAE'!$A$1:$G$2560,3),"# ##0.###")) -> 80 000 | M19: =VLOOKUP(K19,'SYSTEM FORMULAE'!$A$1:$G$2560,4) -> g | N19: = | O19: =IF(RIGHT(TEXT(VLOOKUP(K19,'SYSTEM FORMULAE'!$A$1:$G$2560,6),"# ##0.###"),1)=".",LEFT(TEXT(VLOOKUP(K19,'SYSTEM FORMULAE'!$A$1:$G$2560,6),"# ##0.###"),LEN(TEXT(VLOOKUP(K19,'SYSTEM FORMULAE'!$A$1:$G$2560,6),"# ##0.###"))-1),TEXT(VLOOKUP(K19,'SYSTEM FORMULAE'!$A$1:$G$2560,6),"# ##0.###")) -> 80 | P19: =VLOOKUP(K19,'SYSTEM FORMULAE'!$A$1:$G$2560,7) -> kg | R19: =IF(ROW()<=Worksheet!$D$4/3,R18+1,"") -> 39 | S19: =RANDBETWEEN(1,MAX('SYSTEM FORMULAE'!$A$1:$A$2560)) -> 91 | T19: =IF(RIGHT(TEXT(VLOOKUP(S19,'SYSTEM FORMULAE'!$A$1:$G$2560,3),"# ##0.###"),1)=".",LEFT(TEXT(VLOOKUP(S19,'SYSTEM FORMULAE'!$A$1:$G$2560,3),"# ##0.###"),LEN(TEXT(VLOOKUP(S19,'SYSTEM FORMULAE'!$A$1:$G$2560,3),"# ##0.###"))-1),TEXT(VLOOKUP(S19,'SYSTEM FORMULAE'!$A$1:$G$2560,3),"# ##0.###")) -> 19 | U19: =VLOOKUP(S19,'SYSTEM FORMULAE'!$A$1:$G$2560,4) -> cm | V19: = | W19: =IF(RIGHT(TEXT(VLOOKUP(S19,'SYSTEM FORMULAE'!$A$1:$G$2560,6),"# ##0.###"),1)=".",LEFT(TEXT(VLOOKUP(S19,'SYSTEM FORMULAE'!$A$1:$G$2560,6),"# ##0.###"),LEN(TEXT(VLOOKUP(S19,'SYSTEM FORMULAE'!$A$1:$G$2560,6),"# ##0.###"))-1),TEXT(VLOOKUP(S19,'SYSTEM FORMULAE'!$A$1:$G$2560,6),"# ##0.###")) -> 190 | X19: =VLOOKUP(S19,'SYSTEM FORMULAE'!$A$1:$G$2560,7) -> mm | Z19: =IF(ROW()<=Worksheet!$D$4/3,Z18+1,"") -> 59 | AA19: =RANDBETWEEN(1,MAX('SYSTEM FORMULAE'!$A$1:$A$2560)) -> 614 | AB19: =IF(RIGHT(TEXT(VLOOKUP(AA19,'SYSTEM FORMULAE'!$A$1:$G$2560,3),"# ##0.###"),1)=".",LEFT(TEXT(VLOOKUP(AA19,'SYSTEM FORMULAE'!$A$1:$G$2560,3),"# ##0.###"),LEN(TEXT(VLOOKUP(AA19,'SYSTEM FORMULAE'!$A$1:$G$2560,3),"# ##0.###"))-1),TEXT(VLOOKUP(AA19,'SYSTEM FORMULAE'!$A$1:$G$2560,3),"# ##0.###")) -> 200 | AC19: =VLOOKUP(AA19,'SYSTEM FORMULAE'!$A$1:$G$2560,4) -> cm | AD19: = | AE19: =IF(RIGHT(TEXT(VLOOKUP(AA19,'SYSTEM FORMULAE'!$A$1:$G$2560,6),"# ##0.###"),1)=".",LEFT(TEXT(VLOOKUP(AA19,'SYSTEM FORMULAE'!$A$1:$G$2560,6),"# ##0.###"),LEN(TEXT(VLOOKUP(AA19,'SYSTEM FORMULAE'!$A$1:$G$2560,6),"# ##0.###"))-1),TEXT(VLOOKUP(AA19,'SYSTEM FORMULAE'!$A$1:$G$2560,6),"# ##0.###")) -> 2 | AF19: =VLOOKUP(AA19,'SYSTEM FORMULAE'!$A$1:$G$2560,7) -> m
A20: =IF(COUNTIF($B$1:B20,TRUE)=COUNTIF($B$1:B19,TRUE),"",COUNTIF($B$1:B20,TRUE)) ->  | B20: =IF(Worksheet!$D$10=3,FALSE,Worksheet!$D$18) -> FALSE | C20: =IF(Worksheet!$D$6=1,RANDBETWEEN(1,99),IF(Worksheet!$D$6=2,CHOOSE(RANDBETWEEN(1,2),RANDBETWEEN(1,99),RANDBETWEEN(1,999)/10),CHOOSE(RANDBETWEEN(1,4),RANDBETWEEN(1,99999)/1000,RANDBETWEEN(1,9999)/100,RANDBETWEEN(1,999)/10,RANDBETWEEN(1,99)))) -> 97 | D20: m² | E20: = | F20: =10000*C20 -> 970000 | G20: cm² | J20: =IF(ROW()<=Worksheet!$D$4/3,ROW(),"") -> 20 | K20: =RANDBETWEEN(1,MAX('SYSTEM FORMULAE'!$A$1:$A$2560)) -> 602 | L20: =IF(RIGHT(TEXT(VLOOKUP(K20,'SYSTEM FORMULAE'!$A$1:$G$2560,3),"# ##0.###"),1)=".",LEFT(TEXT(VLOOKUP(K20,'SYSTEM FORMULAE'!$A$1:$G$2560,3),"# ##0.###"),LEN(TEXT(VLOOKUP(K20,'SYSTEM FORMULAE'!$A$1:$G$2560,3),"# ##0.###"))-1),TEXT(VLOOKUP(K20,'SYSTEM FORMULAE'!$A$1:$G$2560,3),"# ##0.###")) -> 3 600 | M20: =VLOOKUP(K20,'SYSTEM FORMULAE'!$A$1:$G$2560,4) -> cm | N20: = | O20: =IF(RIGHT(TEXT(VLOOKUP(K20,'SYSTEM FORMULAE'!$A$1:$G$2560,6),"# ##0.###"),1)=".",LEFT(TEXT(VLOOKUP(K20,'SYSTEM FORMULAE'!$A$1:$G$2560,6),"# ##0.###"),LEN(TEXT(VLOOKUP(K20,'SYSTEM FORMULAE'!$A$1:$G$2560,6),"# ##0.###"))-1),TEXT(VLOOKUP(K20,'SYSTEM FORMULAE'!$A$1:$G$2560,6),"# ##0.###")) -> 36 | P20: =VLOOKUP(K20,'SYSTEM FORMULAE'!$A$1:$G$2560,7) -> m | R20: =IF(ROW()<=Worksheet!$D$4/3,R19+1,"") -> 40 | S20: =RANDBETWEEN(1,MAX('SYSTEM FORMULAE'!$A$1:$A$2560)) -> 1179 | T20: =IF(RIGHT(TEXT(VLOOKUP(S20,'SYSTEM FORMULAE'!$A$1:$G$2560,3),"# ##0.###"),1)=".",LEFT(TEXT(VLOOKUP(S20,'SYSTEM FORMULAE'!$A$1:$G$2560,3),"# ##0.###"),LEN(TEXT(VLOOKUP(S20,'SYSTEM FORMULAE'!$A$1:$G$2560,3),"# ##0.###"))-1),TEXT(VLOOKUP(S20,'SYSTEM FORMULAE'!$A$1:$G$2560,3),"# ##0.###")) -> 12 000 | U20: =VLOOKUP(S20,'SYSTEM FORMULAE'!$A$1:$G$2560,4) -> m | V20: = | W20: =IF(RIGHT(TEXT(VLOOKUP(S20,'SYSTEM FORMULAE'!$A$1:$G$2560,6),"# ##0.###"),1)=".",LEFT(TEXT(VLOOKUP(S20,'SYSTEM FORMULAE'!$A$1:$G$2560,6),"# ##0.###"),LEN(TEXT(VLOOKUP(S20,'SYSTEM FORMULAE'!$A$1:$G$2560,6),"# ##0.###"))-1),TEXT(VLOOKUP(S20,'SYSTEM FORMULAE'!$A$1:$G$2560,6),"# ##0.###")) -> 12 | X20: =VLOOKUP(S20,'SYSTEM FORMULAE'!$A$1:$G$2560,7) -> km | Z20: =IF(ROW()<=Worksheet!$D$4/3,Z19+1,"") -> 60 | AA20: =RANDBETWEEN(1,MAX('SYSTEM FORMULAE'!$A$1:$A$2560)) -> 1528 | AB20: =IF(RIGHT(TEXT(VLOOKUP(AA20,'SYSTEM FORMULAE'!$A$1:$G$2560,3),"# ##0.###"),1)=".",LEFT(TEXT(VLOOKUP(AA20,'SYSTEM FORMULAE'!$A$1:$G$2560,3),"# ##0.###"),LEN(TEXT(VLOOKUP(AA20,'SYSTEM FORMULAE'!$A$1:$G$2560,3),"# ##0.###"))-1),TEXT(VLOOKUP(AA20,'SYSTEM FORMULAE'!$A$1:$G$2560,3),"# ##0.###")) -> 36 000 | AC20: =VLOOKUP(AA20,'SYSTEM FORMULAE'!$A$1:$G$2560,4) -> g | AD20: = | AE20: =IF(RIGHT(TEXT(VLOOKUP(AA20,'SYSTEM FORMULAE'!$A$1:$G$2560,6),"# ##0.###"),1)=".",LEFT(TEXT(VLOOKUP(AA20,'SYSTEM FORMULAE'!$A$1:$G$2560,6),"# ##0.###"),LEN(TEXT(VLOOKUP(AA20,'SYSTEM FORMULAE'!$A$1:$G$2560,6),"# ##0.###"))-1),TEXT(VLOOKUP(AA20,'SYSTEM FORMULAE'!$A$1:$G$2560,6),"# ##0.###")) -> 36 | AF20: =VLOOKUP(AA20,'SYSTEM FORMULAE'!$A$1:$G$2560,7) -> kg
A21: =IF(COUNTIF($B$1:B21,TRUE)=COUNTIF($B$1:B20,TRUE),"",COUNTIF($B$1:B21,TRUE)) -> 13 | B21: =IF(Worksheet!$D$10=2,FALSE,Worksheet!$B$14) -> TRUE | C21: =10*F21 -> 100 | D21: mm | E21: = | F21: =IF(Worksheet!$D$6=1,RANDBETWEEN(1,99),IF(Worksheet!$D$6=2,CHOOSE(RANDBETWEEN(1,2),RANDBETWEEN(1,99),RANDBETWEEN(1,999)/10),CHOOSE(RANDBETWEEN(1,4),RANDBETWEEN(1,99999)/1000,RANDBETWEEN(1,9999)/100,RANDBETWEEN(1,999)/10,RANDBETWEEN(1,99)))) -> 10 | G21: cm
A22: =IF(COUNTIF($B$1:B22,TRUE)=COUNTIF($B$1:B21,TRUE),"",COUNTIF($B$1:B22,TRUE)) -> 14 | B22: =IF(Worksheet!$D$10=2,FALSE,Worksheet!$B$15) -> TRUE | C22: =100*F22 -> 4800 | D22: cm | E22: = | F22: =IF(Worksheet!$D$6=1,RANDBETWEEN(1,99),IF(Worksheet!$D$6=2,CHOOSE(RANDBETWEEN(1,2),RANDBETWEEN(1,99),RANDBETWEEN(1,999)/10),CHOOSE(RANDBETWEEN(1,4),RANDBETWEEN(1,99999)/1000,RANDBETWEEN(1,9999)/100,RANDBETWEEN(1,999)/10,RANDBETWEEN(1,99)))) -> 48 | G22: m
A23: =IF(COUNTIF($B$1:B23,TRUE)=COUNTIF($B$1:B22,TRUE),"",COUNTIF($B$1:B23,TRUE)) -> 15 | B23: =IF(Worksheet!$D$10=2,FALSE,Worksheet!$B$16) -> TRUE | C23: =1000*F23 -> 52000 | D23: m | E23: = | F23: =IF(Worksheet!$D$6=1,RANDBETWEEN(1,99),IF(Worksheet!$D$6=2,CHOOSE(RANDBETWEEN(1,2),RANDBETWEEN(1,99),RANDBETWEEN(1,999)/10),CHOOSE(RANDBETWEEN(1,4),RANDBETWEEN(1,99999)/1000,RANDBETWEEN(1,9999)/100,RANDBETWEEN(1,999)/10,RANDBETWEEN(1,99)))) -> 52 | G23: km
A24: =IF(COUNTIF($B$1:B24,TRUE)=COUNTIF($B$1:B23,TRUE),"",COUNTIF($B$1:B24,TRUE)) ->  | B24: =IF(Worksheet!$D$10=2,FALSE,Worksheet!$B$17) -> FALSE | C24: =1000*F24 -> 97000 | D24: mm | E24: = | F24: =IF(Worksheet!$D$6=1,RANDBETWEEN(1,99),IF(Worksheet!$D$6=2,CHOOSE(RANDBETWEEN(1,2),RANDBETWEEN(1,99),RANDBETWEEN(1,999)/10),CHOOSE(RANDBETWEEN(1,4),RANDBETWEEN(1,99999)/1000,RANDBETWEEN(1,9999)/100,RANDBETWEEN(1,999)/10,RANDBETWEEN(1,99)))) -> 97 | G24: m
A25: =IF(COUNTIF($B$1:B25,TRUE)=COUNTIF($B$1:B24,TRUE),"",COUNTIF($B$1:B25,TRUE)) ->  | B25: =IF(Worksheet!$D$10=2,FALSE,Worksheet!$B$18) -> FALSE | C25: =100*F25 -> 200 | D25: mm² | E25: = | F25: =IF(Worksheet!$D$6=1,RANDBETWEEN(1,99),IF(Worksheet!$D$6=2,CHOOSE(RANDBETWEEN(1,2),RANDBETWEEN(1,99),RANDBETWEEN(1,999)/10),CHOOSE(RANDBETWEEN(1,4),RANDBETWEEN(1,99999)/1000,RANDBETWEEN(1,9999)/100,RANDBETWEEN(1,999)/10,RANDBETWEEN(1,99)))) -> 2 | G25: cm²
A26: =IF(COUNTIF($B$1:B26,TRUE)=COUNTIF($B$1:B25,TRUE),"",COUNTIF($B$1:B26,TRUE)) -> 16 | B26: =IF(Worksheet!$D$10=2,FALSE,Worksheet!$D$14) -> TRUE | C26: =F26*1000 -> 2000 | D26: g | E26: = | F26: =IF(Worksheet!$D$6=1,RANDBETWEEN(1,99),IF(Worksheet!$D$6=2,CHOOSE(RANDBETWEEN(1,2),RANDBETWEEN(1,99),RANDBETWEEN(1,999)/10),CHOOSE(RANDBETWEEN(1,4),RANDBETWEEN(1,99999)/1000,RANDBETWEEN(1,9999)/100,RANDBETWEEN(1,999)/10,RANDBETWEEN(1,99)))) -> 2 | G26: kg
A27: =IF(COUNTIF($B$1:B27,TRUE)=COUNTIF($B$1:B26,TRUE),"",COUNTIF($B$1:B27,TRUE)) -> 17 | B27: =IF(Worksheet!$D$10=2,FALSE,Worksheet!$D$15) -> TRUE | C27: =F27*1000 -> 17000 | D27: kg | E27: = | F27: =IF(Worksheet!$D$6=1,RANDBETWEEN(1,99),IF(Worksheet!$D$6=2,CHOOSE(RANDBETWEEN(1,2),RANDBETWEEN(1,99),RANDBETWEEN(1,999)/10),CHOOSE(RANDBETWEEN(1,4),RANDBETWEEN(1,99999)/1000,RANDBETWEEN(1,9999)/100,RANDBETWEEN(1,999)/10,RANDBETWEEN(1,99)))) -> 17 | G27: tonnes
A28: =IF(COUNTIF($B$1:B28,TRUE)=COUNTIF($B$1:B27,TRUE),"",COUNTIF($B$1:B28,TRUE)) -> 18 | B28: =IF(Worksheet!$D$10=2,FALSE,Worksheet!$D$16) -> TRUE | C28: =1000*F28 -> 65000 | D28: ml | E28: = | F28: =IF(Worksheet!$D$6=1,RANDBETWEEN(1,99),IF(Worksheet!$D$6=2,CHOOSE(RANDBETWEEN(1,2),RANDBETWEEN(1,99),RANDBETWEEN(1,999)/10),CHOOSE(RANDBETWEEN(1,4),RANDBETWEEN(1,99999)/1000,RANDBETWEEN(1,9999)/100,RANDBETWEEN(1,999)/10,RANDBETWEEN(1,99)))) -> 65 | G28: litres
A29: =IF(COUNTIF($B$1:B29,TRUE)=COUNTIF($B$1:B28,TRUE),"",COUNTIF($B$1:B29,TRUE)) ->  | B29: =IF(Worksheet!$D$10=2,FALSE,Worksheet!$D$17) -> FALSE | C29: =1000*F29 -> 22000 | D29: cm³ | E29: = | F29: =IF(Worksheet!$D$6=1,RANDBETWEEN(1,99),IF(Worksheet!$D$6=2,CHOOSE(RANDBETWEEN(1,2),RANDBETWEEN(1,99),RANDBETWEEN(1,999)/10),CHOOSE(RANDBETWEEN(1,4),RANDBETWEEN(1,99999)/1000,RANDBETWEEN(1,9999)/100,RANDBETWEEN(1,999)/10,RANDBETWEEN(1,99)))) -> 22 | G29: litres
A30: =IF(COUNTIF($B$1:B30,TRUE)=COUNTIF($B$1:B29,TRUE),"",COUNTIF($B$1:B30,TRUE)) ->  | B30: =IF(Worksheet!$D$10=2,FALSE,Worksheet!$D$18) -> FALSE | C30: =10000*F30 -> 110000 | D30: cm² | E30: = | F30: =IF(Worksheet!$D$6=1,RANDBETWEEN(1,99),IF(Worksheet!$D$6=2,CHOOSE(RANDBETWEEN(1,2),RANDBETWEEN(1,99),RANDBETWEEN(1,999)/10),CHOOSE(RANDBETWEEN(1,4),RANDBETWEEN(1,99999)/1000,RANDBETWEEN(1,9999)/100,RANDBETWEEN(1,999)/10,RANDBETWEEN(1,99)))) -> 11 | G30: m²
A31: =IF(COUNTIF($B$1:B31,TRUE)=COUNTIF($B$1:B30,TRUE),"",COUNTIF($B$1:B31,TRUE)) -> 19 | B31: =IF(Worksheet!$D$10=3,FALSE,Worksheet!$B$14) -> TRUE | C31: =IF(Worksheet!$D$6=1,RANDBETWEEN(1,99),IF(Worksheet!$D$6=2,CHOOSE(RANDBETWEEN(1,2),RANDBETWEEN(1,99),RANDBETWEEN(1,999)/10),CHOOSE(RANDBETWEEN(1,4),RANDBETWEEN(1,99999)/1000,RANDBETWEEN(1,9999)/100,RANDBETWEEN(1,999)/10,RANDBETWEEN(1,99)))) -> 81 | D31: cm | E31: = | F31: =10*C31 -> 810 | G31: mm
A32: =IF(COUNTIF($B$1:B32,TRUE)=COUNTIF($B$1:B31,TRUE),"",COUNTIF($B$1:B32,TRUE)) -> 20 | B32: =IF(Worksheet!$D$10=3,FALSE,Worksheet!$B$15) -> TRUE | C32: =IF(Worksheet!$D$6=1,RANDBETWEEN(1,99),IF(Worksheet!$D$6=2,CHOOSE(RANDBETWEEN(1,2),RANDBETWEEN(1,99),RANDBETWEEN(1,999)/10),CHOOSE(RANDBETWEEN(1,4),RANDBETWEEN(1,99999)/1000,RANDBETWEEN(1,9999)/100,RANDBETWEEN(1,999)/10,RANDBETWEEN(1,99)))) -> 80 | D32: m | E32: = | F32: =100*C32 -> 8000 | G32: cm
A33: =IF(COUNTIF($B$1:B33,TRUE)=COUNTIF($B$1:B32,TRUE),"",COUNTIF($B$1:B33,TRUE)) -> 21 | B33: =IF(Worksheet!$D$10=3,FALSE,Worksheet!$B$16) -> TRUE | C33: =IF(Worksheet!$D$6=1,RANDBETWEEN(1,99),IF(Worksheet!$D$6=2,CHOOSE(RANDBETWEEN(1,2),RANDBETWEEN(1,99),RANDBETWEEN(1,999)/10),CHOOSE(RANDBETWEEN(1,4),RANDBETWEEN(1,99999)/1000,RANDBETWEEN(1,9999)/100,RANDBETWEEN(1,999)/10,RANDBETWEEN(1,99)))) -> 30 | D33: km | E33: = | F33: =1000*C33 -> 30000 | G33: m
A34: =IF(COUNTIF($B$1:B34,TRUE)=COUNTIF($B$1:B33,TRUE),"",COUNTIF($B$1:B34,TRUE)) ->  | B34: =IF(Worksheet!$D$10=3,FALSE,Worksheet!$B$17) -> FALSE | C34: =IF(Worksheet!$D$6=1,RANDBETWEEN(1,99),IF(Worksheet!$D$6=2,CHOOSE(RANDBETWEEN(1,2),RANDBETWEEN(1,99),RANDBETWEEN(1,999)/10),CHOOSE(RANDBETWEEN(1,4),RANDBETWEEN(1,99999)/1000,RANDBETWEEN(1,9999)/100,RANDBETWEEN(1,999)/10,RANDBETWEEN(1,99)))) -> 64 | D34: m | E34: =#REF! ->  | F34: =1000*C34 -> 64000 | G34: mm
A35: =IF(COUNTIF($B$1:B35,TRUE)=COUNTIF($B$1:B34,TRUE),"",COUNTIF($B$1:B35,TRUE)) ->  | B35: =IF(Worksheet!$D$10=3,FALSE,Worksheet!$B$18) -> FALSE | C35: =IF(Worksheet!$D$6=1,RANDBETWEEN(1,99),IF(Worksheet!$D$6=2,CHOOSE(RANDBETWEEN(1,2),RANDBETWEEN(1,99),RANDBETWEEN(1,999)/10),CHOOSE(RANDBETWEEN(1,4),RANDBETWEEN(1,99999)/1000,RANDBETWEEN(1,9999)/100,RANDBETWEEN(1,999)/10,RANDBETWEEN(1,99)))) -> 93 | D35: cm² | E35: = | F35: =C35*100 -> 9300 | G35: mm²
A36: =IF(COUNTIF($B$1:B36,TRUE)=COUNTIF($B$1:B35,TRUE),"",COUNTIF($B$1:B36,TRUE)) -> 22 | B36: =IF(Worksheet!$D$10=3,FALSE,Worksheet!$D$14) -> TRUE | C36: =IF(Worksheet!$D$6=1,RANDBETWEEN(1,99),IF(Worksheet!$D$6=2,CHOOSE(RANDBETWEEN(1,2),RANDBETWEEN(1,99),RANDBETWEEN(1,999)/10),CHOOSE(RANDBETWEEN(1,4),RANDBETWEEN(1,99999)/1000,RANDBETWEEN(1,9999)/100,RANDBETWEEN(1,999)/10,RANDBETWEEN(1,99)))) -> 12 | D36: kg | E36: = | F36: =1000*C36 -> 12000 | G36: g
A37: =IF(COUNTIF($B$1:B37,TRUE)=COUNTIF($B$1:B36,TRUE),"",COUNTIF($B$1:B37,TRUE)) -> 23 | B37: =IF(Worksheet!$D$10=3,FALSE,Worksheet!$D$15) -> TRUE | C37: =IF(Worksheet!$D$6=1,RANDBETWEEN(1,99),IF(Worksheet!$D$6=2,CHOOSE(RANDBETWEEN(1,2),RANDBETWEEN(1,99),RANDBETWEEN(1,999)/10),CHOOSE(RANDBETWEEN(1,4),RANDBETWEEN(1,99999)/1000,RANDBETWEEN(1,9999)/100,RANDBETWEEN(1,999)/10,RANDBETWEEN(1,99)))) -> 91 | D37: tonnes | E37: = | F37: =1000*C37 -> 91000 | G37: kg
A38: =IF(COUNTIF($B$1:B38,TRUE)=COUNTIF($B$1:B37,TRUE),"",COUNTIF($B$1:B38,TRUE)) -> 24 | B38: =IF(Worksheet!$D$10=3,FALSE,Worksheet!$D$16) -> TRUE | C38: =IF(Worksheet!$D$6=1,RANDBETWEEN(1,99),IF(Worksheet!$D$6=2,CHOOSE(RANDBETWEEN(1,2),RANDBETWEEN(1,99),RANDBETWEEN(1,999)/10),CHOOSE(RANDBETWEEN(1,4),RANDBETWEEN(1,99999)/1000,RANDBETWEEN(1,9999)/100,RANDBETWEEN(1,999)/10,RANDBETWEEN(1,99)))) -> 77 | D38: litres | E38: = | F38: =1000*C38 -> 77000 | G38: ml
A39: =IF(COUNTIF($B$1:B39,TRUE)=COUNTIF($B$1:B38,TRUE),"",COUNTIF($B$1:B39,TRUE)) ->  | B39: =IF(Worksheet!$D$10=3,FALSE,Worksheet!$D$17) -> FALSE | C39: =IF(Worksheet!$D$6=1,RANDBETWEEN(1,99),IF(Worksheet!$D$6=2,CHOOSE(RANDBETWEEN(1,2),RANDBETWEEN(1,99),RANDBETWEEN(1,999)/10),CHOOSE(RANDBETWEEN(1,4),RANDBETWEEN(1,99999)/1000,RANDBETWEEN(1,9999)/100,RANDBETWEEN(1,999)/10,RANDBETWEEN(1,99)))) -> 16 | D39: litres | E39: = | F39: =1000*C39 -> 16000 | G39: cm³
A40: =IF(COUNTIF($B$1:B40,TRUE)=COUNTIF($B$1:B39,TRUE),"",COUNTIF($B$1:B40,TRUE)) ->  | B40: =IF(Worksheet!$D$10=3,FALSE,Worksheet!$D$18) -> FALSE | C40: =IF(Worksheet!$D$6=1,RANDBETWEEN(1,99),IF(Worksheet!$D$6=2,CHOOSE(RANDBETWEEN(1,2),RANDBETWEEN(1,99),RANDBETWEEN(1,999)/10),CHOOSE(RANDBETWEEN(1,4),RANDBETWEEN(1,99999)/1000,RANDBETWEEN(1,9999)/100,RANDBETWEEN(1,999)/10,RANDBETWEEN(1,99)))) -> 49 | D40: m² | E40: = | F40: =10000*C40 -> 490000 | G40: cm²
A41: =IF(COUNTIF($B$1:B41,TRUE)=COUNTIF($B$1:B40,TRUE),"",COUNTIF($B$1:B41,TRUE)) -> 25 | B41: =IF(Worksheet!$D$10=2,FALSE,Worksheet!$B$14) -> TRUE | C41: =10*F41 -> 620 | D41: mm | E41: = | F41: =IF(Worksheet!$D$6=1,RANDBETWEEN(1,99),IF(Worksheet!$D$6=2,CHOOSE(RANDBETWEEN(1,2),RANDBETWEEN(1,99),RANDBETWEEN(1,999)/10),CHOOSE(RANDBETWEEN(1,4),RANDBETWEEN(1,99999)/1000,RANDBETWEEN(1,9999)/100,RANDBETWEEN(1,999)/10,RANDBETWEEN(1,99)))) -> 62 | G41: cm
A42: =IF(COUNTIF($B$1:B42,TRUE)=COUNTIF($B$1:B41,TRUE),"",COUNTIF($B$1:B42,TRUE)) -> 26 | B42: =IF(Worksheet!$D$10=2,FALSE,Worksheet!$B$15) -> TRUE | C42: =100*F42 -> 100 | D42: cm | E42: = | F42: =IF(Worksheet!$D$6=1,RANDBETWEEN(1,99),IF(Worksheet!$D$6=2,CHOOSE(RANDBETWEEN(1,2),RANDBETWEEN(1,99),RANDBETWEEN(1,999)/10),CHOOSE(RANDBETWEEN(1,4),RANDBETWEEN(1,99999)/1000,RANDBETWEEN(1,9999)/100,RANDBETWEEN(1,999)/10,RANDBETWEEN(1,99)))) -> 1 | G42: m
A43: =IF(COUNTIF($B$1:B43,TRUE)=COUNTIF($B$1:B42,TRUE),"",COUNTIF($B$1:B43,TRUE)) -> 27 | B43: =IF(Worksheet!$D$10=2,FALSE,Worksheet!$B$16) -> TRUE | C43: =1000*F43 -> 34000 | D43: m | E43: = | F43: =IF(Worksheet!$D$6=1,RANDBETWEEN(1,99),IF(Worksheet!$D$6=2,CHOOSE(RANDBETWEEN(1,2),RANDBETWEEN(1,99),RANDBETWEEN(1,999)/10),CHOOSE(RANDBETWEEN(1,4),RANDBETWEEN(1,99999)/1000,RANDBETWEEN(1,9999)/100,RANDBETWEEN(1,999)/10,RANDBETWEEN(1,99)))) -> 34 | G43: km
A44: =IF(COUNTIF($B$1:B44,TRUE)=COUNTIF($B$1:B43,TRUE),"",COUNTIF($B$1:B44,TRUE)) ->  | B44: =IF(Worksheet!$D$10=2,FALSE,Worksheet!$B$17) -> FALSE | C44: =1000*F44 -> 20000 | D44: mm | E44: = | F44: =IF(Worksheet!$D$6=1,RANDBETWEEN(1,99),IF(Worksheet!$D$6=2,CHOOSE(RANDBETWEEN(1,2),RANDBETWEEN(1,99),RANDBETWEEN(1,999)/10),CHOOSE(RANDBETWEEN(1,4),RANDBETWEEN(1,99999)/1000,RANDBETWEEN(1,9999)/100,RANDBETWEEN(1,999)/10,RANDBETWEEN(1,99)))) -> 20 | G44: m
A45: =IF(COUNTIF($B$1:B45,TRUE)=COUNTIF($B$1:B44,TRUE),"",COUNTIF($B$1:B45,TRUE)) ->  | B45: =IF(Worksheet!$D$10=2,FALSE,Worksheet!$B$18) -> FALSE | C45: =100*F45 -> 6600 | D45: mm² | E45: = | F45: =IF(Worksheet!$D$6=1,RANDBETWEEN(1,99),IF(Worksheet!$D$6=2,CHOOSE(RANDBETWEEN(1,2),RANDBETWEEN(1,99),RANDBETWEEN(1,999)/10),CHOOSE(RANDBETWEEN(1,4),RANDBETWEEN(1,99999)/1000,RANDBETWEEN(1,9999)/100,RANDBETWEEN(1,999)/10,RANDBETWEEN(1,99)))) -> 66 | G45: cm²
A46: =IF(COUNTIF($B$1:B46,TRUE)=COUNTIF($B$1:B45,TRUE),"",COUNTIF($B$1:B46,TRUE)) -> 28 | B46: =IF(Worksheet!$D$10=2,FALSE,Worksheet!$D$14) -> TRUE | C46: =F46*1000 -> 21000 | D46: g | E46: = | F46: =IF(Worksheet!$D$6=1,RANDBETWEEN(1,99),IF(Worksheet!$D$6=2,CHOOSE(RANDBETWEEN(1,2),RANDBETWEEN(1,99),RANDBETWEEN(1,999)/10),CHOOSE(RANDBETWEEN(1,4),RANDBETWEEN(1,99999)/1000,RANDBETWEEN(1,9999)/100,RANDBETWEEN(1,999)/10,RANDBETWEEN(1,99)))) -> 21 | G46: kg
A47: =IF(COUNTIF($B$1:B47,TRUE)=COUNTIF($B$1:B46,TRUE),"",COUNTIF($B$1:B47,TRUE)) -> 29 | B47: =IF(Worksheet!$D$10=2,FALSE,Worksheet!$D$15) -> TRUE | C47: =F47*1000 -> 91000 | D47: kg | E47: = | F47: =IF(Worksheet!$D$6=1,RANDBETWEEN(1,99),IF(Worksheet!$D$6=2,CHOOSE(RANDBETWEEN(1,2),RANDBETWEEN(1,99),RANDBETWEEN(1,999)/10),CHOOSE(RANDBETWEEN(1,4),RANDBETWEEN(1,99999)/1000,RANDBETWEEN(1,9999)/100,RANDBETWEEN(1,999)/10,RANDBETWEEN(1,99)))) -> 91 | G47: tonnes
A48: =IF(COUNTIF($B$1:B48,TRUE)=COUNTIF($B$1:B47,TRUE),"",COUNTIF($B$1:B48,TRUE)) -> 30 | B48: =IF(Worksheet!$D$10=2,FALSE,Worksheet!$D$16) -> TRUE | C48: =1000*F48 -> 75000 | D48: ml | E48: = | F48: =IF(Worksheet!$D$6=1,RANDBETWEEN(1,99),IF(Worksheet!$D$6=2,CHOOSE(RANDBETWEEN(1,2),RANDBETWEEN(1,99),RANDBETWEEN(1,999)/10),CHOOSE(RANDBETWEEN(1,4),RANDBETWEEN(1,99999)/1000,RANDBETWEEN(1,9999)/100,RANDBETWEEN(1,999)/10,RANDBETWEEN(1,99)))) -> 75 | G48: litres
A49: =IF(COUNTIF($B$1:B49,TRUE)=COUNTIF($B$1:B48,TRUE),"",COUNTIF($B$1:B49,TRUE)) ->  | B49: =IF(Worksheet!$D$10=2,FALSE,Worksheet!$D$17) -> FALSE | C49: =1000*F49 -> 42000 | D49: cm³ | E49: = | F49: =IF(Worksheet!$D$6=1,RANDBETWEEN(1,99),IF(Worksheet!$D$6=2,CHOOSE(RANDBETWEEN(1,2),RANDBETWEEN(1,99),RANDBETWEEN(1,999)/10),CHOOSE(RANDBETWEEN(1,4),RANDBETWEEN(1,99999)/1000,RANDBETWEEN(1,9999)/100,RANDBETWEEN(1,999)/10,RANDBETWEEN(1,99)))) -> 42 | G49: litres
A50: =IF(COUNTIF($B$1:B50,TRUE)=COUNTIF($B$1:B49,TRUE),"",COUNTIF($B$1:B50,TRUE)) ->  | B50: =IF(Worksheet!$D$10=2,FALSE,Worksheet!$D$18) -> FALSE | C50: =10000*F50 -> 690000 | D50: cm² | E50: = | F50: =IF(Worksheet!$D$6=1,RANDBETWEEN(1,99),IF(Worksheet!$D$6=2,CHOOSE(RANDBETWEEN(1,2),RANDBETWEEN(1,99),RANDBETWEEN(1,999)/10),CHOOSE(RANDBETWEEN(1,4),RANDBETWEEN(1,99999)/1000,RANDBETWEEN(1,9999)/100,RANDBETWEEN(1,999)/10,RANDBETWEEN(1,99)))) -> 69 | G50: m²
A51: =IF(COUNTIF($B$1:B51,TRUE)=COUNTIF($B$1:B50,TRUE),"",COUNTIF($B$1:B51,TRUE)) -> 31 | B51: =IF(Worksheet!$D$10=3,FALSE,Worksheet!$B$14) -> TRUE | C51: =IF(Worksheet!$D$6=1,RANDBETWEEN(1,99),IF(Worksheet!$D$6=2,CHOOSE(RANDBETWEEN(1,2),RANDBETWEEN(1,99),RANDBETWEEN(1,999)/10),CHOOSE(RANDBETWEEN(1,4),RANDBETWEEN(1,99999)/1000,RANDBETWEEN(1,9999)/100,RANDBETWEEN(1,999)/10,RANDBETWEEN(1,99)))) -> 55 | D51: cm | E51: = | F51: =10*C51 -> 550 | G51: mm
A52: =IF(COUNTIF($B$1:B52,TRUE)=COUNTIF($B$1:B51,TRUE),"",COUNTIF($B$1:B52,TRUE)) -> 32 | B52: =IF(Worksheet!$D$10=3,FALSE,Worksheet!$B$15) -> TRUE | C52: =IF(Worksheet!$D$6=1,RANDBETWEEN(1,99),IF(Worksheet!$D$6=2,CHOOSE(RANDBETWEEN(1,2),RANDBETWEEN(1,99),RANDBETWEEN(1,999)/10),CHOOSE(RANDBETWEEN(1,4),RANDBETWEEN(1,99999)/1000,RANDBETWEEN(1,9999)/100,RANDBETWEEN(1,999)/10,RANDBETWEEN(1,99)))) -> 52 | D52: m | E52: = | F52: =100*C52 -> 5200 | G52: cm
A53: =IF(COUNTIF($B$1:B53,TRUE)=COUNTIF($B$1:B52,TRUE),"",COUNTIF($B$1:B53,TRUE)) -> 33 | B53: =IF(Worksheet!$D$10=3,FALSE,Worksheet!$B$16) -> TRUE | C53: =IF(Worksheet!$D$6=1,RANDBETWEEN(1,99),IF(Worksheet!$D$6=2,CHOOSE(RANDBETWEEN(1,2),RANDBETWEEN(1,99),RANDBETWEEN(1,999)/10),CHOOSE(RANDBETWEEN(1,4),RANDBETWEEN(1,99999)/1000,RANDBETWEEN(1,9999)/100,RANDBETWEEN(1,999)/10,RANDBETWEEN(1,99)))) -> 84 | D53: km | E53: = | F53: =1000*C53 -> 84000 | G53: m
A54: =IF(COUNTIF($B$1:B54,TRUE)=COUNTIF($B$1:B53,TRUE),"",COUNTIF($B$1:B54,TRUE)) ->  | B54: =IF(Worksheet!$D$10=3,FALSE,Worksheet!$B$17) -> FALSE | C54: =IF(Worksheet!$D$6=1,RANDBETWEEN(1,99),IF(Worksheet!$D$6=2,CHOOSE(RANDBETWEEN(1,2),RANDBETWEEN(1,99),RANDBETWEEN(1,999)/10),CHOOSE(RANDBETWEEN(1,4),RANDBETWEEN(1,99999)/1000,RANDBETWEEN(1,9999)/100,RANDBETWEEN(1,999)/10,RANDBETWEEN(1,99)))) -> 86 | D54: m | E54: =#REF! ->  | F54: =1000*C54 -> 86000 | G54: mm
A55: =IF(COUNTIF($B$1:B55,TRUE)=COUNTIF($B$1:B54,TRUE),"",COUNTIF($B$1:B55,TRUE)) ->  | B55: =IF(Worksheet!$D$10=3,FALSE,Worksheet!$B$18) -> FALSE | C55: =IF(Worksheet!$D$6=1,RANDBETWEEN(1,99),IF(Worksheet!$D$6=2,CHOOSE(RANDBETWEEN(1,2),RANDBETWEEN(1,99),RANDBETWEEN(1,999)/10),CHOOSE(RANDBETWEEN(1,4),RANDBETWEEN(1,99999)/1000,RANDBETWEEN(1,9999)/100,RANDBETWEEN(1,999)/10,RANDBETWEEN(1,99)))) -> 67 | D55: cm² | E55: = | F55: =C55*100 -> 6700 | G55: mm²
A56: =IF(COUNTIF($B$1:B56,TRUE)=COUNTIF($B$1:B55,TRUE),"",COUNTIF($B$1:B56,TRUE)) -> 34 | B56: =IF(Worksheet!$D$10=3,FALSE,Worksheet!$D$14) -> TRUE | C56: =IF(Worksheet!$D$6=1,RANDBETWEEN(1,99),IF(Worksheet!$D$6=2,CHOOSE(RANDBETWEEN(1,2),RANDBETWEEN(1,99),RANDBETWEEN(1,999)/10),CHOOSE(RANDBETWEEN(1,4),RANDBETWEEN(1,99999)/1000,RANDBETWEEN(1,9999)/100,RANDBETWEEN(1,999)/10,RANDBETWEEN(1,99)))) -> 52 | D56: kg | E56: = | F56: =1000*C56 -> 52000 | G56: g
A57: =IF(COUNTIF($B$1:B57,TRUE)=COUNTIF($B$1:B56,TRUE),"",COUNTIF($B$1:B57,TRUE)) -> 35 | B57: =IF(Worksheet!$D$10=3,FALSE,Worksheet!$D$15) -> TRUE | C57: =IF(Worksheet!$D$6=1,RANDBETWEEN(1,99),IF(Worksheet!$D$6=2,CHOOSE(RANDBETWEEN(1,2),RANDBETWEEN(1,99),RANDBETWEEN(1,999)/10),CHOOSE(RANDBETWEEN(1,4),RANDBETWEEN(1,99999)/1000,RANDBETWEEN(1,9999)/100,RANDBETWEEN(1,999)/10,RANDBETWEEN(1,99)))) -> 13 | D57: tonnes | E57: = | F57: =1000*C57 -> 13000 | G57: kg
A58: =IF(COUNTIF($B$1:B58,TRUE)=COUNTIF($B$1:B57,TRUE),"",COUNTIF($B$1:B58,TRUE)) -> 36 | B58: =IF(Worksheet!$D$10=3,FALSE,Worksheet!$D$16) -> TRUE | C58: =IF(Worksheet!$D$6=1,RANDBETWEEN(1,99),IF(Worksheet!$D$6=2,CHOOSE(RANDBETWEEN(1,2),RANDBETWEEN(1,99),RANDBETWEEN(1,999)/10),CHOOSE(RANDBETWEEN(1,4),RANDBETWEEN(1,99999)/1000,RANDBETWEEN(1,9999)/100,RANDBETWEEN(1,999)/10,RANDBETWEEN(1,99)))) -> 15 | D58: litres | E58: = | F58: =1000*C58 -> 15000 | G58: ml
A59: =IF(COUNTIF($B$1:B59,TRUE)=COUNTIF($B$1:B58,TRUE),"",COUNTIF($B$1:B59,TRUE)) ->  | B59: =IF(Worksheet!$D$10=3,FALSE,Worksheet!$D$17) -> FALSE | C59: =IF(Worksheet!$D$6=1,RANDBETWEEN(1,99),IF(Worksheet!$D$6=2,CHOOSE(RANDBETWEEN(1,2),RANDBETWEEN(1,99),RANDBETWEEN(1,999)/10),CHOOSE(RANDBETWEEN(1,4),RANDBETWEEN(1,99999)/1000,RANDBETWEEN(1,9999)/100,RANDBETWEEN(1,999)/10,RANDBETWEEN(1,99)))) -> 12 | D59: litres | E59: = | F59: =1000*C59 -> 12000 | G59: cm³
A60: =IF(COUNTIF($B$1:B60,TRUE)=COUNTIF($B$1:B59,TRUE),"",COUNTIF($B$1:B60,TRUE)) ->  | B60: =IF(Worksheet!$D$10=3,FALSE,Worksheet!$D$18) -> FALSE | C60: =IF(Worksheet!$D$6=1,RANDBETWEEN(1,99),IF(Worksheet!$D$6=2,CHOOSE(RANDBETWEEN(1,2),RANDBETWEEN(1,99),RANDBETWEEN(1,999)/10),CHOOSE(RANDBETWEEN(1,4),RANDBETWEEN(1,99999)/1000,RANDBETWEEN(1,9999)/100,RANDBETWEEN(1,999)/10,RANDBETWEEN(1,99)))) -> 59 | D60: m² | E60: = | F60: =10000*C60 -> 590000 | G60: cm²
A61: =IF(COUNTIF($B$1:B61,TRUE)=COUNTIF($B$1:B60,TRUE),"",COUNTIF($B$1:B61,TRUE)) -> 37 | B61: =IF(Worksheet!$D$10=2,FALSE,Worksheet!$B$14) -> TRUE | C61: =10*F61 -> 740 | D61: mm | E61: = | F61: =IF(Worksheet!$D$6=1,RANDBETWEEN(1,99),IF(Worksheet!$D$6=2,CHOOSE(RANDBETWEEN(1,2),RANDBETWEEN(1,99),RANDBETWEEN(1,999)/10),CHOOSE(RANDBETWEEN(1,4),RANDBETWEEN(1,99999)/1000,RANDBETWEEN(1,9999)/100,RANDBETWEEN(1,999)/10,RANDBETWEEN(1,99)))) -> 74 | G61: cm
A62: =IF(COUNTIF($B$1:B62,TRUE)=COUNTIF($B$1:B61,TRUE),"",COUNTIF($B$1:B62,TRUE)) -> 38 | B62: =IF(Worksheet!$D$10=2,FALSE,Worksheet!$B$15) -> TRUE | C62: =100*F62 -> 1900 | D62: cm | E62: = | F62: =IF(Worksheet!$D$6=1,RANDBETWEEN(1,99),IF(Worksheet!$D$6=2,CHOOSE(RANDBETWEEN(1,2),RANDBETWEEN(1,99),RANDBETWEEN(1,999)/10),CHOOSE(RANDBETWEEN(1,4),RANDBETWEEN(1,99999)/1000,RANDBETWEEN(1,9999)/100,RANDBETWEEN(1,999)/10,RANDBETWEEN(1,99)))) -> 19 | G62: m
A63: =IF(COUNTIF($B$1:B63,TRUE)=COUNTIF($B$1:B62,TRUE),"",COUNTIF($B$1:B63,TRUE)) -> 39 | B63: =IF(Worksheet!$D$10=2,FALSE,Worksheet!$B$16) -> TRUE | C63: =1000*F63 -> 88000 | D63: m | E63: = | F63: =IF(Worksheet!$D$6=1,RANDBETWEEN(1,99),IF(Worksheet!$D$6=2,CHOOSE(RANDBETWEEN(1,2),RANDBETWEEN(1,99),RANDBETWEEN(1,999)/10),CHOOSE(RANDBETWEEN(1,4),RANDBETWEEN(1,99999)/1000,RANDBETWEEN(1,9999)/100,RANDBETWEEN(1,999)/10,RANDBETWEEN(1,99)))) -> 88 | G63: km
A64: =IF(COUNTIF($B$1:B64,TRUE)=COUNTIF($B$1:B63,TRUE),"",COUNTIF($B$1:B64,TRUE)) ->  | B64: =IF(Worksheet!$D$10=2,FALSE,Worksheet!$B$17) -> FALSE | C64: =1000*F64 -> 69000 | D64: mm | E64: = | F64: =IF(Worksheet!$D$6=1,RANDBETWEEN(1,99),IF(Worksheet!$D$6=2,CHOOSE(RANDBETWEEN(1,2),RANDBETWEEN(1,99),RANDBETWEEN(1,999)/10),CHOOSE(RANDBETWEEN(1,4),RANDBETWEEN(1,99999)/1000,RANDBETWEEN(1,9999)/100,RANDBETWEEN(1,999)/10,RANDBETWEEN(1,99)))) -> 69 | G64: m
A65: =IF(COUNTIF($B$1:B65,TRUE)=COUNTIF($B$1:B64,TRUE),"",COUNTIF($B$1:B65,TRUE)) ->  | B65: =IF(Worksheet!$D$10=2,FALSE,Worksheet!$B$18) -> FALSE | C65: =100*F65 -> 1600 | D65: mm² | E65: = | F65: =IF(Worksheet!$D$6=1,RANDBETWEEN(1,99),IF(Worksheet!$D$6=2,CHOOSE(RANDBETWEEN(1,2),RANDBETWEEN(1,99),RANDBETWEEN(1,999)/10),CHOOSE(RANDBETWEEN(1,4),RANDBETWEEN(1,99999)/1000,RANDBETWEEN(1,9999)/100,RANDBETWEEN(1,999)/10,RANDBETWEEN(1,99)))) -> 16 | G65: cm²
A66: =IF(COUNTIF($B$1:B66,TRUE)=COUNTIF($B$1:B65,TRUE),"",COUNTIF($B$1:B66,TRUE)) -> 40 | B66: =IF(Worksheet!$D$10=2,FALSE,Worksheet!$D$14) -> TRUE | C66: =F66*1000 -> 69000 | D66: g | E66: = | F66: =IF(Worksheet!$D$6=1,RANDBETWEEN(1,99),IF(Worksheet!$D$6=2,CHOOSE(RANDBETWEEN(1,2),RANDBETWEEN(1,99),RANDBETWEEN(1,999)/10),CHOOSE(RANDBETWEEN(1,4),RANDBETWEEN(1,99999)/1000,RANDBETWEEN(1,9999)/100,RANDBETWEEN(1,999)/10,RANDBETWEEN(1,99)))) -> 69 | G66: kg
A67: =IF(COUNTIF($B$1:B67,TRUE)=COUNTIF($B$1:B66,TRUE),"",COUNTIF($B$1:B67,TRUE)) -> 41 | B67: =IF(Worksheet!$D$10=2,FALSE,Worksheet!$D$15) -> TRUE | C67: =F67*1000 -> 20000 | D67: kg | E67: = | F67: =IF(Worksheet!$D$6=1,RANDBETWEEN(1,99),IF(Worksheet!$D$6=2,CHOOSE(RANDBETWEEN(1,2),RANDBETWEEN(1,99),RANDBETWEEN(1,999)/10),CHOOSE(RANDBETWEEN(1,4),RANDBETWEEN(1,99999)/1000,RANDBETWEEN(1,9999)/100,RANDBETWEEN(1,999)/10,RANDBETWEEN(1,99)))) -> 20 | G67: tonnes
A68: =IF(COUNTIF($B$1:B68,TRUE)=COUNTIF($B$1:B67,TRUE),"",COUNTIF($B$1:B68,TRUE)) -> 42 | B68: =IF(Worksheet!$D$10=2,FALSE,Worksheet!$D$16) -> TRUE | C68: =1000*F68 -> 51000 | D68: ml | E68: = | F68: =IF(Worksheet!$D$6=1,RANDBETWEEN(1,99),IF(Worksheet!$D$6=2,CHOOSE(RANDBETWEEN(1,2),RANDBETWEEN(1,99),RANDBETWEEN(1,999)/10),CHOOSE(RANDBETWEEN(1,4),RANDBETWEEN(1,99999)/1000,RANDBETWEEN(1,9999)/100,RANDBETWEEN(1,999)/10,RANDBETWEEN(1,99)))) -> 51 | G68: litres
A69: =IF(COUNTIF($B$1:B69,TRUE)=COUNTIF($B$1:B68,TRUE),"",COUNTIF($B$1:B69,TRUE)) ->  | B69: =IF(Worksheet!$D$10=2,FALSE,Worksheet!$D$17) -> FALSE | C69: =1000*F69 -> 79000 | D69: cm³ | E69: = | F69: =IF(Worksheet!$D$6=1,RANDBETWEEN(1,99),IF(Worksheet!$D$6=2,CHOOSE(RANDBETWEEN(1,2),RANDBETWEEN(1,99),RANDBETWEEN(1,999)/10),CHOOSE(RANDBETWEEN(1,4),RANDBETWEEN(1,99999)/1000,RANDBETWEEN(1,9999)/100,RANDBETWEEN(1,999)/10,RANDBETWEEN(1,99)))) -> 79 | G69: litres
A70: =IF(COUNTIF($B$1:B70,TRUE)=COUNTIF($B$1:B69,TRUE),"",COUNTIF($B$1:B70,TRUE)) ->  | B70: =IF(Worksheet!$D$10=2,FALSE,Worksheet!$D$18) -> FALSE | C70: =10000*F70 -> 890000 | D70: cm² | E70: = | F70: =IF(Worksheet!$D$6=1,RANDBETWEEN(1,99),IF(Worksheet!$D$6=2,CHOOSE(RANDBETWEEN(1,2),RANDBETWEEN(1,99),RANDBETWEEN(1,999)/10),CHOOSE(RANDBETWEEN(1,4),RANDBETWEEN(1,99999)/1000,RANDBETWEEN(1,9999)/100,RANDBETWEEN(1,999)/10,RANDBETWEEN(1,99)))) -> 89 | G70: m²
A71: =IF(COUNTIF($B$1:B71,TRUE)=COUNTIF($B$1:B70,TRUE),"",COUNTIF($B$1:B71,TRUE)) -> 43 | B71: =IF(Worksheet!$D$10=3,FALSE,Worksheet!$B$14) -> TRUE | C71: =IF(Worksheet!$D$6=1,RANDBETWEEN(1,99),IF(Worksheet!$D$6=2,CHOOSE(RANDBETWEEN(1,2),RANDBETWEEN(1,99),RANDBETWEEN(1,999)/10),CHOOSE(RANDBETWEEN(1,4),RANDBETWEEN(1,99999)/1000,RANDBETWEEN(1,9999)/100,RANDBETWEEN(1,999)/10,RANDBETWEEN(1,99)))) -> 85 | D71: cm | E71: = | F71: =10*C71 -> 850 | G71: mm
A72: =IF(COUNTIF($B$1:B72,TRUE)=COUNTIF($B$1:B71,TRUE),"",COUNTIF($B$1:B72,TRUE)) -> 44 | B72: =IF(Worksheet!$D$10=3,FALSE,Worksheet!$B$15) -> TRUE | C72: =IF(Worksheet!$D$6=1,RANDBETWEEN(1,99),IF(Worksheet!$D$6=2,CHOOSE(RANDBETWEEN(1,2),RANDBETWEEN(1,99),RANDBETWEEN(1,999)/10),CHOOSE(RANDBETWEEN(1,4),RANDBETWEEN(1,99999)/1000,RANDBETWEEN(1,9999)/100,RANDBETWEEN(1,999)/10,RANDBETWEEN(1,99)))) -> 16 | D72: m | E72: = | F72: =100*C72 -> 1600 | G72: cm
A73: =IF(COUNTIF($B$1:B73,TRUE)=COUNTIF($B$1:B72,TRUE),"",COUNTIF($B$1:B73,TRUE)) -> 45 | B73: =IF(Worksheet!$D$10=3,FALSE,Worksheet!$B$16) -> TRUE | C73: =IF(Worksheet!$D$6=1,RANDBETWEEN(1,99),IF(Worksheet!$D$6=2,CHOOSE(RANDBETWEEN(1,2),RANDBETWEEN(1,99),RANDBETWEEN(1,999)/10),CHOOSE(RANDBETWEEN(1,4),RANDBETWEEN(1,99999)/1000,RANDBETWEEN(1,9999)/100,RANDBETWEEN(1,999)/10,RANDBETWEEN(1,99)))) -> 77 | D73: km | E73: = | F73: =1000*C73 -> 77000 | G73: m
A74: =IF(COUNTIF($B$1:B74,TRUE)=COUNTIF($B$1:B73,TRUE),"",COUNTIF($B$1:B74,TRUE)) ->  | B74: =IF(Worksheet!$D$10=3,FALSE,Worksheet!$B$17) -> FALSE | C74: =IF(Worksheet!$D$6=1,RANDBETWEEN(1,99),IF(Worksheet!$D$6=2,CHOOSE(RANDBETWEEN(1,2),RANDBETWEEN(1,99),RANDBETWEEN(1,999)/10),CHOOSE(RANDBETWEEN(1,4),RANDBETWEEN(1,99999)/1000,RANDBETWEEN(1,9999)/100,RANDBETWEEN(1,999)/10,RANDBETWEEN(1,99)))) -> 6 | D74: m | E74: =#REF! ->  | F74: =1000*C74 -> 6000 | G74: mm
A75: =IF(COUNTIF($B$1:B75,TRUE)=COUNTIF($B$1:B74,TRUE),"",COUNTIF($B$1:B75,TRUE)) ->  | B75: =IF(Worksheet!$D$10=3,FALSE,Worksheet!$B$18) -> FALSE | C75: =IF(Worksheet!$D$6=1,RANDBETWEEN(1,99),IF(Worksheet!$D$6=2,CHOOSE(RANDBETWEEN(1,2),RANDBETWEEN(1,99),RANDBETWEEN(1,999)/10),CHOOSE(RANDBETWEEN(1,4),RANDBETWEEN(1,99999)/1000,RANDBETWEEN(1,9999)/100,RANDBETWEEN(1,999)/10,RANDBETWEEN(1,99)))) -> 53 | D75: cm² | E75: = | F75: =C75*100 -> 5300 | G75: mm²
A76: =IF(COUNTIF($B$1:B76,TRUE)=COUNTIF($B$1:B75,TRUE),"",COUNTIF($B$1:B76,TRUE)) -> 46 | B76: =IF(Worksheet!$D$10=3,FALSE,Worksheet!$D$14) -> TRUE | C76: =IF(Worksheet!$D$6=1,RANDBETWEEN(1,99),IF(Worksheet!$D$6=2,CHOOSE(RANDBETWEEN(1,2),RANDBETWEEN(1,99),RANDBETWEEN(1,999)/10),CHOOSE(RANDBETWEEN(1,4),RANDBETWEEN(1,99999)/1000,RANDBETWEEN(1,9999)/100,RANDBETWEEN(1,999)/10,RANDBETWEEN(1,99)))) -> 13 | D76: kg | E76: = | F76: =1000*C76 -> 13000 | G76: g
A77: =IF(COUNTIF($B$1:B77,TRUE)=COUNTIF($B$1:B76,TRUE),"",COUNTIF($B$1:B77,TRUE)) -> 47 | B77: =IF(Worksheet!$D$10=3,FALSE,Worksheet!$D$15) -> TRUE | C77: =IF(Worksheet!$D$6=1,RANDBETWEEN(1,99),IF(Worksheet!$D$6=2,CHOOSE(RANDBETWEEN(1,2),RANDBETWEEN(1,99),RANDBETWEEN(1,999)/10),CHOOSE(RANDBETWEEN(1,4),RANDBETWEEN(1,99999)/1000,RANDBETWEEN(1,9999)/100,RANDBETWEEN(1,999)/10,RANDBETWEEN(1,99)))) -> 28 | D77: tonnes | E77: = | F77: =1000*C77 -> 28000 | G77: kg
A78: =IF(COUNTIF($B$1:B78,TRUE)=COUNTIF($B$1:B77,TRUE),"",COUNTIF($B$1:B78,TRUE)) -> 48 | B78: =IF(Worksheet!$D$10=3,FALSE,Worksheet!$D$16) -> TRUE | C78: =IF(Worksheet!$D$6=1,RANDBETWEEN(1,99),IF(Worksheet!$D$6=2,CHOOSE(RANDBETWEEN(1,2),RANDBETWEEN(1,99),RANDBETWEEN(1,999)/10),CHOOSE(RANDBETWEEN(1,4),RANDBETWEEN(1,99999)/1000,RANDBETWEEN(1,9999)/100,RANDBETWEEN(1,999)/10,RANDBETWEEN(1,99)))) -> 19 | D78: litres | E78: = | F78: =1000*C78 -> 19000 | G78: ml
A79: =IF(COUNTIF($B$1:B79,TRUE)=COUNTIF($B$1:B78,TRUE),"",COUNTIF($B$1:B79,TRUE)) ->  | B79: =IF(Worksheet!$D$10=3,FALSE,Worksheet!$D$17) -> FALSE | C79: =IF(Worksheet!$D$6=1,RANDBETWEEN(1,99),IF(Worksheet!$D$6=2,CHOOSE(RANDBETWEEN(1,2),RANDBETWEEN(1,99),RANDBETWEEN(1,999)/10),CHOOSE(RANDBETWEEN(1,4),RANDBETWEEN(1,99999)/1000,RANDBETWEEN(1,9999)/100,RANDBETWEEN(1,999)/10,RANDBETWEEN(1,99)))) -> 50 | D79: litres | E79: = | F79: =1000*C79 -> 50000 | G79: cm³
A80: =IF(COUNTIF($B$1:B80,TRUE)=COUNTIF($B$1:B79,TRUE),"",COUNTIF($B$1:B80,TRUE)) ->  | B80: =IF(Worksheet!$D$10=3,FALSE,Worksheet!$D$18) -> FALSE | C80: =IF(Worksheet!$D$6=1,RANDBETWEEN(1,99),IF(Worksheet!$D$6=2,CHOOSE(RANDBETWEEN(1,2),RANDBETWEEN(1,99),RANDBETWEEN(1,999)/10),CHOOSE(RANDBETWEEN(1,4),RANDBETWEEN(1,99999)/1000,RANDBETWEEN(1,9999)/100,RANDBETWEEN(1,999)/10,RANDBETWEEN(1,99)))) -> 94 | D80: m² | E80: = | F80: =10000*C80 -> 940000 | G80: cm²
A81: =IF(COUNTIF($B$1:B81,TRUE)=COUNTIF($B$1:B80,TRUE),"",COUNTIF($B$1:B81,TRUE)) -> 49 | B81: =IF(Worksheet!$D$10=2,FALSE,Worksheet!$B$14) -> TRUE | C81: =10*F81 -> 220 | D81: mm | E81: = | F81: =IF(Worksheet!$D$6=1,RANDBETWEEN(1,99),IF(Worksheet!$D$6=2,CHOOSE(RANDBETWEEN(1,2),RANDBETWEEN(1,99),RANDBETWEEN(1,999)/10),CHOOSE(RANDBETWEEN(1,4),RANDBETWEEN(1,99999)/1000,RANDBETWEEN(1,9999)/100,RANDBETWEEN(1,999)/10,RANDBETWEEN(1,99)))) -> 22 | G81: cm
A82: =IF(COUNTIF($B$1:B82,TRUE)=COUNTIF($B$1:B81,TRUE),"",COUNTIF($B$1:B82,TRUE)) -> 50 | B82: =IF(Worksheet!$D$10=2,FALSE,Worksheet!$B$15) -> TRUE | C82: =100*F82 -> 4600 | D82: cm | E82: = | F82: =IF(Worksheet!$D$6=1,RANDBETWEEN(1,99),IF(Worksheet!$D$6=2,CHOOSE(RANDBETWEEN(1,2),RANDBETWEEN(1,99),RANDBETWEEN(1,999)/10),CHOOSE(RANDBETWEEN(1,4),RANDBETWEEN(1,99999)/1000,RANDBETWEEN(1,9999)/100,RANDBETWEEN(1,999)/10,RANDBETWEEN(1,99)))) -> 46 | G82: m
A83: =IF(COUNTIF($B$1:B83,TRUE)=COUNTIF($B$1:B82,TRUE),"",COUNTIF($B$1:B83,TRUE)) -> 51 | B83: =IF(Worksheet!$D$10=2,FALSE,Worksheet!$B$16) -> TRUE | C83: =1000*F83 -> 73000 | D83: m | E83: = | F83: =IF(Worksheet!$D$6=1,RANDBETWEEN(1,99),IF(Worksheet!$D$6=2,CHOOSE(RANDBETWEEN(1,2),RANDBETWEEN(1,99),RANDBETWEEN(1,999)/10),CHOOSE(RANDBETWEEN(1,4),RANDBETWEEN(1,99999)/1000,RANDBETWEEN(1,9999)/100,RANDBETWEEN(1,999)/10,RANDBETWEEN(1,99)))) -> 73 | G83: km
A84: =IF(COUNTIF($B$1:B84,TRUE)=COUNTIF($B$1:B83,TRUE),"",COUNTIF($B$1:B84,TRUE)) ->  | B84: =IF(Worksheet!$D$10=2,FALSE,Worksheet!$B$17) -> FALSE | C84: =1000*F84 -> 41000 | D84: mm | E84: = | F84: =IF(Worksheet!$D$6=1,RANDBETWEEN(1,99),IF(Worksheet!$D$6=2,CHOOSE(RANDBETWEEN(1,2),RANDBETWEEN(1,99),RANDBETWEEN(1,999)/10),CHOOSE(RANDBETWEEN(1,4),RANDBETWEEN(1,99999)/1000,RANDBETWEEN(1,9999)/100,RANDBETWEEN(1,999)/10,RANDBETWEEN(1,99)))) -> 41 | G84: m
A85: =IF(COUNTIF($B$1:B85,TRUE)=COUNTIF($B$1:B84,TRUE),"",COUNTIF($B$1:B85,TRUE)) ->  | B85: =IF(Worksheet!$D$10=2,FALSE,Worksheet!$B$18) -> FALSE | C85: =100*F85 -> 4400 | D85: mm² | E85: = | F85: =IF(Worksheet!$D$6=1,RANDBETWEEN(1,99),IF(Worksheet!$D$6=2,CHOOSE(RANDBETWEEN(1,2),RANDBETWEEN(1,99),RANDBETWEEN(1,999)/10),CHOOSE(RANDBETWEEN(1,4),RANDBETWEEN(1,99999)/1000,RANDBETWEEN(1,9999)/100,RANDBETWEEN(1,999)/10,RANDBETWEEN(1,99)))) -> 44 | G85: cm²
A86: =IF(COUNTIF($B$1:B86,TRUE)=COUNTIF($B$1:B85,TRUE),"",COUNTIF($B$1:B86,TRUE)) -> 52 | B86: =IF(Worksheet!$D$10=2,FALSE,Worksheet!$D$14) -> TRUE | C86: =F86*1000 -> 23000 | D86: g | E86: = | F86: =IF(Worksheet!$D$6=1,RANDBETWEEN(1,99),IF(Worksheet!$D$6=2,CHOOSE(RANDBETWEEN(1,2),RANDBETWEEN(1,99),RANDBETWEEN(1,999)/10),CHOOSE(RANDBETWEEN(1,4),RANDBETWEEN(1,99999)/1000,RANDBETWEEN(1,9999)/100,RANDBETWEEN(1,999)/10,RANDBETWEEN(1,99)))) -> 23 | G86: kg
A87: =IF(COUNTIF($B$1:B87,TRUE)=COUNTIF($B$1:B86,TRUE),"",COUNTIF($B$1:B87,TRUE)) -> 53 | B87: =IF(Worksheet!$D$10=2,FALSE,Worksheet!$D$15) -> TRUE | C87: =F87*1000 -> 31000 | D87: kg | E87: = | F87: =IF(Worksheet!$D$6=1,RANDBETWEEN(1,99),IF(Worksheet!$D$6=2,CHOOSE(RANDBETWEEN(1,2),RANDBETWEEN(1,99),RANDBETWEEN(1,999)/10),CHOOSE(RANDBETWEEN(1,4),RANDBETWEEN(1,99999)/1000,RANDBETWEEN(1,9999)/100,RANDBETWEEN(1,999)/10,RANDBETWEEN(1,99)))) -> 31 | G87: tonnes
A88: =IF(COUNTIF($B$1:B88,TRUE)=COUNTIF($B$1:B87,TRUE),"",COUNTIF($B$1:B88,TRUE)) -> 54 | B88: =IF(Worksheet!$D$10=2,FALSE,Worksheet!$D$16) -> TRUE | C88: =1000*F88 -> 65000 | D88: ml | E88: = | F88: =IF(Worksheet!$D$6=1,RANDBETWEEN(1,99),IF(Worksheet!$D$6=2,CHOOSE(RANDBETWEEN(1,2),RANDBETWEEN(1,99),RANDBETWEEN(1,999)/10),CHOOSE(RANDBETWEEN(1,4),RANDBETWEEN(1,99999)/1000,RANDBETWEEN(1,9999)/100,RANDBETWEEN(1,999)/10,RANDBETWEEN(1,99)))) -> 65 | G88: litres
A89: =IF(COUNTIF($B$1:B89,TRUE)=COUNTIF($B$1:B88,TRUE),"",COUNTIF($B$1:B89,TRUE)) ->  | B89: =IF(Worksheet!$D$10=2,FALSE,Worksheet!$D$17) -> FALSE | C89: =1000*F89 -> 9000 | D89: cm³ | E89: = | F89: =IF(Worksheet!$D$6=1,RANDBETWEEN(1,99),IF(Worksheet!$D$6=2,CHOOSE(RANDBETWEEN(1,2),RANDBETWEEN(1,99),RANDBETWEEN(1,999)/10),CHOOSE(RANDBETWEEN(1,4),RANDBETWEEN(1,99999)/1000,RANDBETWEEN(1,9999)/100,RANDBETWEEN(1,999)/10,RANDBETWEEN(1,99)))) -> 9 | G89: litres
A90: =IF(COUNTIF($B$1:B90,TRUE)=COUNTIF($B$1:B89,TRUE),"",COUNTIF($B$1:B90,TRUE)) ->  | B90: =IF(Worksheet!$D$10=2,FALSE,Worksheet!$D$18) -> FALSE | C90: =10000*F90 -> 880000 | D90: cm² | E90: = | F90: =IF(Worksheet!$D$6=1,RANDBETWEEN(1,99),IF(Worksheet!$D$6=2,CHOOSE(RANDBETWEEN(1,2),RANDBETWEEN(1,99),RANDBETWEEN(1,999)/10),CHOOSE(RANDBETWEEN(1,4),RANDBETWEEN(1,99999)/1000,RANDBETWEEN(1,9999)/100,RANDBETWEEN(1,999)/10,RANDBETWEEN(1,99)))) -> 88 | G90: m²
A91: =IF(COUNTIF($B$1:B91,TRUE)=COUNTIF($B$1:B90,TRUE),"",COUNTIF($B$1:B91,TRUE)) -> 55 | B91: =IF(Worksheet!$D$10=3,FALSE,Worksheet!$B$14) -> TRUE | C91: =IF(Worksheet!$D$6=1,RANDBETWEEN(1,99),IF(Worksheet!$D$6=2,CHOOSE(RANDBETWEEN(1,2),RANDBETWEEN(1,99),RANDBETWEEN(1,999)/10),CHOOSE(RANDBETWEEN(1,4),RANDBETWEEN(1,99999)/1000,RANDBETWEEN(1,9999)/100,RANDBETWEEN(1,999)/10,RANDBETWEEN(1,99)))) -> 22 | D91: cm | E91: = | F91: =10*C91 -> 220 | G91: mm
A92: =IF(COUNTIF($B$1:B92,TRUE)=COUNTIF($B$1:B91,TRUE),"",COUNTIF($B$1:B92,TRUE)) -> 56 | B92: =IF(Worksheet!$D$10=3,FALSE,Worksheet!$B$15) -> TRUE | C92: =IF(Worksheet!$D$6=1,RANDBETWEEN(1,99),IF(Worksheet!$D$6=2,CHOOSE(RANDBETWEEN(1,2),RANDBETWEEN(1,99),RANDBETWEEN(1,999)/10),CHOOSE(RANDBETWEEN(1,4),RANDBETWEEN(1,99999)/1000,RANDBETWEEN(1,9999)/100,RANDBETWEEN(1,999)/10,RANDBETWEEN(1,99)))) -> 82 | D92: m | E92: = | F92: =100*C92 -> 8200 | G92: cm
A93: =IF(COUNTIF($B$1:B93,TRUE)=COUNTIF($B$1:B92,TRUE),"",COUNTIF($B$1:B93,TRUE)) -> 57 | B93: =IF(Worksheet!$D$10=3,FALSE,Worksheet!$B$16) -> TRUE | C93: =IF(Worksheet!$D$6=1,RANDBETWEEN(1,99),IF(Worksheet!$D$6=2,CHOOSE(RANDBETWEEN(1,2),RANDBETWEEN(1,99),RANDBETWEEN(1,999)/10),CHOOSE(RANDBETWEEN(1,4),RANDBETWEEN(1,99999)/1000,RANDBETWEEN(1,9999)/100,RANDBETWEEN(1,999)/10,RANDBETWEEN(1,99)))) -> 5 | D93: km | E93: = | F93: =1000*C93 -> 5000 | G93: m
A94: =IF(COUNTIF($B$1:B94,TRUE)=COUNTIF($B$1:B93,TRUE),"",COUNTIF($B$1:B94,TRUE)) ->  | B94: =IF(Worksheet!$D$10=3,FALSE,Worksheet!$B$17) -> FALSE | C94: =IF(Worksheet!$D$6=1,RANDBETWEEN(1,99),IF(Worksheet!$D$6=2,CHOOSE(RANDBETWEEN(1,2),RANDBETWEEN(1,99),RANDBETWEEN(1,999)/10),CHOOSE(RANDBETWEEN(1,4),RANDBETWEEN(1,99999)/1000,RANDBETWEEN(1,9999)/100,RANDBETWEEN(1,999)/10,RANDBETWEEN(1,99)))) -> 84 | D94: m | E94: =#REF! ->  | F94: =1000*C94 -> 84000 | G94: mm
A95: =IF(COUNTIF($B$1:B95,TRUE)=COUNTIF($B$1:B94,TRUE),"",COUNTIF($B$1:B95,TRUE)) ->  | B95: =IF(Worksheet!$D$10=3,FALSE,Worksheet!$B$18) -> FALSE | C95: =IF(Worksheet!$D$6=1,RANDBETWEEN(1,99),IF(Worksheet!$D$6=2,CHOOSE(RANDBETWEEN(1,2),RANDBETWEEN(1,99),RANDBETWEEN(1,999)/10),CHOOSE(RANDBETWEEN(1,4),RANDBETWEEN(1,99999)/1000,RANDBETWEEN(1,9999)/100,RANDBETWEEN(1,999)/10,RANDBETWEEN(1,99)))) -> 54 | D95: cm² | E95: = | F95: =C95*100 -> 5400 | G95: mm²
A96: =IF(COUNTIF($B$1:B96,TRUE)=COUNTIF($B$1:B95,TRUE),"",COUNTIF($B$1:B96,TRUE)) -> 58 | B96: =IF(Worksheet!$D$10=3,FALSE,Worksheet!$D$14) -> TRUE | C96: =IF(Worksheet!$D$6=1,RANDBETWEEN(1,99),IF(Worksheet!$D$6=2,CHOOSE(RANDBETWEEN(1,2),RANDBETWEEN(1,99),RANDBETWEEN(1,999)/10),CHOOSE(RANDBETWEEN(1,4),RANDBETWEEN(1,99999)/1000,RANDBETWEEN(1,9999)/100,RANDBETWEEN(1,999)/10,RANDBETWEEN(1,99)))) -> 2 | D96: kg | E96: = | F96: =1000*C96 -> 2000 | G96: g
A97: =IF(COUNTIF($B$1:B97,TRUE)=COUNTIF($B$1:B96,TRUE),"",COUNTIF($B$1:B97,TRUE)) -> 59 | B97: =IF(Worksheet!$D$10=3,FALSE,Worksheet!$D$15) -> TRUE | C97: =IF(Worksheet!$D$6=1,RANDBETWEEN(1,99),IF(Worksheet!$D$6=2,CHOOSE(RANDBETWEEN(1,2),RANDBETWEEN(1,99),RANDBETWEEN(1,999)/10),CHOOSE(RANDBETWEEN(1,4),RANDBETWEEN(1,99999)/1000,RANDBETWEEN(1,9999)/100,RANDBETWEEN(1,999)/10,RANDBETWEEN(1,99)))) -> 44 | D97: tonnes | E97: = | F97: =1000*C97 -> 44000 | G97: kg
A98: =IF(COUNTIF($B$1:B98,TRUE)=COUNTIF($B$1:B97,TRUE),"",COUNTIF($B$1:B98,TRUE)) -> 60 | B98: =IF(Worksheet!$D$10=3,FALSE,Worksheet!$D$16) -> TRUE | C98: =IF(Worksheet!$D$6=1,RANDBETWEEN(1,99),IF(Worksheet!$D$6=2,CHOOSE(RANDBETWEEN(1,2),RANDBETWEEN(1,99),RANDBETWEEN(1,999)/10),CHOOSE(RANDBETWEEN(1,4),RANDBETWEEN(1,99999)/1000,RANDBETWEEN(1,9999)/100,RANDBETWEEN(1,999)/10,RANDBETWEEN(1,99)))) -> 70 | D98: litres | E98: = | F98: =1000*C98 -> 70000 | G98: ml
A99: =IF(COUNTIF($B$1:B99,TRUE)=COUNTIF($B$1:B98,TRUE),"",COUNTIF($B$1:B99,TRUE)) ->  | B99: =IF(Worksheet!$D$10=3,FALSE,Worksheet!$D$17) -> FALSE | C99: =IF(Worksheet!$D$6=1,RANDBETWEEN(1,99),IF(Worksheet!$D$6=2,CHOOSE(RANDBETWEEN(1,2),RANDBETWEEN(1,99),RANDBETWEEN(1,999)/10),CHOOSE(RANDBETWEEN(1,4),RANDBETWEEN(1,99999)/1000,RANDBETWEEN(1,9999)/100,RANDBETWEEN(1,999)/10,RANDBETWEEN(1,99)))) -> 34 | D99: litres | E99: = | F99: =1000*C99 -> 34000 | G99: cm³
A100: =IF(COUNTIF($B$1:B100,TRUE)=COUNTIF($B$1:B99,TRUE),"",COUNTIF($B$1:B100,TRUE)) ->  | B100: =IF(Worksheet!$D$10=3,FALSE,Worksheet!$D$18) -> FALSE | C100: =IF(Worksheet!$D$6=1,RANDBETWEEN(1,99),IF(Worksheet!$D$6=2,CHOOSE(RANDBETWEEN(1,2),RANDBETWEEN(1,99),RANDBETWEEN(1,999)/10),CHOOSE(RANDBETWEEN(1,4),RANDBETWEEN(1,99999)/1000,RANDBETWEEN(1,9999)/100,RANDBETWEEN(1,999)/10,RANDBETWEEN(1,99)))) -> 24 | D100: m² | E100: = | F100: =10000*C100 -> 240000 | G100: cm²
A101: =IF(COUNTIF($B$1:B101,TRUE)=COUNTIF($B$1:B100,TRUE),"",COUNTIF($B$1:B101,TRUE)) -> 61 | B101: =IF(Worksheet!$D$10=2,FALSE,Worksheet!$B$14) -> TRUE | C101: =10*F101 -> 70 | D101: mm | E101: = | F101: =IF(Worksheet!$D$6=1,RANDBETWEEN(1,99),IF(Worksheet!$D$6=2,CHOOSE(RANDBETWEEN(1,2),RANDBETWEEN(1,99),RANDBETWEEN(1,999)/10),CHOOSE(RANDBETWEEN(1,4),RANDBETWEEN(1,99999)/1000,RANDBETWEEN(1,9999)/100,RANDBETWEEN(1,999)/10,RANDBETWEEN(1,99)))) -> 7 | G101: cm
A102: =IF(COUNTIF($B$1:B102,TRUE)=COUNTIF($B$1:B101,TRUE),"",COUNTIF($B$1:B102,TRUE)) -> 62 | B102: =IF(Worksheet!$D$10=2,FALSE,Worksheet!$B$15) -> TRUE | C102: =100*F102 -> 1600 | D102: cm | E102: = | F102: =IF(Worksheet!$D$6=1,RANDBETWEEN(1,99),IF(Worksheet!$D$6=2,CHOOSE(RANDBETWEEN(1,2),RANDBETWEEN(1,99),RANDBETWEEN(1,999)/10),CHOOSE(RANDBETWEEN(1,4),RANDBETWEEN(1,99999)/1000,RANDBETWEEN(1,9999)/100,RANDBETWEEN(1,999)/10,RANDBETWEEN(1,99)))) -> 16 | G102: m
A103: =IF(COUNTIF($B$1:B103,TRUE)=COUNTIF($B$1:B102,TRUE),"",COUNTIF($B$1:B103,TRUE)) -> 63 | B103: =IF(Worksheet!$D$10=2,FALSE,Worksheet!$B$16) -> TRUE | C103: =1000*F103 -> 79000 | D103: m | E103: = | F103: =IF(Worksheet!$D$6=1,RANDBETWEEN(1,99),IF(Worksheet!$D$6=2,CHOOSE(RANDBETWEEN(1,2),RANDBETWEEN(1,99),RANDBETWEEN(1,999)/10),CHOOSE(RANDBETWEEN(1,4),RANDBETWEEN(1,99999)/1000,RANDBETWEEN(1,9999)/100,RANDBETWEEN(1,999)/10,RANDBETWEEN(1,99)))) -> 79 | G103: km
A104: =IF(COUNTIF($B$1:B104,TRUE)=COUNTIF($B$1:B103,TRUE),"",COUNTIF($B$1:B104,TRUE)) ->  | B104: =IF(Worksheet!$D$10=2,FALSE,Worksheet!$B$17) -> FALSE | C104: =1000*F104 -> 6000 | D104: mm | E104: = | F104: =IF(Worksheet!$D$6=1,RANDBETWEEN(1,99),IF(Worksheet!$D$6=2,CHOOSE(RANDBETWEEN(1,2),RANDBETWEEN(1,99),RANDBETWEEN(1,999)/10),CHOOSE(RANDBETWEEN(1,4),RANDBETWEEN(1,99999)/1000,RANDBETWEEN(1,9999)/100,RANDBETWEEN(1,999)/10,RANDBETWEEN(1,99)))) -> 6 | G104: m
A105: =IF(COUNTIF($B$1:B105,TRUE)=COUNTIF($B$1:B104,TRUE),"",COUNTIF($B$1:B105,TRUE)) ->  | B105: =IF(Worksheet!$D$10=2,FALSE,Worksheet!$B$18) -> FALSE | C105: =100*F105 -> 2800 | D105: mm² | E105: = | F105: =IF(Worksheet!$D$6=1,RANDBETWEEN(1,99),IF(Worksheet!$D$6=2,CHOOSE(RANDBETWEEN(1,2),RANDBETWEEN(1,99),RANDBETWEEN(1,999)/10),CHOOSE(RANDBETWEEN(1,4),RANDBETWEEN(1,99999)/1000,RANDBETWEEN(1,9999)/100,RANDBETWEEN(1,999)/10,RANDBETWEEN(1,99)))) -> 28 | G105: cm²
A106: =IF(COUNTIF($B$1:B106,TRUE)=COUNTIF($B$1:B105,TRUE),"",COUNTIF($B$1:B106,TRUE)) -> 64 | B106: =IF(Worksheet!$D$10=2,FALSE,Worksheet!$D$14) -> TRUE | C106: =F106*1000 -> 25000 | D106: g | E106: = | F106: =IF(Worksheet!$D$6=1,RANDBETWEEN(1,99),IF(Worksheet!$D$6=2,CHOOSE(RANDBETWEEN(1,2),RANDBETWEEN(1,99),RANDBETWEEN(1,999)/10),CHOOSE(RANDBETWEEN(1,4),RANDBETWEEN(1,99999)/1000,RANDBETWEEN(1,9999)/100,RANDBETWEEN(1,999)/10,RANDBETWEEN(1,99)))) -> 25 | G106: kg
A107: =IF(COUNTIF($B$1:B107,TRUE)=COUNTIF($B$1:B106,TRUE),"",COUNTIF($B$1:B107,TRUE)) -> 65 | B107: =IF(Worksheet!$D$10=2,FALSE,Worksheet!$D$15) -> TRUE | C107: =F107*1000 -> 81000 | D107: kg | E107: = | F107: =IF(Worksheet!$D$6=1,RANDBETWEEN(1,99),IF(Worksheet!$D$6=2,CHOOSE(RANDBETWEEN(1,2),RANDBETWEEN(1,99),RANDBETWEEN(1,999)/10),CHOOSE(RANDBETWEEN(1,4),RANDBETWEEN(1,99999)/1000,RANDBETWEEN(1,9999)/100,RANDBETWEEN(1,999)/10,RANDBETWEEN(1,99)))) -> 81 | G107: tonnes
A108: =IF(COUNTIF($B$1:B108,TRUE)=COUNTIF($B$1:B107,TRUE),"",COUNTIF($B$1:B108,TRUE)) -> 66 | B108: =IF(Worksheet!$D$10=2,FALSE,Worksheet!$D$16) -> TRUE | C108: =1000*F108 -> 34000 | D108: ml | E108: = | F108: =IF(Worksheet!$D$6=1,RANDBETWEEN(1,99),IF(Worksheet!$D$6=2,CHOOSE(RANDBETWEEN(1,2),RANDBETWEEN(1,99),RANDBETWEEN(1,999)/10),CHOOSE(RANDBETWEEN(1,4),RANDBETWEEN(1,99999)/1000,RANDBETWEEN(1,9999)/100,RANDBETWEEN(1,999)/10,RANDBETWEEN(1,99)))) -> 34 | G108: litres
A109: =IF(COUNTIF($B$1:B109,TRUE)=COUNTIF($B$1:B108,TRUE),"",COUNTIF($B$1:B109,TRUE)) ->  | B109: =IF(Worksheet!$D$10=2,FALSE,Worksheet!$D$17) -> FALSE | C109: =1000*F109 -> 86000 | D109: cm³ | E109: = | F109: =IF(Worksheet!$D$6=1,RANDBETWEEN(1,99),IF(Worksheet!$D$6=2,CHOOSE(RANDBETWEEN(1,2),RANDBETWEEN(1,99),RANDBETWEEN(1,999)/10),CHOOSE(RANDBETWEEN(1,4),RANDBETWEEN(1,99999)/1000,RANDBETWEEN(1,9999)/100,RANDBETWEEN(1,999)/10,RANDBETWEEN(1,99)))) -> 86 | G109: litres
A110: =IF(COUNTIF($B$1:B110,TRUE)=COUNTIF($B$1:B109,TRUE),"",COUNTIF($B$1:B110,TRUE)) ->  | B110: =IF(Worksheet!$D$10=2,FALSE,Worksheet!$D$18) -> FALSE | C110: =10000*F110 -> 990000 | D110: cm² | E110: = | F110: =IF(Worksheet!$D$6=1,RANDBETWEEN(1,99),IF(Worksheet!$D$6=2,CHOOSE(RANDBETWEEN(1,2),RANDBETWEEN(1,99),RANDBETWEEN(1,999)/10),CHOOSE(RANDBETWEEN(1,4),RANDBETWEEN(1,99999)/1000,RANDBETWEEN(1,9999)/100,RANDBETWEEN(1,999)/10,RANDBETWEEN(1,99)))) -> 99 | G110: m²
A111: =IF(COUNTIF($B$1:B111,TRUE)=COUNTIF($B$1:B110,TRUE),"",COUNTIF($B$1:B111,TRUE)) -> 67 | B111: =IF(Worksheet!$D$10=3,FALSE,Worksheet!$B$14) -> TRUE | C111: =IF(Worksheet!$D$6=1,RANDBETWEEN(1,99),IF(Worksheet!$D$6=2,CHOOSE(RANDBETWEEN(1,2),RANDBETWEEN(1,99),RANDBETWEEN(1,999)/10),CHOOSE(RANDBETWEEN(1,4),RANDBETWEEN(1,99999)/1000,RANDBETWEEN(1,9999)/100,RANDBETWEEN(1,999)/10,RANDBETWEEN(1,99)))) -> 78 | D111: cm | E111: = | F111: =10*C111 -> 780 | G111: mm
A112: =IF(COUNTIF($B$1:B112,TRUE)=COUNTIF($B$1:B111,TRUE),"",COUNTIF($B$1:B112,TRUE)) -> 68 | B112: =IF(Worksheet!$D$10=3,FALSE,Worksheet!$B$15) -> TRUE | C112: =IF(Worksheet!$D$6=1,RANDBETWEEN(1,99),IF(Worksheet!$D$6=2,CHOOSE(RANDBETWEEN(1,2),RANDBETWEEN(1,99),RANDBETWEEN(1,999)/10),CHOOSE(RANDBETWEEN(1,4),RANDBETWEEN(1,99999)/1000,RANDBETWEEN(1,9999)/100,RANDBETWEEN(1,999)/10,RANDBETWEEN(1,99)))) -> 80 | D112: m | E112: = | F112: =100*C112 -> 8000 | G112: cm
A113: =IF(COUNTIF($B$1:B113,TRUE)=COUNTIF($B$1:B112,TRUE),"",COUNTIF($B$1:B113,TRUE)) -> 69 | B113: =IF(Worksheet!$D$10=3,FALSE,Worksheet!$B$16) -> TRUE | C113: =IF(Worksheet!$D$6=1,RANDBETWEEN(1,99),IF(Worksheet!$D$6=2,CHOOSE(RANDBETWEEN(1,2),RANDBETWEEN(1,99),RANDBETWEEN(1,999)/10),CHOOSE(RANDBETWEEN(1,4),RANDBETWEEN(1,99999)/1000,RANDBETWEEN(1,9999)/100,RANDBETWEEN(1,999)/10,RANDBETWEEN(1,99)))) -> 29 | D113: km | E113: = | F113: =1000*C113 -> 29000 | G113: m
A114: =IF(COUNTIF($B$1:B114,TRUE)=COUNTIF($B$1:B113,TRUE),"",COUNTIF($B$1:B114,TRUE)) ->  | B114: =IF(Worksheet!$D$10=3,FALSE,Worksheet!$B$17) -> FALSE | C114: =IF(Worksheet!$D$6=1,RANDBETWEEN(1,99),IF(Worksheet!$D$6=2,CHOOSE(RANDBETWEEN(1,2),RANDBETWEEN(1,99),RANDBETWEEN(1,999)/10),CHOOSE(RANDBETWEEN(1,4),RANDBETWEEN(1,99999)/1000,RANDBETWEEN(1,9999)/100,RANDBETWEEN(1,999)/10,RANDBETWEEN(1,99)))) -> 67 | D114: m | E114: =#REF! ->  | F114: =1000*C114 -> 67000 | G114: mm
A115: =IF(COUNTIF($B$1:B115,TRUE)=COUNTIF($B$1:B114,TRUE),"",COUNTIF($B$1:B115,TRUE)) ->  | B115: =IF(Worksheet!$D$10=3,FALSE,Worksheet!$B$18) -> FALSE | C115: =IF(Worksheet!$D$6=1,RANDBETWEEN(1,99),IF(Worksheet!$D$6=2,CHOOSE(RANDBETWEEN(1,2),RANDBETWEEN(1,99),RANDBETWEEN(1,999)/10),CHOOSE(RANDBETWEEN(1,4),RANDBETWEEN(1,99999)/1000,RANDBETWEEN(1,9999)/100,RANDBETWEEN(1,999)/10,RANDBETWEEN(1,99)))) -> 43 | D115: cm² | E115: = | F115: =C115*100 -> 4300 | G115: mm²
A116: =IF(COUNTIF($B$1:B116,TRUE)=COUNTIF($B$1:B115,TRUE),"",COUNTIF($B$1:B116,TRUE)) -> 70 | B116: =IF(Worksheet!$D$10=3,FALSE,Worksheet!$D$14) -> TRUE | C116: =IF(Worksheet!$D$6=1,RANDBETWEEN(1,99),IF(Worksheet!$D$6=2,CHOOSE(RANDBETWEEN(1,2),RANDBETWEEN(1,99),RANDBETWEEN(1,999)/10),CHOOSE(RANDBETWEEN(1,4),RANDBETWEEN(1,99999)/1000,RANDBETWEEN(1,9999)/100,RANDBETWEEN(1,999)/10,RANDBETWEEN(1,99)))) -> 80 | D116: kg | E116: = | F116: =1000*C116 -> 80000 | G116: g
A117: =IF(COUNTIF($B$1:B117,TRUE)=COUNTIF($B$1:B116,TRUE),"",COUNTIF($B$1:B117,TRUE)) -> 71 | B117: =IF(Worksheet!$D$10=3,FALSE,Worksheet!$D$15) -> TRUE | C117: =IF(Worksheet!$D$6=1,RANDBETWEEN(1,99),IF(Worksheet!$D$6=2,CHOOSE(RANDBETWEEN(1,2),RANDBETWEEN(1,99),RANDBETWEEN(1,999)/10),CHOOSE(RANDBETWEEN(1,4),RANDBETWEEN(1,99999)/1000,RANDBETWEEN(1,9999)/100,RANDBETWEEN(1,999)/10,RANDBETWEEN(1,99)))) -> 78 | D117: tonnes | E117: = | F117: =1000*C117 -> 78000 | G117: kg
A118: =IF(COUNTIF($B$1:B118,TRUE)=COUNTIF($B$1:B117,TRUE),"",COUNTIF($B$1:B118,TRUE)) -> 72 | B118: =IF(Worksheet!$D$10=3,FALSE,Worksheet!$D$16) -> TRUE | C118: =IF(Worksheet!$D$6=1,RANDBETWEEN(1,99),IF(Worksheet!$D$6=2,CHOOSE(RANDBETWEEN(1,2),RANDBETWEEN(1,99),RANDBETWEEN(1,999)/10),CHOOSE(RANDBETWEEN(1,4),RANDBETWEEN(1,99999)/1000,RANDBETWEEN(1,9999)/100,RANDBETWEEN(1,999)/10,RANDBETWEEN(1,99)))) -> 36 | D118: litres | E118: = | F118: =1000*C118 -> 36000 | G118: ml
A119: =IF(COUNTIF($B$1:B119,TRUE)=COUNTIF($B$1:B118,TRUE),"",COUNTIF($B$1:B119,TRUE)) ->  | B119: =IF(Worksheet!$D$10=3,FALSE,Worksheet!$D$17) -> FALSE | C119: =IF(Worksheet!$D$6=1,RANDBETWEEN(1,99),IF(Worksheet!$D$6=2,CHOOSE(RANDBETWEEN(1,2),RANDBETWEEN(1,99),RANDBETWEEN(1,999)/10),CHOOSE(RANDBETWEEN(1,4),RANDBETWEEN(1,99999)/1000,RANDBETWEEN(1,9999)/100,RANDBETWEEN(1,999)/10,RANDBETWEEN(1,99)))) -> 31 | D119: litres | E119: = | F119: =1000*C119 -> 31000 | G119: cm³
A120: =IF(COUNTIF($B$1:B120,TRUE)=COUNTIF($B$1:B119,TRUE),"",COUNTIF($B$1:B120,TRUE)) ->  | B120: =IF(Worksheet!$D$10=3,FALSE,Worksheet!$D$18) -> FALSE | C120: =IF(Worksheet!$D$6=1,RANDBETWEEN(1,99),IF(Worksheet!$D$6=2,CHOOSE(RANDBETWEEN(1,2),RANDBETWEEN(1,99),RANDBETWEEN(1,999)/10),CHOOSE(RANDBETWEEN(1,4),RANDBETWEEN(1,99999)/1000,RANDBETWEEN(1,9999)/100,RANDBETWEEN(1,999)/10,RANDBETWEEN(1,99)))) -> 1 | D120: m² | E120: = | F120: =10000*C120 -> 10000 | G120: cm²
A121: =IF(COUNTIF($B$1:B121,TRUE)=COUNTIF($B$1:B120,TRUE),"",COUNTIF($B$1:B121,TRUE)) -> 73 | B121: =IF(Worksheet!$D$10=2,FALSE,Worksheet!$B$14) -> TRUE | C121: =10*F121 -> 440 | D121: mm | E121: = | F121: =IF(Worksheet!$D$6=1,RANDBETWEEN(1,99),IF(Worksheet!$D$6=2,CHOOSE(RANDBETWEEN(1,2),RANDBETWEEN(1,99),RANDBETWEEN(1,999)/10),CHOOSE(RANDBETWEEN(1,4),RANDBETWEEN(1,99999)/1000,RANDBETWEEN(1,9999)/100,RANDBETWEEN(1,999)/10,RANDBETWEEN(1,99)))) -> 44 | G121: cm
A122: =IF(COUNTIF($B$1:B122,TRUE)=COUNTIF($B$1:B121,TRUE),"",COUNTIF($B$1:B122,TRUE)) -> 74 | B122: =IF(Worksheet!$D$10=2,FALSE,Worksheet!$B$15) -> TRUE | C122: =100*F122 -> 1100 | D122: cm | E122: = | F122: =IF(Worksheet!$D$6=1,RANDBETWEEN(1,99),IF(Worksheet!$D$6=2,CHOOSE(RANDBETWEEN(1,2),RANDBETWEEN(1,99),RANDBETWEEN(1,999)/10),CHOOSE(RANDBETWEEN(1,4),RANDBETWEEN(1,99999)/1000,RANDBETWEEN(1,9999)/100,RANDBETWEEN(1,999)/10,RANDBETWEEN(1,99)))) -> 11 | G122: m
A123: =IF(COUNTIF($B$1:B123,TRUE)=COUNTIF($B$1:B122,TRUE),"",COUNTIF($B$1:B123,TRUE)) -> 75 | B123: =IF(Worksheet!$D$10=2,FALSE,Worksheet!$B$16) -> TRUE | C123: =1000*F123 -> 11000 | D123: m | E123: = | F123: =IF(Worksheet!$D$6=1,RANDBETWEEN(1,99),IF(Worksheet!$D$6=2,CHOOSE(RANDBETWEEN(1,2),RANDBETWEEN(1,99),RANDBETWEEN(1,999)/10),CHOOSE(RANDBETWEEN(1,4),RANDBETWEEN(1,99999)/1000,RANDBETWEEN(1,9999)/100,RANDBETWEEN(1,999)/10,RANDBETWEEN(1,99)))) -> 11 | G123: km
A124: =IF(COUNTIF($B$1:B124,TRUE)=COUNTIF($B$1:B123,TRUE),"",COUNTIF($B$1:B124,TRUE)) ->  | B124: =IF(Worksheet!$D$10=2,FALSE,Worksheet!$B$17) -> FALSE | C124: =1000*F124 -> 22000 | D124: mm | E124: = | F124: =IF(Worksheet!$D$6=1,RANDBETWEEN(1,99),IF(Worksheet!$D$6=2,CHOOSE(RANDBETWEEN(1,2),RANDBETWEEN(1,99),RANDBETWEEN(1,999)/10),CHOOSE(RANDBETWEEN(1,4),RANDBETWEEN(1,99999)/1000,RANDBETWEEN(1,9999)/100,RANDBETWEEN(1,999)/10,RANDBETWEEN(1,99)))) -> 22 | G124: m
A125: =IF(COUNTIF($B$1:B125,TRUE)=COUNTIF($B$1:B124,TRUE),"",COUNTIF($B$1:B125,TRUE)) ->  | B125: =IF(Worksheet!$D$10=2,FALSE,Worksheet!$B$18) -> FALSE | C125: =100*F125 -> 7300 | D125: mm² | E125: = | F125: =IF(Worksheet!$D$6=1,RANDBETWEEN(1,99),IF(Worksheet!$D$6=2,CHOOSE(RANDBETWEEN(1,2),RANDBETWEEN(1,99),RANDBETWEEN(1,999)/10),CHOOSE(RANDBETWEEN(1,4),RANDBETWEEN(1,99999)/1000,RANDBETWEEN(1,9999)/100,RANDBETWEEN(1,999)/10,RANDBETWEEN(1,99)))) -> 73 | G125: cm²
A126: =IF(COUNTIF($B$1:B126,TRUE)=COUNTIF($B$1:B125,TRUE),"",COUNTIF($B$1:B126,TRUE)) -> 76 | B126: =IF(Worksheet!$D$10=2,FALSE,Worksheet!$D$14) -> TRUE | C126: =F126*1000 -> 43000 | D126: g | E126: = | F126: =IF(Worksheet!$D$6=1,RANDBETWEEN(1,99),IF(Worksheet!$D$6=2,CHOOSE(RANDBETWEEN(1,2),RANDBETWEEN(1,99),RANDBETWEEN(1,999)/10),CHOOSE(RANDBETWEEN(1,4),RANDBETWEEN(1,99999)/1000,RANDBETWEEN(1,9999)/100,RANDBETWEEN(1,999)/10,RANDBETWEEN(1,99)))) -> 43 | G126: kg
A127: =IF(COUNTIF($B$1:B127,TRUE)=COUNTIF($B$1:B126,TRUE),"",COUNTIF($B$1:B127,TRUE)) -> 77 | B127: =IF(Worksheet!$D$10=2,FALSE,Worksheet!$D$15) -> TRUE | C127: =F127*1000 -> 75000 | D127: kg | E127: = | F127: =IF(Worksheet!$D$6=1,RANDBETWEEN(1,99),IF(Worksheet!$D$6=2,CHOOSE(RANDBETWEEN(1,2),RANDBETWEEN(1,99),RANDBETWEEN(1,999)/10),CHOOSE(RANDBETWEEN(1,4),RANDBETWEEN(1,99999)/1000,RANDBETWEEN(1,9999)/100,RANDBETWEEN(1,999)/10,RANDBETWEEN(1,99)))) -> 75 | G127: tonnes
A128: =IF(COUNTIF($B$1:B128,TRUE)=COUNTIF($B$1:B127,TRUE),"",COUNTIF($B$1:B128,TRUE)) -> 78 | B128: =IF(Worksheet!$D$10=2,FALSE,Worksheet!$D$16) -> TRUE | C128: =1000*F128 -> 6000 | D128: ml | E128: = | F128: =IF(Worksheet!$D$6=1,RANDBETWEEN(1,99),IF(Worksheet!$D$6=2,CHOOSE(RANDBETWEEN(1,2),RANDBETWEEN(1,99),RANDBETWEEN(1,999)/10),CHOOSE(RANDBETWEEN(1,4),RANDBETWEEN(1,99999)/1000,RANDBETWEEN(1,9999)/100,RANDBETWEEN(1,999)/10,RANDBETWEEN(1,99)))) -> 6 | G128: litres
A129: =IF(COUNTIF($B$1:B129,TRUE)=COUNTIF($B$1:B128,TRUE),"",COUNTIF($B$1:B129,TRUE)) ->  | B129: =IF(Worksheet!$D$10=2,FALSE,Worksheet!$D$17) -> FALSE | C129: =1000*F129 -> 28000 | D129: cm³ | E129: = | F129: =IF(Worksheet!$D$6=1,RANDBETWEEN(1,99),IF(Worksheet!$D$6=2,CHOOSE(RANDBETWEEN(1,2),RANDBETWEEN(1,99),RANDBETWEEN(1,999)/10),CHOOSE(RANDBETWEEN(1,4),RANDBETWEEN(1,99999)/1000,RANDBETWEEN(1,9999)/100,RANDBETWEEN(1,999)/10,RANDBETWEEN(1,99)))) -> 28 | G129: litres
A130: =IF(COUNTIF($B$1:B130,TRUE)=COUNTIF($B$1:B129,TRUE),"",COUNTIF($B$1:B130,TRUE)) ->  | B130: =IF(Worksheet!$D$10=2,FALSE,Worksheet!$D$18) -> FALSE | C130: =10000*F130 -> 90000 | D130: cm² | E130: = | F130: =IF(Worksheet!$D$6=1,RANDBETWEEN(1,99),IF(Worksheet!$D$6=2,CHOOSE(RANDBETWEEN(1,2),RANDBETWEEN(1,99),RANDBETWEEN(1,999)/10),CHOOSE(RANDBETWEEN(1,4),RANDBETWEEN(1,99999)/1000,RANDBETWEEN(1,9999)/100,RANDBETWEEN(1,999)/10,RANDBETWEEN(1,99)))) -> 9 | G130: m²
A131: =IF(COUNTIF($B$1:B131,TRUE)=COUNTIF($B$1:B130,TRUE),"",COUNTIF($B$1:B131,TRUE)) -> 79 | B131: =IF(Worksheet!$D$10=3,FALSE,Worksheet!$B$14) -> TRUE | C131: =IF(Worksheet!$D$6=1,RANDBETWEEN(1,99),IF(Worksheet!$D$6=2,CHOOSE(RANDBETWEEN(1,2),RANDBETWEEN(1,99),RANDBETWEEN(1,999)/10),CHOOSE(RANDBETWEEN(1,4),RANDBETWEEN(1,99999)/1000,RANDBETWEEN(1,9999)/100,RANDBETWEEN(1,999)/10,RANDBETWEEN(1,99)))) -> 73 | D131: cm | E131: = | F131: =10*C131 -> 730 | G131: mm
A132: =IF(COUNTIF($B$1:B132,TRUE)=COUNTIF($B$1:B131,TRUE),"",COUNTIF($B$1:B132,TRUE)) -> 80 | B132: =IF(Worksheet!$D$10=3,FALSE,Worksheet!$B$15) -> TRUE | C132: =IF(Worksheet!$D$6=1,RANDBETWEEN(1,99),IF(Worksheet!$D$6=2,CHOOSE(RANDBETWEEN(1,2),RANDBETWEEN(1,99),RANDBETWEEN(1,999)/10),CHOOSE(RANDBETWEEN(1,4),RANDBETWEEN(1,99999)/1000,RANDBETWEEN(1,9999)/100,RANDBETWEEN(1,999)/10,RANDBETWEEN(1,99)))) -> 92 | D132: m | E132: = | F132: =100*C132 -> 9200 | G132: cm
A133: =IF(COUNTIF($B$1:B133,TRUE)=COUNTIF($B$1:B132,TRUE),"",COUNTIF($B$1:B133,TRUE)) -> 81 | B133: =IF(Worksheet!$D$10=3,FALSE,Worksheet!$B$16) -> TRUE | C133: =IF(Worksheet!$D$6=1,RANDBETWEEN(1,99),IF(Worksheet!$D$6=2,CHOOSE(RANDBETWEEN(1,2),RANDBETWEEN(1,99),RANDBETWEEN(1,999)/10),CHOOSE(RANDBETWEEN(1,4),RANDBETWEEN(1,99999)/1000,RANDBETWEEN(1,9999)/100,RANDBETWEEN(1,999)/10,RANDBETWEEN(1,99)))) -> 77 | D133: km | E133: = | F133: =1000*C133 -> 77000 | G133: m
A134: =IF(COUNTIF($B$1:B134,TRUE)=COUNTIF($B$1:B133,TRUE),"",COUNTIF($B$1:B134,TRUE)) ->  | B134: =IF(Worksheet!$D$10=3,FALSE,Worksheet!$B$17) -> FALSE | C134: =IF(Worksheet!$D$6=1,RANDBETWEEN(1,99),IF(Worksheet!$D$6=2,CHOOSE(RANDBETWEEN(1,2),RANDBETWEEN(1,99),RANDBETWEEN(1,999)/10),CHOOSE(RANDBETWEEN(1,4),RANDBETWEEN(1,99999)/1000,RANDBETWEEN(1,9999)/100,RANDBETWEEN(1,999)/10,RANDBETWEEN(1,99)))) -> 2 | D134: m | E134: =#REF! ->  | F134: =1000*C134 -> 2000 | G134: mm
A135: =IF(COUNTIF($B$1:B135,TRUE)=COUNTIF($B$1:B134,TRUE),"",COUNTIF($B$1:B135,TRUE)) ->  | B135: =IF(Worksheet!$D$10=3,FALSE,Worksheet!$B$18) -> FALSE | C135: =IF(Worksheet!$D$6=1,RANDBETWEEN(1,99),IF(Worksheet!$D$6=2,CHOOSE(RANDBETWEEN(1,2),RANDBETWEEN(1,99),RANDBETWEEN(1,999)/10),CHOOSE(RANDBETWEEN(1,4),RANDBETWEEN(1,99999)/1000,RANDBETWEEN(1,9999)/100,RANDBETWEEN(1,999)/10,RANDBETWEEN(1,99)))) -> 64 | D135: cm² | E135: = | F135: =C135*100 -> 6400 | G135: mm²
A136: =IF(COUNTIF($B$1:B136,TRUE)=COUNTIF($B$1:B135,TRUE),"",COUNTIF($B$1:B136,TRUE)) -> 82 | B136: =IF(Worksheet!$D$10=3,FALSE,Worksheet!$D$14) -> TRUE | C136: =IF(Worksheet!$D$6=1,RANDBETWEEN(1,99),IF(Worksheet!$D$6=2,CHOOSE(RANDBETWEEN(1,2),RANDBETWEEN(1,99),RANDBETWEEN(1,999)/10),CHOOSE(RANDBETWEEN(1,4),RANDBETWEEN(1,99999)/1000,RANDBETWEEN(1,9999)/100,RANDBETWEEN(1,999)/10,RANDBETWEEN(1,99)))) -> 18 | D136: kg | E136: = | F136: =1000*C136 -> 18000 | G136: g
A137: =IF(COUNTIF($B$1:B137,TRUE)=COUNTIF($B$1:B136,TRUE),"",COUNTIF($B$1:B137,TRUE)) -> 83 | B137: =IF(Worksheet!$D$10=3,FALSE,Worksheet!$D$15) -> TRUE | C137: =IF(Worksheet!$D$6=1,RANDBETWEEN(1,99),IF(Worksheet!$D$6=2,CHOOSE(RANDBETWEEN(1,2),RANDBETWEEN(1,99),RANDBETWEEN(1,999)/10),CHOOSE(RANDBETWEEN(1,4),RANDBETWEEN(1,99999)/1000,RANDBETWEEN(1,9999)/100,RANDBETWEEN(1,999)/10,RANDBETWEEN(1,99)))) -> 45 | D137: tonnes | E137: = | F137: =1000*C137 -> 45000 | G137: kg
A138: =IF(COUNTIF($B$1:B138,TRUE)=COUNTIF($B$1:B137,TRUE),"",COUNTIF($B$1:B138,TRUE)) -> 84 | B138: =IF(Worksheet!$D$10=3,FALSE,Worksheet!$D$16) -> TRUE | C138: =IF(Worksheet!$D$6=1,RANDBETWEEN(1,99),IF(Worksheet!$D$6=2,CHOOSE(RANDBETWEEN(1,2),RANDBETWEEN(1,99),RANDBETWEEN(1,999)/10),CHOOSE(RANDBETWEEN(1,4),RANDBETWEEN(1,99999)/1000,RANDBETWEEN(1,9999)/100,RANDBETWEEN(1,999)/10,RANDBETWEEN(1,99)))) -> 53 | D138: litres | E138: = | F138: =1000*C138 -> 53000 | G138: ml
A139: =IF(COUNTIF($B$1:B139,TRUE)=COUNTIF($B$1:B138,TRUE),"",COUNTIF($B$1:B139,TRUE)) ->  | B139: =IF(Worksheet!$D$10=3,FALSE,Worksheet!$D$17) -> FALSE | C139: =IF(Worksheet!$D$6=1,RANDBETWEEN(1,99),IF(Worksheet!$D$6=2,CHOOSE(RANDBETWEEN(1,2),RANDBETWEEN(1,99),RANDBETWEEN(1,999)/10),CHOOSE(RANDBETWEEN(1,4),RANDBETWEEN(1,99999)/1000,RANDBETWEEN(1,9999)/100,RANDBETWEEN(1,999)/10,RANDBETWEEN(1,99)))) -> 71 | D139: litres | E139: = | F139: =1000*C139 -> 71000 | G139: cm³
A140: =IF(COUNTIF($B$1:B140,TRUE)=COUNTIF($B$1:B139,TRUE),"",COUNTIF($B$1:B140,TRUE)) ->  | B140: =IF(Worksheet!$D$10=3,FALSE,Worksheet!$D$18) -> FALSE | C140: =IF(Worksheet!$D$6=1,RANDBETWEEN(1,99),IF(Worksheet!$D$6=2,CHOOSE(RANDBETWEEN(1,2),RANDBETWEEN(1,99),RANDBETWEEN(1,999)/10),CHOOSE(RANDBETWEEN(1,4),RANDBETWEEN(1,99999)/1000,RANDBETWEEN(1,9999)/100,RANDBETWEEN(1,999)/10,RANDBETWEEN(1,99)))) -> 65 | D140: m² | E140: = | F140: =10000*C140 -> 650000 | G140: cm²
A141: =IF(COUNTIF($B$1:B141,TRUE)=COUNTIF($B$1:B140,TRUE),"",COUNTIF($B$1:B141,TRUE)) -> 85 | B141: =IF(Worksheet!$D$10=2,FALSE,Worksheet!$B$14) -> TRUE | C141: =10*F141 -> 190 | D141: mm | E141: = | F141: =IF(Worksheet!$D$6=1,RANDBETWEEN(1,99),IF(Worksheet!$D$6=2,CHOOSE(RANDBETWEEN(1,2),RANDBETWEEN(1,99),RANDBETWEEN(1,999)/10),CHOOSE(RANDBETWEEN(1,4),RANDBETWEEN(1,99999)/1000,RANDBETWEEN(1,9999)/100,RANDBETWEEN(1,999)/10,RANDBETWEEN(1,99)))) -> 19 | G141: cm
A142: =IF(COUNTIF($B$1:B142,TRUE)=COUNTIF($B$1:B141,TRUE),"",COUNTIF($B$1:B142,TRUE)) -> 86 | B142: =IF(Worksheet!$D$10=2,FALSE,Worksheet!$B$15) -> TRUE | C142: =100*F142 -> 2000 | D142: cm | E142: = | F142: =IF(Worksheet!$D$6=1,RANDBETWEEN(1,99),IF(Worksheet!$D$6=2,CHOOSE(RANDBETWEEN(1,2),RANDBETWEEN(1,99),RANDBETWEEN(1,999)/10),CHOOSE(RANDBETWEEN(1,4),RANDBETWEEN(1,99999)/1000,RANDBETWEEN(1,9999)/100,RANDBETWEEN(1,999)/10,RANDBETWEEN(1,99)))) -> 20 | G142: m
A143: =IF(COUNTIF($B$1:B143,TRUE)=COUNTIF($B$1:B142,TRUE),"",COUNTIF($B$1:B143,TRUE)) -> 87 | B143: =IF(Worksheet!$D$10=2,FALSE,Worksheet!$B$16) -> TRUE | C143: =1000*F143 -> 41000 | D143: m | E143: = | F143: =IF(Worksheet!$D$6=1,RANDBETWEEN(1,99),IF(Worksheet!$D$6=2,CHOOSE(RANDBETWEEN(1,2),RANDBETWEEN(1,99),RANDBETWEEN(1,999)/10),CHOOSE(RANDBETWEEN(1,4),RANDBETWEEN(1,99999)/1000,RANDBETWEEN(1,9999)/100,RANDBETWEEN(1,999)/10,RANDBETWEEN(1,99)))) -> 41 | G143: km
A144: =IF(COUNTIF($B$1:B144,TRUE)=COUNTIF($B$1:B143,TRUE),"",COUNTIF($B$1:B144,TRUE)) ->  | B144: =IF(Worksheet!$D$10=2,FALSE,Worksheet!$B$17) -> FALSE | C144: =1000*F144 -> 82000 | D144: mm | E144: = | F144: =IF(Worksheet!$D$6=1,RANDBETWEEN(1,99),IF(Worksheet!$D$6=2,CHOOSE(RANDBETWEEN(1,2),RANDBETWEEN(1,99),RANDBETWEEN(1,999)/10),CHOOSE(RANDBETWEEN(1,4),RANDBETWEEN(1,99999)/1000,RANDBETWEEN(1,9999)/100,RANDBETWEEN(1,999)/10,RANDBETWEEN(1,99)))) -> 82 | G144: m
A145: =IF(COUNTIF($B$1:B145,TRUE)=COUNTIF($B$1:B144,TRUE),"",COUNTIF($B$1:B145,TRUE)) ->  | B145: =IF(Worksheet!$D$10=2,FALSE,Worksheet!$B$18) -> FALSE | C145: =100*F145 -> 3400 | D145: mm² | E145: = | F145: =IF(Worksheet!$D$6=1,RANDBETWEEN(1,99),IF(Worksheet!$D$6=2,CHOOSE(RANDBETWEEN(1,2),RANDBETWEEN(1,99),RANDBETWEEN(1,999)/10),CHOOSE(RANDBETWEEN(1,4),RANDBETWEEN(1,99999)/1000,RANDBETWEEN(1,9999)/100,RANDBETWEEN(1,999)/10,RANDBETWEEN(1,99)))) -> 34 | G145: cm²
A146: =IF(COUNTIF($B$1:B146,TRUE)=COUNTIF($B$1:B145,TRUE),"",COUNTIF($B$1:B146,TRUE)) -> 88 | B146: =IF(Worksheet!$D$10=2,FALSE,Worksheet!$D$14) -> TRUE | C146: =F146*1000 -> 70000 | D146: g | E146: = | F146: =IF(Worksheet!$D$6=1,RANDBETWEEN(1,99),IF(Worksheet!$D$6=2,CHOOSE(RANDBETWEEN(1,2),RANDBETWEEN(1,99),RANDBETWEEN(1,999)/10),CHOOSE(RANDBETWEEN(1,4),RANDBETWEEN(1,99999)/1000,RANDBETWEEN(1,9999)/100,RANDBETWEEN(1,999)/10,RANDBETWEEN(1,99)))) -> 70 | G146: kg
A147: =IF(COUNTIF($B$1:B147,TRUE)=COUNTIF($B$1:B146,TRUE),"",COUNTIF($B$1:B147,TRUE)) -> 89 | B147: =IF(Worksheet!$D$10=2,FALSE,Worksheet!$D$15) -> TRUE | C147: =F147*1000 -> 31000 | D147: kg | E147: = | F147: =IF(Worksheet!$D$6=1,RANDBETWEEN(1,99),IF(Worksheet!$D$6=2,CHOOSE(RANDBETWEEN(1,2),RANDBETWEEN(1,99),RANDBETWEEN(1,999)/10),CHOOSE(RANDBETWEEN(1,4),RANDBETWEEN(1,99999)/1000,RANDBETWEEN(1,9999)/100,RANDBETWEEN(1,999)/10,RANDBETWEEN(1,99)))) -> 31 | G147: tonnes
A148: =IF(COUNTIF($B$1:B148,TRUE)=COUNTIF($B$1:B147,TRUE),"",COUNTIF($B$1:B148,TRUE)) -> 90 | B148: =IF(Worksheet!$D$10=2,FALSE,Worksheet!$D$16) -> TRUE | C148: =1000*F148 -> 99000 | D148: ml | E148: = | F148: =IF(Worksheet!$D$6=1,RANDBETWEEN(1,99),IF(Worksheet!$D$6=2,CHOOSE(RANDBETWEEN(1,2),RANDBETWEEN(1,99),RANDBETWEEN(1,999)/10),CHOOSE(RANDBETWEEN(1,4),RANDBETWEEN(1,99999)/1000,RANDBETWEEN(1,9999)/100,RANDBETWEEN(1,999)/10,RANDBETWEEN(1,99)))) -> 99 | G148: litres
A149: =IF(COUNTIF($B$1:B149,TRUE)=COUNTIF($B$1:B148,TRUE),"",COUNTIF($B$1:B149,TRUE)) ->  | B149: =IF(Worksheet!$D$10=2,FALSE,Worksheet!$D$17) -> FALSE | C149: =1000*F149 -> 11000 | D149: cm³ | E149: = | F149: =IF(Worksheet!$D$6=1,RANDBETWEEN(1,99),IF(Worksheet!$D$6=2,CHOOSE(RANDBETWEEN(1,2),RANDBETWEEN(1,99),RANDBETWEEN(1,999)/10),CHOOSE(RANDBETWEEN(1,4),RANDBETWEEN(1,99999)/1000,RANDBETWEEN(1,9999)/100,RANDBETWEEN(1,999)/10,RANDBETWEEN(1,99)))) -> 11 | G149: litres
A150: =IF(COUNTIF($B$1:B150,TRUE)=COUNTIF($B$1:B149,TRUE),"",COUNTIF($B$1:B150,TRUE)) ->  | B150: =IF(Worksheet!$D$10=2,FALSE,Worksheet!$D$18) -> FALSE | C150: =10000*F150 -> 910000 | D150: cm² | E150: = | F150: =IF(Worksheet!$D$6=1,RANDBETWEEN(1,99),IF(Worksheet!$D$6=2,CHOOSE(RANDBETWEEN(1,2),RANDBETWEEN(1,99),RANDBETWEEN(1,999)/10),CHOOSE(RANDBETWEEN(1,4),RANDBETWEEN(1,99999)/1000,RANDBETWEEN(1,9999)/100,RANDBETWEEN(1,999)/10,RANDBETWEEN(1,99)))) -> 91 | G150: m²
A151: =IF(COUNTIF($B$1:B151,TRUE)=COUNTIF($B$1:B150,TRUE),"",COUNTIF($B$1:B151,TRUE)) -> 91 | B151: =IF(Worksheet!$D$10=3,FALSE,Worksheet!$B$14) -> TRUE | C151: =IF(Worksheet!$D$6=1,RANDBETWEEN(1,99),IF(Worksheet!$D$6=2,CHOOSE(RANDBETWEEN(1,2),RANDBETWEEN(1,99),RANDBETWEEN(1,999)/10),CHOOSE(RANDBETWEEN(1,4),RANDBETWEEN(1,99999)/1000,RANDBETWEEN(1,9999)/100,RANDBETWEEN(1,999)/10,RANDBETWEEN(1,99)))) -> 19 | D151: cm | E151: = | F151: =10*C151 -> 190 | G151: mm
A152: =IF(COUNTIF($B$1:B152,TRUE)=COUNTIF($B$1:B151,TRUE),"",COUNTIF($B$1:B152,TRUE)) -> 92 | B152: =IF(Worksheet!$D$10=3,FALSE,Worksheet!$B$15) -> TRUE | C152: =IF(Worksheet!$D$6=1,RANDBETWEEN(1,99),IF(Worksheet!$D$6=2,CHOOSE(RANDBETWEEN(1,2),RANDBETWEEN(1,99),RANDBETWEEN(1,999)/10),CHOOSE(RANDBETWEEN(1,4),RANDBETWEEN(1,99999)/1000,RANDBETWEEN(1,9999)/100,RANDBETWEEN(1,999)/10,RANDBETWEEN(1,99)))) -> 15 | D152: m | E152: = | F152: =100*C152 -> 1500 | G152: cm
A153: =IF(COUNTIF($B$1:B153,TRUE)=COUNTIF($B$1:B152,TRUE),"",COUNTIF($B$1:B153,TRUE)) -> 93 | B153: =IF(Worksheet!$D$10=3,FALSE,Worksheet!$B$16) -> TRUE | C153: =IF(Worksheet!$D$6=1,RANDBETWEEN(1,99),IF(Worksheet!$D$6=2,CHOOSE(RANDBETWEEN(1,2),RANDBETWEEN(1,99),RANDBETWEEN(1,999)/10),CHOOSE(RANDBETWEEN(1,4),RANDBETWEEN(1,99999)/1000,RANDBETWEEN(1,9999)/100,RANDBETWEEN(1,999)/10,RANDBETWEEN(1,99)))) -> 48 | D153: km | E153: = | F153: =1000*C153 -> 48000 | G153: m
A154: =IF(COUNTIF($B$1:B154,TRUE)=COUNTIF($B$1:B153,TRUE),"",COUNTIF($B$1:B154,TRUE)) ->  | B154: =IF(Worksheet!$D$10=3,FALSE,Worksheet!$B$17) -> FALSE | C154: =IF(Worksheet!$D$6=1,RANDBETWEEN(1,99),IF(Worksheet!$D$6=2,CHOOSE(RANDBETWEEN(1,2),RANDBETWEEN(1,99),RANDBETWEEN(1,999)/10),CHOOSE(RANDBETWEEN(1,4),RANDBETWEEN(1,99999)/1000,RANDBETWEEN(1,9999)/100,RANDBETWEEN(1,999)/10,RANDBETWEEN(1,99)))) -> 33 | D154: m | E154: =#REF! ->  | F154: =1000*C154 -> 33000 | G154: mm
A155: =IF(COUNTIF($B$1:B155,TRUE)=COUNTIF($B$1:B154,TRUE),"",COUNTIF($B$1:B155,TRUE)) ->  | B155: =IF(Worksheet!$D$10=3,FALSE,Worksheet!$B$18) -> FALSE | C155: =IF(Worksheet!$D$6=1,RANDBETWEEN(1,99),IF(Worksheet!$D$6=2,CHOOSE(RANDBETWEEN(1,2),RANDBETWEEN(1,99),RANDBETWEEN(1,999)/10),CHOOSE(RANDBETWEEN(1,4),RANDBETWEEN(1,99999)/1000,RANDBETWEEN(1,9999)/100,RANDBETWEEN(1,999)/10,RANDBETWEEN(1,99)))) -> 45 | D155: cm² | E155: = | F155: =C155*100 -> 4500 | G155: mm²
A156: =IF(COUNTIF($B$1:B156,TRUE)=COUNTIF($B$1:B155,TRUE),"",COUNTIF($B$1:B156,TRUE)) -> 94 | B156: =IF(Worksheet!$D$10=3,FALSE,Worksheet!$D$14) -> TRUE | C156: =IF(Worksheet!$D$6=1,RANDBETWEEN(1,99),IF(Worksheet!$D$6=2,CHOOSE(RANDBETWEEN(1,2),RANDBETWEEN(1,99),RANDBETWEEN(1,999)/10),CHOOSE(RANDBETWEEN(1,4),RANDBETWEEN(1,99999)/1000,RANDBETWEEN(1,9999)/100,RANDBETWEEN(1,999)/10,RANDBETWEEN(1,99)))) -> 84 | D156: kg | E156: = | F156: =1000*C156 -> 84000 | G156: g
A157: =IF(COUNTIF($B$1:B157,TRUE)=COUNTIF($B$1:B156,TRUE),"",COUNTIF($B$1:B157,TRUE)) -> 95 | B157: =IF(Worksheet!$D$10=3,FALSE,Worksheet!$D$15) -> TRUE | C157: =IF(Worksheet!$D$6=1,RANDBETWEEN(1,99),IF(Worksheet!$D$6=2,CHOOSE(RANDBETWEEN(1,2),RANDBETWEEN(1,99),RANDBETWEEN(1,999)/10),CHOOSE(RANDBETWEEN(1,4),RANDBETWEEN(1,99999)/1000,RANDBETWEEN(1,9999)/100,RANDBETWEEN(1,999)/10,RANDBETWEEN(1,99)))) -> 38 | D157: tonnes | E157: = | F157: =1000*C157 -> 38000 | G157: kg
A158: =IF(COUNTIF($B$1:B158,TRUE)=COUNTIF($B$1:B157,TRUE),"",COUNTIF($B$1:B158,TRUE)) -> 96 | B158: =IF(Worksheet!$D$10=3,FALSE,Worksheet!$D$16) -> TRUE | C158: =IF(Worksheet!$D$6=1,RANDBETWEEN(1,99),IF(Worksheet!$D$6=2,CHOOSE(RANDBETWEEN(1,2),RANDBETWEEN(1,99),RANDBETWEEN(1,999)/10),CHOOSE(RANDBETWEEN(1,4),RANDBETWEEN(1,99999)/1000,RANDBETWEEN(1,9999)/100,RANDBETWEEN(1,999)/10,RANDBETWEEN(1,99)))) -> 58 | D158: litres | E158: = | F158: =1000*C158 -> 58000 | G158: ml
A159: =IF(COUNTIF($B$1:B159,TRUE)=COUNTIF($B$1:B158,TRUE),"",COUNTIF($B$1:B159,TRUE)) ->  | B159: =IF(Worksheet!$D$10=3,FALSE,Worksheet!$D$17) -> FALSE | C159: =IF(Worksheet!$D$6=1,RANDBETWEEN(1,99),IF(Worksheet!$D$6=2,CHOOSE(RANDBETWEEN(1,2),RANDBETWEEN(1,99),RANDBETWEEN(1,999)/10),CHOOSE(RANDBETWEEN(1,4),RANDBETWEEN(1,99999)/1000,RANDBETWEEN(1,9999)/100,RANDBETWEEN(1,999)/10,RANDBETWEEN(1,99)))) -> 48 | D159: litres | E159: = | F159: =1000*C159 -> 48000 | G159: cm³
A160: =IF(COUNTIF($B$1:B160,TRUE)=COUNTIF($B$1:B159,TRUE),"",COUNTIF($B$1:B160,TRUE)) ->  | B160: =IF(Worksheet!$D$10=3,FALSE,Worksheet!$D$18) -> FALSE | C160: =IF(Worksheet!$D$6=1,RANDBETWEEN(1,99),IF(Worksheet!$D$6=2,CHOOSE(RANDBETWEEN(1,2),RANDBETWEEN(1,99),RANDBETWEEN(1,999)/10),CHOOSE(RANDBETWEEN(1,4),RANDBETWEEN(1,99999)/1000,RANDBETWEEN(1,9999)/100,RANDBETWEEN(1,999)/10,RANDBETWEEN(1,99)))) -> 11 | D160: m² | E160: = | F160: =10000*C160 -> 110000 | G160: cm²
A161: =IF(COUNTIF($B$1:B161,TRUE)=COUNTIF($B$1:B160,TRUE),"",COUNTIF($B$1:B161,TRUE)) -> 97 | B161: =IF(Worksheet!$D$10=2,FALSE,Worksheet!$B$14) -> TRUE | C161: =10*F161 -> 50 | D161: mm | E161: = | F161: =IF(Worksheet!$D$6=1,RANDBETWEEN(1,99),IF(Worksheet!$D$6=2,CHOOSE(RANDBETWEEN(1,2),RANDBETWEEN(1,99),RANDBETWEEN(1,999)/10),CHOOSE(RANDBETWEEN(1,4),RANDBETWEEN(1,99999)/1000,RANDBETWEEN(1,9999)/100,RANDBETWEEN(1,999)/10,RANDBETWEEN(1,99)))) -> 5 | G161: cm
A162: =IF(COUNTIF($B$1:B162,TRUE)=COUNTIF($B$1:B161,TRUE),"",COUNTIF($B$1:B162,TRUE)) -> 98 | B162: =IF(Worksheet!$D$10=2,FALSE,Worksheet!$B$15) -> TRUE | C162: =100*F162 -> 9300 | D162: cm | E162: = | F162: =IF(Worksheet!$D$6=1,RANDBETWEEN(1,99),IF(Worksheet!$D$6=2,CHOOSE(RANDBETWEEN(1,2),RANDBETWEEN(1,99),RANDBETWEEN(1,999)/10),CHOOSE(RANDBETWEEN(1,4),RANDBETWEEN(1,99999)/1000,RANDBETWEEN(1,9999)/100,RANDBETWEEN(1,999)/10,RANDBETWEEN(1,99)))) -> 93 | G162: m
A163: =IF(COUNTIF($B$1:B163,TRUE)=COUNTIF($B$1:B162,TRUE),"",COUNTIF($B$1:B163,TRUE)) -> 99 | B163: =IF(Worksheet!$D$10=2,FALSE,Worksheet!$B$16) -> TRUE | C163: =1000*F163 -> 34000 | D163: m | E163: = | F163: =IF(Worksheet!$D$6=1,RANDBETWEEN(1,99),IF(Worksheet!$D$6=2,CHOOSE(RANDBETWEEN(1,2),RANDBETWEEN(1,99),RANDBETWEEN(1,999)/10),CHOOSE(RANDBETWEEN(1,4),RANDBETWEEN(1,99999)/1000,RANDBETWEEN(1,9999)/100,RANDBETWEEN(1,999)/10,RANDBETWEEN(1,99)))) -> 34 | G163: km
A164: =IF(COUNTIF($B$1:B164,TRUE)=COUNTIF($B$1:B163,TRUE),"",COUNTIF($B$1:B164,TRUE)) ->  | B164: =IF(Worksheet!$D$10=2,FALSE,Worksheet!$B$17) -> FALSE | C164: =1000*F164 -> 91000 | D164: mm | E164: = | F164: =IF(Worksheet!$D$6=1,RANDBETWEEN(1,99),IF(Worksheet!$D$6=2,CHOOSE(RANDBETWEEN(1,2),RANDBETWEEN(1,99),RANDBETWEEN(1,999)/10),CHOOSE(RANDBETWEEN(1,4),RANDBETWEEN(1,99999)/1000,RANDBETWEEN(1,9999)/100,RANDBETWEEN(1,999)/10,RANDBETWEEN(1,99)))) -> 91 | G164: m
A165: =IF(COUNTIF($B$1:B165,TRUE)=COUNTIF($B$1:B164,TRUE),"",COUNTIF($B$1:B165,TRUE)) ->  | B165: =IF(Worksheet!$D$10=2,FALSE,Worksheet!$B$18) -> FALSE | C165: =100*F165 -> 800 | D165: mm² | E165: = | F165: =IF(Worksheet!$D$6=1,RANDBETWEEN(1,99),IF(Worksheet!$D$6=2,CHOOSE(RANDBETWEEN(1,2),RANDBETWEEN(1,99),RANDBETWEEN(1,999)/10),CHOOSE(RANDBETWEEN(1,4),RANDBETWEEN(1,99999)/1000,RANDBETWEEN(1,9999)/100,RANDBETWEEN(1,999)/10,RANDBETWEEN(1,99)))) -> 8 | G165: cm²
A166: =IF(COUNTIF($B$1:B166,TRUE)=COUNTIF($B$1:B165,TRUE),"",COUNTIF($B$1:B166,TRUE)) -> 100 | B166: =IF(Worksheet!$D$10=2,FALSE,Worksheet!$D$14) -> TRUE | C166: =F166*1000 -> 90000 | D166: g | E166: = | F166: =IF(Worksheet!$D$6=1,RANDBETWEEN(1,99),IF(Worksheet!$D$6=2,CHOOSE(RANDBETWEEN(1,2),RANDBETWEEN(1,99),RANDBETWEEN(1,999)/10),CHOOSE(RANDBETWEEN(1,4),RANDBETWEEN(1,99999)/1000,RANDBETWEEN(1,9999)/100,RANDBETWEEN(1,999)/10,RANDBETWEEN(1,99)))) -> 90 | G166: kg
A167: =IF(COUNTIF($B$1:B167,TRUE)=COUNTIF($B$1:B166,TRUE),"",COUNTIF($B$1:B167,TRUE)) -> 101 | B167: =IF(Worksheet!$D$10=2,FALSE,Worksheet!$D$15) -> TRUE | C167: =F167*1000 -> 21000 | D167: kg | E167: = | F167: =IF(Worksheet!$D$6=1,RANDBETWEEN(1,99),IF(Worksheet!$D$6=2,CHOOSE(RANDBETWEEN(1,2),RANDBETWEEN(1,99),RANDBETWEEN(1,999)/10),CHOOSE(RANDBETWEEN(1,4),RANDBETWEEN(1,99999)/1000,RANDBETWEEN(1,9999)/100,RANDBETWEEN(1,999)/10,RANDBETWEEN(1,99)))) -> 21 | G167: tonnes
A168: =IF(COUNTIF($B$1:B168,TRUE)=COUNTIF($B$1:B167,TRUE),"",COUNTIF($B$1:B168,TRUE)) -> 102 | B168: =IF(Worksheet!$D$10=2,FALSE,Worksheet!$D$16) -> TRUE | C168: =1000*F168 -> 29000 | D168: ml | E168: = | F168: =IF(Worksheet!$D$6=1,RANDBETWEEN(1,99),IF(Worksheet!$D$6=2,CHOOSE(RANDBETWEEN(1,2),RANDBETWEEN(1,99),RANDBETWEEN(1,999)/10),CHOOSE(RANDBETWEEN(1,4),RANDBETWEEN(1,99999)/1000,RANDBETWEEN(1,9999)/100,RANDBETWEEN(1,999)/10,RANDBETWEEN(1,99)))) -> 29 | G168: litres
A169: =IF(COUNTIF($B$1:B169,TRUE)=COUNTIF($B$1:B168,TRUE),"",COUNTIF($B$1:B169,TRUE)) ->  | B169: =IF(Worksheet!$D$10=2,FALSE,Worksheet!$D$17) -> FALSE | C169: =1000*F169 -> 64000 | D169: cm³ | E169: = | F169: =IF(Worksheet!$D$6=1,RANDBETWEEN(1,99),IF(Worksheet!$D$6=2,CHOOSE(RANDBETWEEN(1,2),RANDBETWEEN(1,99),RANDBETWEEN(1,999)/10),CHOOSE(RANDBETWEEN(1,4),RANDBETWEEN(1,99999)/1000,RANDBETWEEN(1,9999)/100,RANDBETWEEN(1,999)/10,RANDBETWEEN(1,99)))) -> 64 | G169: litres
A170: =IF(COUNTIF($B$1:B170,TRUE)=COUNTIF($B$1:B169,TRUE),"",COUNTIF($B$1:B170,TRUE)) ->  | B170: =IF(Worksheet!$D$10=2,FALSE,Worksheet!$D$18) -> FALSE | C170: =10000*F170 -> 880000 | D170: cm² | E170: = | F170: =IF(Worksheet!$D$6=1,RANDBETWEEN(1,99),IF(Worksheet!$D$6=2,CHOOSE(RANDBETWEEN(1,2),RANDBETWEEN(1,99),RANDBETWEEN(1,999)/10),CHOOSE(RANDBETWEEN(1,4),RANDBETWEEN(1,99999)/1000,RANDBETWEEN(1,9999)/100,RANDBETWEEN(1,999)/10,RANDBETWEEN(1,99)))) -> 88 | G170: m²
A171: =IF(COUNTIF($B$1:B171,TRUE)=COUNTIF($B$1:B170,TRUE),"",COUNTIF($B$1:B171,TRUE)) -> 103 | B171: =IF(Worksheet!$D$10=3,FALSE,Worksheet!$B$14) -> TRUE | C171: =IF(Worksheet!$D$6=1,RANDBETWEEN(1,99),IF(Worksheet!$D$6=2,CHOOSE(RANDBETWEEN(1,2),RANDBETWEEN(1,99),RANDBETWEEN(1,999)/10),CHOOSE(RANDBETWEEN(1,4),RANDBETWEEN(1,99999)/1000,RANDBETWEEN(1,9999)/100,RANDBETWEEN(1,999)/10,RANDBETWEEN(1,99)))) -> 67 | D171: cm | E171: = | F171: =10*C171 -> 670 | G171: mm
A172: =IF(COUNTIF($B$1:B172,TRUE)=COUNTIF($B$1:B171,TRUE),"",COUNTIF($B$1:B172,TRUE)) -> 104 | B172: =IF(Worksheet!$D$10=3,FALSE,Worksheet!$B$15) -> TRUE | C172: =IF(Worksheet!$D$6=1,RANDBETWEEN(1,99),IF(Worksheet!$D$6=2,CHOOSE(RANDBETWEEN(1,2),RANDBETWEEN(1,99),RANDBETWEEN(1,999)/10),CHOOSE(RANDBETWEEN(1,4),RANDBETWEEN(1,99999)/1000,RANDBETWEEN(1,9999)/100,RANDBETWEEN(1,999)/10,RANDBETWEEN(1,99)))) -> 8 | D172: m | E172: = | F172: =100*C172 -> 800 | G172: cm
A173: =IF(COUNTIF($B$1:B173,TRUE)=COUNTIF($B$1:B172,TRUE),"",COUNTIF($B$1:B173,TRUE)) -> 105 | B173: =IF(Worksheet!$D$10=3,FALSE,Worksheet!$B$16) -> TRUE | C173: =IF(Worksheet!$D$6=1,RANDBETWEEN(1,99),IF(Worksheet!$D$6=2,CHOOSE(RANDBETWEEN(1,2),RANDBETWEEN(1,99),RANDBETWEEN(1,999)/10),CHOOSE(RANDBETWEEN(1,4),RANDBETWEEN(1,99999)/1000,RANDBETWEEN(1,9999)/100,RANDBETWEEN(1,999)/10,RANDBETWEEN(1,99)))) -> 6 | D173: km | E173: = | F173: =1000*C173 -> 6000 | G173: m
A174: =IF(COUNTIF($B$1:B174,TRUE)=COUNTIF($B$1:B173,TRUE),"",COUNTIF($B$1:B174,TRUE)) ->  | B174: =IF(Worksheet!$D$10=3,FALSE,Worksheet!$B$17) -> FALSE | C174: =IF(Worksheet!$D$6=1,RANDBETWEEN(1,99),IF(Worksheet!$D$6=2,CHOOSE(RANDBETWEEN(1,2),RANDBETWEEN(1,99),RANDBETWEEN(1,999)/10),CHOOSE(RANDBETWEEN(1,4),RANDBETWEEN(1,99999)/1000,RANDBETWEEN(1,9999)/100,RANDBETWEEN(1,999)/10,RANDBETWEEN(1,99)))) -> 77 | D174: m | E174: =#REF! ->  | F174: =1000*C174 -> 77000 | G174: mm
A175: =IF(COUNTIF($B$1:B175,TRUE)=COUNTIF($B$1:B174,TRUE),"",COUNTIF($B$1:B175,TRUE)) ->  | B175: =IF(Worksheet!$D$10=3,FALSE,Worksheet!$B$18) -> FALSE | C175: =IF(Worksheet!$D$6=1,RANDBETWEEN(1,99),IF(Worksheet!$D$6=2,CHOOSE(RANDBETWEEN(1,2),RANDBETWEEN(1,99),RANDBETWEEN(1,999)/10),CHOOSE(RANDBETWEEN(1,4),RANDBETWEEN(1,99999)/1000,RANDBETWEEN(1,9999)/100,RANDBETWEEN(1,999)/10,RANDBETWEEN(1,99)))) -> 70 | D175: cm² | E175: = | F175: =C175*100 -> 7000 | G175: mm²
A176: =IF(COUNTIF($B$1:B176,TRUE)=COUNTIF($B$1:B175,TRUE),"",COUNTIF($B$1:B176,TRUE)) -> 106 | B176: =IF(Worksheet!$D$10=3,FALSE,Worksheet!$D$14) -> TRUE | C176: =IF(Worksheet!$D$6=1,RANDBETWEEN(1,99),IF(Worksheet!$D$6=2,CHOOSE(RANDBETWEEN(1,2),RANDBETWEEN(1,99),RANDBETWEEN(1,999)/10),CHOOSE(RANDBETWEEN(1,4),RANDBETWEEN(1,99999)/1000,RANDBETWEEN(1,9999)/100,RANDBETWEEN(1,999)/10,RANDBETWEEN(1,99)))) -> 67 | D176: kg | E176: = | F176: =1000*C176 -> 67000 | G176: g
A177: =IF(COUNTIF($B$1:B177,TRUE)=COUNTIF($B$1:B176,TRUE),"",COUNTIF($B$1:B177,TRUE)) -> 107 | B177: =IF(Worksheet!$D$10=3,FALSE,Worksheet!$D$15) -> TRUE | C177: =IF(Worksheet!$D$6=1,RANDBETWEEN(1,99),IF(Worksheet!$D$6=2,CHOOSE(RANDBETWEEN(1,2),RANDBETWEEN(1,99),RANDBETWEEN(1,999)/10),CHOOSE(RANDBETWEEN(1,4),RANDBETWEEN(1,99999)/1000,RANDBETWEEN(1,9999)/100,RANDBETWEEN(1,999)/10,RANDBETWEEN(1,99)))) -> 42 | D177: tonnes | E177: = | F177: =1000*C177 -> 42000 | G177: kg
A178: =IF(COUNTIF($B$1:B178,TRUE)=COUNTIF($B$1:B177,TRUE),"",COUNTIF($B$1:B178,TRUE)) -> 108 | B178: =IF(Worksheet!$D$10=3,FALSE,Worksheet!$D$16) -> TRUE | C178: =IF(Worksheet!$D$6=1,RANDBETWEEN(1,99),IF(Worksheet!$D$6=2,CHOOSE(RANDBETWEEN(1,2),RANDBETWEEN(1,99),RANDBETWEEN(1,999)/10),CHOOSE(RANDBETWEEN(1,4),RANDBETWEEN(1,99999)/1000,RANDBETWEEN(1,9999)/100,RANDBETWEEN(1,999)/10,RANDBETWEEN(1,99)))) -> 52 | D178: litres | E178: = | F178: =1000*C178 -> 52000 | G178: ml
A179: =IF(COUNTIF($B$1:B179,TRUE)=COUNTIF($B$1:B178,TRUE),"",COUNTIF($B$1:B179,TRUE)) ->  | B179: =IF(Worksheet!$D$10=3,FALSE,Worksheet!$D$17) -> FALSE | C179: =IF(Worksheet!$D$6=1,RANDBETWEEN(1,99),IF(Worksheet!$D$6=2,CHOOSE(RANDBETWEEN(1,2),RANDBETWEEN(1,99),RANDBETWEEN(1,999)/10),CHOOSE(RANDBETWEEN(1,4),RANDBETWEEN(1,99999)/1000,RANDBETWEEN(1,9999)/100,RANDBETWEEN(1,999)/10,RANDBETWEEN(1,99)))) -> 75 | D179: litres | E179: = | F179: =1000*C179 -> 75000 | G179: cm³
A180: =IF(COUNTIF($B$1:B180,TRUE)=COUNTIF($B$1:B179,TRUE),"",COUNTIF($B$1:B180,TRUE)) ->  | B180: =IF(Worksheet!$D$10=3,FALSE,Worksheet!$D$18) -> FALSE | C180: =IF(Worksheet!$D$6=1,RANDBETWEEN(1,99),IF(Worksheet!$D$6=2,CHOOSE(RANDBETWEEN(1,2),RANDBETWEEN(1,99),RANDBETWEEN(1,999)/10),CHOOSE(RANDBETWEEN(1,4),RANDBETWEEN(1,99999)/1000,RANDBETWEEN(1,9999)/100,RANDBETWEEN(1,999)/10,RANDBETWEEN(1,99)))) -> 5 | D180: m² | E180: = | F180: =10000*C180 -> 50000 | G180: cm²
A181: =IF(COUNTIF($B$1:B181,TRUE)=COUNTIF($B$1:B180,TRUE),"",COUNTIF($B$1:B181,TRUE)) -> 109 | B181: =IF(Worksheet!$D$10=2,FALSE,Worksheet!$B$14) -> TRUE | C181: =10*F181 -> 700 | D181: mm | E181: = | F181: =IF(Worksheet!$D$6=1,RANDBETWEEN(1,99),IF(Worksheet!$D$6=2,CHOOSE(RANDBETWEEN(1,2),RANDBETWEEN(1,99),RANDBETWEEN(1,999)/10),CHOOSE(RANDBETWEEN(1,4),RANDBETWEEN(1,99999)/1000,RANDBETWEEN(1,9999)/100,RANDBETWEEN(1,999)/10,RANDBETWEEN(1,99)))) -> 70 | G181: cm
A182: =IF(COUNTIF($B$1:B182,TRUE)=COUNTIF($B$1:B181,TRUE),"",COUNTIF($B$1:B182,TRUE)) -> 110 | B182: =IF(Worksheet!$D$10=2,FALSE,Worksheet!$B$15) -> TRUE | C182: =100*F182 -> 1900 | D182: cm | E182: = | F182: =IF(Worksheet!$D$6=1,RANDBETWEEN(1,99),IF(Worksheet!$D$6=2,CHOOSE(RANDBETWEEN(1,2),RANDBETWEEN(1,99),RANDBETWEEN(1,999)/10),CHOOSE(RANDBETWEEN(1,4),RANDBETWEEN(1,99999)/1000,RANDBETWEEN(1,9999)/100,RANDBETWEEN(1,999)/10,RANDBETWEEN(1,99)))) -> 19 | G182: m
A183: =IF(COUNTIF($B$1:B183,TRUE)=COUNTIF($B$1:B182,TRUE),"",COUNTIF($B$1:B183,TRUE)) -> 111 | B183: =IF(Worksheet!$D$10=2,FALSE,Worksheet!$B$16) -> TRUE | C183: =1000*F183 -> 37000 | D183: m | E183: = | F183: =IF(Worksheet!$D$6=1,RANDBETWEEN(1,99),IF(Worksheet!$D$6=2,CHOOSE(RANDBETWEEN(1,2),RANDBETWEEN(1,99),RANDBETWEEN(1,999)/10),CHOOSE(RANDBETWEEN(1,4),RANDBETWEEN(1,99999)/1000,RANDBETWEEN(1,9999)/100,RANDBETWEEN(1,999)/10,RANDBETWEEN(1,99)))) -> 37 | G183: km
A184: =IF(COUNTIF($B$1:B184,TRUE)=COUNTIF($B$1:B183,TRUE),"",COUNTIF($B$1:B184,TRUE)) ->  | B184: =IF(Worksheet!$D$10=2,FALSE,Worksheet!$B$17) -> FALSE | C184: =1000*F184 -> 78000 | D184: mm | E184: = | F184: =IF(Worksheet!$D$6=1,RANDBETWEEN(1,99),IF(Worksheet!$D$6=2,CHOOSE(RANDBETWEEN(1,2),RANDBETWEEN(1,99),RANDBETWEEN(1,999)/10),CHOOSE(RANDBETWEEN(1,4),RANDBETWEEN(1,99999)/1000,RANDBETWEEN(1,9999)/100,RANDBETWEEN(1,999)/10,RANDBETWEEN(1,99)))) -> 78 | G184: m
A185: =IF(COUNTIF($B$1:B185,TRUE)=COUNTIF($B$1:B184,TRUE),"",COUNTIF($B$1:B185,TRUE)) ->  | B185: =IF(Worksheet!$D$10=2,FALSE,Worksheet!$B$18) -> FALSE | C185: =100*F185 -> 2400 | D185: mm² | E185: = | F185: =IF(Worksheet!$D$6=1,RANDBETWEEN(1,99),IF(Worksheet!$D$6=2,CHOOSE(RANDBETWEEN(1,2),RANDBETWEEN(1,99),RANDBETWEEN(1,999)/10),CHOOSE(RANDBETWEEN(1,4),RANDBETWEEN(1,99999)/1000,RANDBETWEEN(1,9999)/100,RANDBETWEEN(1,999)/10,RANDBETWEEN(1,99)))) -> 24 | G185: cm²
A186: =IF(COUNTIF($B$1:B186,TRUE)=COUNTIF($B$1:B185,TRUE),"",COUNTIF($B$1:B186,TRUE)) -> 112 | B186: =IF(Worksheet!$D$10=2,FALSE,Worksheet!$D$14) -> TRUE | C186: =F186*1000 -> 32000 | D186: g | E186: = | F186: =IF(Worksheet!$D$6=1,RANDBETWEEN(1,99),IF(Worksheet!$D$6=2,CHOOSE(RANDBETWEEN(1,2),RANDBETWEEN(1,99),RANDBETWEEN(1,999)/10),CHOOSE(RANDBETWEEN(1,4),RANDBETWEEN(1,99999)/1000,RANDBETWEEN(1,9999)/100,RANDBETWEEN(1,999)/10,RANDBETWEEN(1,99)))) -> 32 | G186: kg
A187: =IF(COUNTIF($B$1:B187,TRUE)=COUNTIF($B$1:B186,TRUE),"",COUNTIF($B$1:B187,TRUE)) -> 113 | B187: =IF(Worksheet!$D$10=2,FALSE,Worksheet!$D$15) -> TRUE | C187: =F187*1000 -> 51000 | D187: kg | E187: = | F187: =IF(Worksheet!$D$6=1,RANDBETWEEN(1,99),IF(Worksheet!$D$6=2,CHOOSE(RANDBETWEEN(1,2),RANDBETWEEN(1,99),RANDBETWEEN(1,999)/10),CHOOSE(RANDBETWEEN(1,4),RANDBETWEEN(1,99999)/1000,RANDBETWEEN(1,9999)/100,RANDBETWEEN(1,999)/10,RANDBETWEEN(1,99)))) -> 51 | G187: tonnes
A188: =IF(COUNTIF($B$1:B188,TRUE)=COUNTIF($B$1:B187,TRUE),"",COUNTIF($B$1:B188,TRUE)) -> 114 | B188: =IF(Worksheet!$D$10=2,FALSE,Worksheet!$D$16) -> TRUE | C188: =1000*F188 -> 79000 | D188: ml | E188: = | F188: =IF(Worksheet!$D$6=1,RANDBETWEEN(1,99),IF(Worksheet!$D$6=2,CHOOSE(RANDBETWEEN(1,2),RANDBETWEEN(1,99),RANDBETWEEN(1,999)/10),CHOOSE(RANDBETWEEN(1,4),RANDBETWEEN(1,99999)/1000,RANDBETWEEN(1,9999)/100,RANDBETWEEN(1,999)/10,RANDBETWEEN(1,99)))) -> 79 | G188: litres
A189: =IF(COUNTIF($B$1:B189,TRUE)=COUNTIF($B$1:B188,TRUE),"",COUNTIF($B$1:B189,TRUE)) ->  | B189: =IF(Worksheet!$D$10=2,FALSE,Worksheet!$D$17) -> FALSE | C189: =1000*F189 -> 64000 | D189: cm³ | E189: = | F189: =IF(Worksheet!$D$6=1,RANDBETWEEN(1,99),IF(Worksheet!$D$6=2,CHOOSE(RANDBETWEEN(1,2),RANDBETWEEN(1,99),RANDBETWEEN(1,999)/10),CHOOSE(RANDBETWEEN(1,4),RANDBETWEEN(1,99999)/1000,RANDBETWEEN(1,9999)/100,RANDBETWEEN(1,999)/10,RANDBETWEEN(1,99)))) -> 64 | G189: litres
A190: =IF(COUNTIF($B$1:B190,TRUE)=COUNTIF($B$1:B189,TRUE),"",COUNTIF($B$1:B190,TRUE)) ->  | B190: =IF(Worksheet!$D$10=2,FALSE,Worksheet!$D$18) -> FALSE | C190: =10000*F190 -> 730000 | D190: cm² | E190: = | F190: =IF(Worksheet!$D$6=1,RANDBETWEEN(1,99),IF(Worksheet!$D$6=2,CHOOSE(RANDBETWEEN(1,2),RANDBETWEEN(1,99),RANDBETWEEN(1,999)/10),CHOOSE(RANDBETWEEN(1,4),RANDBETWEEN(1,99999)/1000,RANDBETWEEN(1,9999)/100,RANDBETWEEN(1,999)/10,RANDBETWEEN(1,99)))) -> 73 | G190: m²
A191: =IF(COUNTIF($B$1:B191,TRUE)=COUNTIF($B$1:B190,TRUE),"",COUNTIF($B$1:B191,TRUE)) -> 115 | B191: =IF(Worksheet!$D$10=3,FALSE,Worksheet!$B$14) -> TRUE | C191: =IF(Worksheet!$D$6=1,RANDBETWEEN(1,99),IF(Worksheet!$D$6=2,CHOOSE(RANDBETWEEN(1,2),RANDBETWEEN(1,99),RANDBETWEEN(1,999)/10),CHOOSE(RANDBETWEEN(1,4),RANDBETWEEN(1,99999)/1000,RANDBETWEEN(1,9999)/100,RANDBETWEEN(1,999)/10,RANDBETWEEN(1,99)))) -> 75 | D191: cm | E191: = | F191: =10*C191 -> 750 | G191: mm
A192: =IF(COUNTIF($B$1:B192,TRUE)=COUNTIF($B$1:B191,TRUE),"",COUNTIF($B$1:B192,TRUE)) -> 116 | B192: =IF(Worksheet!$D$10=3,FALSE,Worksheet!$B$15) -> TRUE | C192: =IF(Worksheet!$D$6=1,RANDBETWEEN(1,99),IF(Worksheet!$D$6=2,CHOOSE(RANDBETWEEN(1,2),RANDBETWEEN(1,99),RANDBETWEEN(1,999)/10),CHOOSE(RANDBETWEEN(1,4),RANDBETWEEN(1,99999)/1000,RANDBETWEEN(1,9999)/100,RANDBETWEEN(1,999)/10,RANDBETWEEN(1,99)))) -> 7 | D192: m | E192: = | F192: =100*C192 -> 700 | G192: cm
A193: =IF(COUNTIF($B$1:B193,TRUE)=COUNTIF($B$1:B192,TRUE),"",COUNTIF($B$1:B193,TRUE)) -> 117 | B193: =IF(Worksheet!$D$10=3,FALSE,Worksheet!$B$16) -> TRUE | C193: =IF(Worksheet!$D$6=1,RANDBETWEEN(1,99),IF(Worksheet!$D$6=2,CHOOSE(RANDBETWEEN(1,2),RANDBETWEEN(1,99),RANDBETWEEN(1,999)/10),CHOOSE(RANDBETWEEN(1,4),RANDBETWEEN(1,99999)/1000,RANDBETWEEN(1,9999)/100,RANDBETWEEN(1,999)/10,RANDBETWEEN(1,99)))) -> 43 | D193: km | E193: = | F193: =1000*C193 -> 43000 | G193: m
A194: =IF(COUNTIF($B$1:B194,TRUE)=COUNTIF($B$1:B193,TRUE),"",COUNTIF($B$1:B194,TRUE)) ->  | B194: =IF(Worksheet!$D$10=3,FALSE,Worksheet!$B$17) -> FALSE | C194: =IF(Worksheet!$D$6=1,RANDBETWEEN(1,99),IF(Worksheet!$D$6=2,CHOOSE(RANDBETWEEN(1,2),RANDBETWEEN(1,99),RANDBETWEEN(1,999)/10),CHOOSE(RANDBETWEEN(1,4),RANDBETWEEN(1,99999)/1000,RANDBETWEEN(1,9999)/100,RANDBETWEEN(1,999)/10,RANDBETWEEN(1,99)))) -> 99 | D194: m | E194: =#REF! ->  | F194: =1000*C194 -> 99000 | G194: mm
A195: =IF(COUNTIF($B$1:B195,TRUE)=COUNTIF($B$1:B194,TRUE),"",COUNTIF($B$1:B195,TRUE)) ->  | B195: =IF(Worksheet!$D$10=3,FALSE,Worksheet!$B$18) -> FALSE | C195: =IF(Worksheet!$D$6=1,RANDBETWEEN(1,99),IF(Worksheet!$D$6=2,CHOOSE(RANDBETWEEN(1,2),RANDBETWEEN(1,99),RANDBETWEEN(1,999)/10),CHOOSE(RANDBETWEEN(1,4),RANDBETWEEN(1,99999)/1000,RANDBETWEEN(1,9999)/100,RANDBETWEEN(1,999)/10,RANDBETWEEN(1,99)))) -> 32 | D195: cm² | E195: = | F195: =C195*100 -> 3200 | G195: mm²
A196: =IF(COUNTIF($B$1:B196,TRUE)=COUNTIF($B$1:B195,TRUE),"",COUNTIF($B$1:B196,TRUE)) -> 118 | B196: =IF(Worksheet!$D$10=3,FALSE,Worksheet!$D$14) -> TRUE | C196: =IF(Worksheet!$D$6=1,RANDBETWEEN(1,99),IF(Worksheet!$D$6=2,CHOOSE(RANDBETWEEN(1,2),RANDBETWEEN(1,99),RANDBETWEEN(1,999)/10),CHOOSE(RANDBETWEEN(1,4),RANDBETWEEN(1,99999)/1000,RANDBETWEEN(1,9999)/100,RANDBETWEEN(1,999)/10,RANDBETWEEN(1,99)))) -> 22 | D196: kg | E196: = | F196: =1000*C196 -> 22000 | G196: g
A197: =IF(COUNTIF($B$1:B197,TRUE)=COUNTIF($B$1:B196,TRUE),"",COUNTIF($B$1:B197,TRUE)) -> 119 | B197: =IF(Worksheet!$D$10=3,FALSE,Worksheet!$D$15) -> TRUE | C197: =IF(Worksheet!$D$6=1,RANDBETWEEN(1,99),IF(Worksheet!$D$6=2,CHOOSE(RANDBETWEEN(1,2),RANDBETWEEN(1,99),RANDBETWEEN(1,999)/10),CHOOSE(RANDBETWEEN(1,4),RANDBETWEEN(1,99999)/1000,RANDBETWEEN(1,9999)/100,RANDBETWEEN(1,999)/10,RANDBETWEEN(1,99)))) -> 51 | D197: tonnes | E197: = | F197: =1000*C197 -> 51000 | G197: kg
A198: =IF(COUNTIF($B$1:B198,TRUE)=COUNTIF($B$1:B197,TRUE),"",COUNTIF($B$1:B198,TRUE)) -> 120 | B198: =IF(Worksheet!$D$10=3,FALSE,Worksheet!$D$16) -> TRUE | C198: =IF(Worksheet!$D$6=1,RANDBETWEEN(1,99),IF(Worksheet!$D$6=2,CHOOSE(RANDBETWEEN(1,2),RANDBETWEEN(1,99),RANDBETWEEN(1,999)/10),CHOOSE(RANDBETWEEN(1,4),RANDBETWEEN(1,99999)/1000,RANDBETWEEN(1,9999)/100,RANDBETWEEN(1,999)/10,RANDBETWEEN(1,99)))) -> 25 | D198: litres | E198: = | F198: =1000*C198 -> 25000 | G198: ml
A199: =IF(COUNTIF($B$1:B199,TRUE)=COUNTIF($B$1:B198,TRUE),"",COUNTIF($B$1:B199,TRUE)) ->  | B199: =IF(Worksheet!$D$10=3,FALSE,Worksheet!$D$17) -> FALSE | C199: =IF(Worksheet!$D$6=1,RANDBETWEEN(1,99),IF(Worksheet!$D$6=2,CHOOSE(RANDBETWEEN(1,2),RANDBETWEEN(1,99),RANDBETWEEN(1,999)/10),CHOOSE(RANDBETWEEN(1,4),RANDBETWEEN(1,99999)/1000,RANDBETWEEN(1,9999)/100,RANDBETWEEN(1,999)/10,RANDBETWEEN(1,99)))) -> 2 | D199: litres | E199: = | F199: =1000*C199 -> 2000 | G199: cm³
A200: =IF(COUNTIF($B$1:B200,TRUE)=COUNTIF($B$1:B199,TRUE),"",COUNTIF($B$1:B200,TRUE)) ->  | B200: =IF(Worksheet!$D$10=3,FALSE,Worksheet!$D$18) -> FALSE | C200: =IF(Worksheet!$D$6=1,RANDBETWEEN(1,99),IF(Worksheet!$D$6=2,CHOOSE(RANDBETWEEN(1,2),RANDBETWEEN(1,99),RANDBETWEEN(1,999)/10),CHOOSE(RANDBETWEEN(1,4),RANDBETWEEN(1,99999)/1000,RANDBETWEEN(1,9999)/100,RANDBETWEEN(1,999)/10,RANDBETWEEN(1,99)))) -> 14 | D200: m² | E200: = | F200: =10000*C200 -> 140000 | G200: cm²
... 2740 more rows
